﻿Directorate,Service,Division,Responsible Unit,Expense Type,Payment Date,Trans No,Net Amount,Supplier Name
Adults Services,Adult Social Care,Support with Memory and Cognition - adults (18-64),CLDS Longer Term Support Teams,Social Care - Residential Care,04/01/2017,3796064,"5,233.59",ROYAL BOROUGH OF WINDSOR AND MAIDENHEAD
Adults Services,Adult Social Care,Support with Memory and Cognition - adults (18-64),CLDS Longer Term Support Teams,Social Care - Supported Living,04/01/2017,3796076,"13,203.90",ADVANCE HOUSING & SUPPORT LTD
Adults Services,Adult Social Care,Physical Support - adults (18-64),Public Health � Healthy Middle Age & Older People.,Third Party Payments - Voluntary Associations,04/01/2017,3796400,"4,166.67",Ability Bow
Adults Services,Adult Social Care,Physical Support - adults (18-64),Public Health � Healthy Communities,Third Party Payments - Voluntary Associations,04/01/2017,3798790,"55,000.00",The Bromley by Bow Centre
Adults Services,Adult Social Care,Support with Memory and Cognition - adults (18-64),Cmht Bow / Poplar North,Social Care - Residential Care,04/01/2017,3802170,"-8,175.43",CARMEN LODGE
Adults Services,Adult Social Care,Support with Memory and Cognition - adults (18-64),Cmht Stepney / Wapping,Social Care - Residential Care,04/01/2017,3802171,"8,175.43",CARMEN LODGE
Adults Services,Adult Social Care,Support with Memory and Cognition - adults (18-64),Cmht Bow / Poplar North,Social Care - Residential Care,04/01/2017,3802280,"2,458.08",Goldcarehomes
Adults Services,Adult Social Care,Physical Support - adults (18-64),Public Health � Healthy Communities,Third Party Payments - Voluntary Associations,04/01/2017,3804815,"36,666.66",Osmani Trust
Adults Services,Adult Social Care,Physical Support - adults (18-64),Public Health � Healthy 0-5 year olds,Third Party Payments - Other Establishments,04/01/2017,3804831,"591,095.00",Tower Hamlets GP Care Group CIC
Adults Services,Adult Social Care,Physical Support - adults (18-64),Public Health � Healthy 0-5 year olds,Third Party Payments - Other Establishments,04/01/2017,3804832,"3,641.70",Tower Hamlets GP Care Group CIC
Adults Services,Adult Social Care,Service Strategy,Commissioning & Strategy M&A,Catering - Hospitality,04/01/2017,3804885,663.82,LIMONCELLO (CATERING & DELICATESSEN) LTD
Adults Services,Adult Social Care,Support with Memory and Cognition - adults (18-64),Generic Care Packages SE Team -PS,Social Care - Nursing Care,04/01/2017,3806079,"3,195.00",Barron Kirk Quality Care Ltd
Adults Services,Adult Social Care,Support with Memory and Cognition - adults (18-64),CLDS Longer Term Support Teams,Social Care - Day Care,04/01/2017,3806080,"1,330.00",The Bromley by Bow Centre
Adults Services,Adult Social Care,Support with Memory and Cognition - adults (18-64),CLDS Longer Term Support Teams,Social Care - Day Care,04/01/2017,3806081,"1,610.00",The Bromley by Bow Centre
Adults Services,Adult Social Care,Support with Memory and Cognition - adults (18-64),CLDS Longer Term Support Teams,Social Care - Day Care,04/01/2017,3806082,945,The Bromley by Bow Centre
Adults Services,Adult Social Care,Support with Memory and Cognition - adults (18-64),CLDS Longer Term Support Teams,Social Care - Day Care,04/01/2017,3806083,"1,485.00",The Bromley by Bow Centre
Adults Services,Adult Social Care,Support with Memory and Cognition - adults (18-64),CLDS Longer Term Support Teams,Social Care - Day Care,04/01/2017,3806084,720,The Bromley by Bow Centre
Adults Services,Adult Social Care,Support with Memory and Cognition - adults (18-64),CLDS Longer Term Support Teams,Social Care - Day Care,04/01/2017,3806086,"1,575.00",The Bromley by Bow Centre
Adults Services,Adult Social Care,Support with Memory and Cognition - adults (18-64),CLDS Longer Term Support Teams,Social Care - Day Care,04/01/2017,3806088,909.4,The Bromley by Bow Centre
Adults Services,Adult Social Care,Support with Memory and Cognition - adults (18-64),CLDS Longer Term Support Teams,Social Care - Day Care,04/01/2017,3806089,720,The Bromley by Bow Centre
Adults Services,Adult Social Care,Support with Memory and Cognition - adults (18-64),CLDS Longer Term Support Teams,Social Care - Day Care,04/01/2017,3806093,"1,530.00",The Bromley by Bow Centre
Adults Services,Adult Social Care,Support with Memory and Cognition - adults (18-64),CLDS Longer Term Support Teams,Social Care - Day Care,04/01/2017,3806094,630,The Bromley by Bow Centre
Adults Services,Adult Social Care,Support with Memory and Cognition - adults (18-64),Generic Care Packages SE Team -AS,Social Care - Prevention & Support,04/01/2017,3806100,"2,170.00",City Inn Express Limited
Adults Services,Adult Social Care,Support with Memory and Cognition - adults (18-64),Generic Care Packages NE Team -PS,Social Care - Prevention & Support,04/01/2017,3806101,"3,720.00",City Inn Express Limited
Adults Services,Adult Social Care,Support with Memory and Cognition - adults (18-64),Generic Care Packages SW Team - PS,Social Care - Homecare,04/01/2017,3806110,"1,354.40",Carewatch Newham Ltd
Adults Services,Adult Social Care,Support with Memory and Cognition - adults (18-64),Generic Care Packages SE Team -PS,Social Care - Home Care (Short Term),04/01/2017,3806113,"1,103.62",Carewatch Newham Ltd
Adults Services,Adult Social Care,Support with Memory and Cognition - adults (18-64),Generic Care Packages SE Team -PS,Social Care - Home Care (Short Term),04/01/2017,3806127,530.42,Carewatch Newham Ltd
Adults Services,Adult Social Care,Support with Memory and Cognition - adults (18-64),Generic Care Packages NW Team -PS,Social Care - Homecare,04/01/2017,3806129,598.58,Excelcare (Home Care Division) LTD
Adults Services,Adult Social Care,Support with Memory and Cognition - adults (18-64),Generic Care Packages NW Team -PS,Social Care - Homecare,04/01/2017,3806130,598.58,Excelcare (Home Care Division) LTD
Adults Services,Adult Social Care,Support with Memory and Cognition - adults (18-64),Generic Care Packages NW Team -PS,Social Care - Homecare,04/01/2017,3806132,598.58,Excelcare (Home Care Division) LTD
Adults Services,Adult Social Care,Support with Memory and Cognition - adults (18-64),Generic Care Packages NW Team -PS,Social Care - Homecare,04/01/2017,3806134,651.98,Excelcare (Home Care Division) LTD
Adults Services,Adult Social Care,Support with Memory and Cognition - adults (18-64),Generic Care Packages NW Team -PS,Social Care - Homecare,04/01/2017,3806138,598.58,Excelcare (Home Care Division) LTD
Adults Services,Adult Social Care,Support with Memory and Cognition - adults (18-64),Generic Care Packages NW Team -PS,Social Care - Homecare,04/01/2017,3806140,598.58,Excelcare (Home Care Division) LTD
Adults Services,Adult Social Care,Support with Memory and Cognition - adults (18-64),Generic Care Packages NW Team -PS,Social Care - Homecare,04/01/2017,3806142,598.58,Excelcare (Home Care Division) LTD
Adults Services,Adult Social Care,Support with Memory and Cognition - adults (18-64),Generic Care Packages NW Team -PS,Social Care - Homecare,04/01/2017,3806144,598.58,Excelcare (Home Care Division) LTD
Adults Services,Adult Social Care,Support with Memory and Cognition - adults (18-64),Generic Care Packages NW Team -PS,Social Care - Homecare,04/01/2017,3806147,598.58,Excelcare (Home Care Division) LTD
Adults Services,Adult Social Care,Support with Memory and Cognition - adults (18-64),Generic Care Packages NW Team -PS,Social Care - Homecare,04/01/2017,3806149,621.61,Excelcare (Home Care Division) LTD
Adults Services,Adult Social Care,Support with Memory and Cognition - adults (18-64),Generic Care Packages NW Team -PS,Social Care - Homecare,04/01/2017,3806152,621.61,Excelcare (Home Care Division) LTD
Adults Services,Adult Social Care,Support with Memory and Cognition - adults (18-64),Generic Care Packages NW Team -PS,Social Care - Homecare,04/01/2017,3806155,598.58,Excelcare (Home Care Division) LTD
Adults Services,Adult Social Care,Support with Memory and Cognition - adults (18-64),Generic Care Packages NW Team -PS,Social Care - Homecare,04/01/2017,3806158,621.61,Excelcare (Home Care Division) LTD
Adults Services,Adult Social Care,Support with Memory and Cognition - adults (18-64),Generic Care Packages NW Team -PS,Social Care - Homecare,04/01/2017,3806162,598.58,Excelcare (Home Care Division) LTD
Adults Services,Adult Social Care,Support with Memory and Cognition - adults (18-64),Generic Care Packages NW Team -PS,Social Care - Homecare,04/01/2017,3806165,598.58,Excelcare (Home Care Division) LTD
Adults Services,Adult Social Care,Support with Memory and Cognition - adults (18-64),Generic Care Packages NW Team -PS,Social Care - Homecare,04/01/2017,3806167,"1,218.62",Excelcare (Home Care Division) LTD
Adults Services,Adult Social Care,Support with Memory and Cognition - adults (18-64),Generic Care Packages NW Team -PS,Social Care - Homecare,04/01/2017,3806169,598.58,Excelcare (Home Care Division) LTD
Adults Services,Adult Social Care,Support with Memory and Cognition - adults (18-64),Generic Care Packages NW Team -PS,Social Care - Homecare,04/01/2017,3806170,"1,218.62",Excelcare (Home Care Division) LTD
Adults Services,Adult Social Care,Support with Memory and Cognition - adults (18-64),Generic Care Packages NW Team -PS,Social Care - Homecare,04/01/2017,3806172,598.58,Excelcare (Home Care Division) LTD
Adults Services,Adult Social Care,Support with Memory and Cognition - adults (18-64),Generic Care Packages NW Team -PS,Social Care - Homecare,04/01/2017,3806173,"1,218.62",Excelcare (Home Care Division) LTD
Adults Services,Adult Social Care,Support with Memory and Cognition - adults (18-64),Generic Care Packages SE Team -PS,Social Care - Homecare,04/01/2017,3806177,"1,823.25",Excelcare (Home Care Division) LTD
Adults Services,Adult Social Care,Support with Memory and Cognition - adults (18-64),Generic Care Packages NW Team -PS,Social Care - Homecare,04/01/2017,3806180,598.58,Excelcare (Home Care Division) LTD
Adults Services,Adult Social Care,Support with Memory and Cognition - adults (18-64),Generic Care Packages NW Team -PS,Social Care - Homecare,04/01/2017,3806181,"1,207.93",Excelcare (Home Care Division) LTD
Adults Services,Adult Social Care,Support with Memory and Cognition - adults (18-64),Generic Care Packages NW Team -PS,Social Care - Homecare,04/01/2017,3806186,"1,218.62",Excelcare (Home Care Division) LTD
Adults Services,Adult Social Care,Support with Memory and Cognition - adults (18-64),Generic Care Packages NW Team -PS,Social Care - Homecare,04/01/2017,3806191,"1,245.38",Excelcare (Home Care Division) LTD
Adults Services,Adult Social Care,Support with Memory and Cognition - adults (18-64),Generic Care Packages NW Team -PS,Social Care - Homecare,04/01/2017,3806194,"1,207.93",Excelcare (Home Care Division) LTD
Adults Services,Adult Social Care,Support with Memory and Cognition - adults (18-64),Cmht For Older People,Social Care - Homecare,04/01/2017,3806197,"1,460.92",Excelcare (Home Care Division) LTD
Adults Services,Adult Social Care,Support with Memory and Cognition - adults (18-64),Generic Care Packages NW Team -PS,Social Care - Homecare,04/01/2017,3806201,"1,223.36",Excelcare (Home Care Division) LTD
Adults Services,Adult Social Care,Support with Memory and Cognition - adults (18-64),Generic Care Packages SE Team -PS,Social Care - Homecare,04/01/2017,3806202,926.74,Excelcare (Home Care Division) LTD
Adults Services,Adult Social Care,Support with Memory and Cognition - adults (18-64),Generic Care Packages SW Team - PS,Social Care - Homecare,04/01/2017,3806205,"4,788.00",Excelcare (Home Care Division) LTD
Adults Services,Adult Social Care,Support with Memory and Cognition - adults (18-64),Generic Care Packages NW Team -PS,Social Care - Homecare,04/01/2017,3806206,555.96,Excelcare (Home Care Division) LTD
Adults Services,Adult Social Care,Support with Memory and Cognition - adults (18-64),Generic Care Packages NW Team -PS,Social Care - Homecare,04/01/2017,3806207,705.48,Excelcare (Home Care Division) LTD
Adults Services,Adult Social Care,Support with Memory and Cognition - adults (18-64),Generic Care Packages SE Team -PS,Social Care - Home Care (Short Term),04/01/2017,3806209,"1,182.76",Excelcare (Home Care Division) LTD
Adults Services,Adult Social Care,Support with Memory and Cognition - adults (18-64),Generic Care Packages SW Team - PS,Social Care - Homecare,04/01/2017,3806212,"1,076.14",Excelcare (Home Care Division) LTD
Adults Services,Adult Social Care,Support with Memory and Cognition - adults (18-64),Generic Care Packages SW Team - PS,Social Care - Homecare,04/01/2017,3806213,"4,836.30",Excelcare (Home Care Division) LTD
Adults Services,Adult Social Care,Support with Memory and Cognition - adults (18-64),Generic Care Packages SE Team -PS,Social Care - Homecare,04/01/2017,3806214,944.13,Excelcare (Home Care Division) LTD
Adults Services,Adult Social Care,Support with Memory and Cognition - adults (18-64),Generic Care Packages NW Team -PS,Social Care - Homecare,04/01/2017,3806215,748.16,Excelcare (Home Care Division) LTD
Adults Services,Adult Social Care,Support with Memory and Cognition - adults (18-64),CLDS Longer Term Support Teams,Social Care - Homecare,04/01/2017,3806218,"1,588.95",Excelcare (Home Care Division) LTD
Adults Services,Adult Social Care,Support with Memory and Cognition - adults (18-64),CLDS Longer Term Support Teams,Social Care - Residential Care,04/01/2017,3806220,"9,096.29",London Care Partnership Ltd
Adults Services,Adult Social Care,Support with Memory and Cognition - adults (18-64),CLDS Longer Term Support Teams,Social Care - Homecare,04/01/2017,3806222,874.2,Excelcare (Home Care Division) LTD
Adults Services,Adult Social Care,Physical Support - adults (18-64),"Failed Care Package Conversion		",Social Care - Others,04/01/2017,3806224,"1,039.50",Excelcare (Home Care Division) LTD
Adults Services,Adult Social Care,Physical Support - adults (18-64),"Failed Care Package Conversion		",Social Care - Others,04/01/2017,3806225,"1,039.50",Excelcare (Home Care Division) LTD
Adults Services,Adult Social Care,Support with Memory and Cognition - adults (18-64),Generic Care Packages SE Team -PS,Social Care - Homecare,04/01/2017,3806226,"1,513.05",Bluebird Care (Enfield)
Adults Services,Adult Social Care,Support with Memory and Cognition - adults (18-64),Generic Care Packages SE Team -PS,Social Care - Homecare,04/01/2017,3806227,"1,666.50",Bluebird Care (Enfield)
Adults Services,Adult Social Care,Support with Memory and Cognition - adults (18-64),Generic Care Packages SE Team -PS,Social Care - Extra Care Sheltered Housing,04/01/2017,3806233,"27,795.03",Creative Support
Adults Services,Adult Social Care,Support with Memory and Cognition - adults (18-64),Generic Care Packages SE Team -PS,Social Care - Extra Care Sheltered Housing,04/01/2017,3806234,"27,795.03",Creative Support
Adults Services,Adult Social Care,Support with Memory and Cognition - adults (18-64),Generic Care Packages SE Team -PS,Social Care - Extra Care Sheltered Housing,04/01/2017,3806235,"27,795.03",Creative Support
Adults Services,Adult Social Care,Support with Memory and Cognition - adults (18-64),Generic Care Packages SE Team -PS,Social Care - Extra Care Sheltered Housing,04/01/2017,3806236,"27,795.03",Creative Support
Adults Services,Adult Social Care,Physical Support - adults (18-64),"Failed Care Package Conversion		",Social Care - Extra Care Sheltered Housing,04/01/2017,3806237,"1,020.51",Creative Support
Adults Services,Adult Social Care,Physical Support - adults (18-64),"Failed Care Package Conversion		",Social Care - Extra Care Sheltered Housing,04/01/2017,3806238,"4,629.52",Creative Support
Adults Services,Adult Social Care,Support with Memory and Cognition - adults (18-64),Generic Care Packages SE Team -PS,Social Care - Extra Care Sheltered Housing,04/01/2017,3806239,"2,034.44",Creative Support
Adults Services,Adult Social Care,Support with Memory and Cognition - adults (18-64),CLDS Longer Term Support Teams,Social Care - Residential Care,04/01/2017,3806241,"-1,600.00",SAHARA HOMES LIMITED
Adults Services,Adult Social Care,Support with Memory and Cognition - adults (18-64),CLDS Longer Term Support Teams,Social Care - Residential Care,04/01/2017,3806242,"-2,650.00",SAHARA HOMES LIMITED
Adults Services,Adult Social Care,Support with Memory and Cognition - adults (18-64),CLDS Longer Term Support Teams,Social Care - Residential Care,04/01/2017,3806243,"5,164.08",SAHARA HOMES LIMITED
Adults Services,Adult Social Care,Support with Memory and Cognition - adults (18-64),CLDS Longer Term Support Teams,Social Care - Residential Care,04/01/2017,3806245,"2,650.00",SAHARA HOMES LIMITED
Adults Services,Adult Social Care,Support with Memory and Cognition - adults (18-64),CLDS Longer Term Support Teams,Social Care - Residential Care,04/01/2017,3806249,"9,200.00",Coppice Care Burgess Hill LLP
Adults Services,Adult Social Care,Support with Memory and Cognition - adults (18-64),Generic Care Packages SE Team -PS,Social Care - Homecare,04/01/2017,3806250,"4,241.85",Bluebird Care (Enfield)
Adults Services,Adult Social Care,Support with Memory and Cognition - adults (18-64),Generic Care Packages NW Team -PS,Social Care - Homecare,04/01/2017,3806251,556.99,Excelcare (Home Care Division) LTD
Adults Services,Adult Social Care,Support with Memory and Cognition - adults (18-64),Generic Care Packages NW Team -PS,Social Care - Homecare,04/01/2017,3806253,680.54,Excelcare (Home Care Division) LTD
Adults Services,Adult Social Care,Support with Memory and Cognition - adults (18-64),Generic Care Packages NW Team -PS,Social Care - Homecare,04/01/2017,3806254,654.89,Excelcare (Home Care Division) LTD
Adults Services,Adult Social Care,Support with Memory and Cognition - adults (18-64),Generic Care Packages SE Team -PS,Social Care - Home Care (Short Term),04/01/2017,3806255,531,SEVACARE UK LTD
Adults Services,Adult Social Care,Support with Memory and Cognition - adults (18-64),Generic Care Packages SE Team -PS,Social Care - Home Care (Short Term),04/01/2017,3806273,906,SEVACARE UK LTD
Adults Services,Adult Social Care,Support with Memory and Cognition - adults (18-64),Generic Care Packages NE Team -PS,Social Care - Homecare,04/01/2017,3806274,612.52,SEVACARE UK LTD
Adults Services,Adult Social Care,Support with Memory and Cognition - adults (18-64),Generic Care Packages SE Team -PS,Social Care - Home Care (Short Term),04/01/2017,3806275,"1,102.30",SEVACARE UK LTD
Adults Services,Adult Social Care,Support with Memory and Cognition - adults (18-64),Generic Care Packages SE Team -PS,Social Care - Home Care (Short Term),04/01/2017,3806276,"1,102.30",SEVACARE UK LTD
Adults Services,Adult Social Care,Support with Memory and Cognition - adults (18-64),Generic Care Packages NE Team -PS,Social Care - Homecare,04/01/2017,3806277,"1,238.20",SEVACARE UK LTD
Adults Services,Adult Social Care,Support with Memory and Cognition - adults (18-64),CLDS Longer Term Support Teams,Social Care - Homecare,04/01/2017,3806278,874.2,Excelcare (Home Care Division) LTD
Adults Services,Adult Social Care,Support with Memory and Cognition - adults (18-64),Generic Care Packages NE Team -PS,Social Care - Homecare,04/01/2017,3806279,"1,219.33",SEVACARE UK LTD
Adults Services,Adult Social Care,Support with Memory and Cognition - adults (18-64),Generic Care Packages NW Team -PS,Social Care - Home Care (Short Term),04/01/2017,3806284,"3,699.50",SEVACARE UK LTD
Adults Services,Adult Social Care,Support with Memory and Cognition - adults (18-64),Generic Care Packages NW Team -PS,Social Care - Home Care (Short Term),04/01/2017,3806285,"1,691.20",SEVACARE UK LTD
Adults Services,Adult Social Care,Support with Memory and Cognition - adults (18-64),Generic Care Packages NE Team -PS,Social Care - Home Care (Short Term),04/01/2017,3806286,951.3,SEVACARE UK LTD
Adults Services,Adult Social Care,Support with Memory and Cognition - adults (18-64),Generic Care Packages SE Team -PS,Social Care - Homecare,04/01/2017,3806287,"1,162.70",SEVACARE UK LTD
Adults Services,Adult Social Care,Support with Memory and Cognition - adults (18-64),Generic Care Packages SW Team - PS,Social Care - Homecare,04/01/2017,3806288,"1,102.30",SEVACARE UK LTD
Adults Services,Adult Social Care,Support with Memory and Cognition - adults (18-64),Generic Care Packages SE Team -PS,Social Care - Home Care (Short Term),04/01/2017,3806289,"1,268.40",SEVACARE UK LTD
Adults Services,Adult Social Care,Support with Memory and Cognition - adults (18-64),Generic Care Packages NE Team -PS,Social Care - Homecare,04/01/2017,3806291,"1,238.20",SEVACARE UK LTD
Adults Services,Adult Social Care,Support with Memory and Cognition - adults (18-64),Generic Care Packages SW Team - PS,Social Care - Home Care (Short Term),04/01/2017,3806301,551.15,SEVACARE UK LTD
Adults Services,Adult Social Care,Support with Memory and Cognition - adults (18-64),Generic Care Packages SE Team -PS,Social Care - Home Care (Short Term),04/01/2017,3806302,951.3,SEVACARE UK LTD
Adults Services,Adult Social Care,Support with Memory and Cognition - adults (18-64),Generic Care Packages SW Team - PS,Social Care - Homecare,04/01/2017,3806303,543.6,SEVACARE UK LTD
Adults Services,Adult Social Care,Support with Memory and Cognition - adults (18-64),"Generic Care Packages NW Team-MH						",Social Care - Homecare,04/01/2017,3806314,"1,600.60",SEVACARE UK LTD
Adults Services,Adult Social Care,Physical Support - adults (18-64),"Failed Care Package Conversion		",Social Care - Homecare,04/01/2017,3806327,551.15,SEVACARE UK LTD
Adults Services,Adult Social Care,Support with Memory and Cognition - adults (18-64),Cmht Iod / Poplar South,Social Care - Homecare,04/01/2017,3806337,883.35,SEVACARE UK LTD
Adults Services,Adult Social Care,Support with Memory and Cognition - adults (18-64),Generic Care Packages NE Team -PS,Social Care - Homecare,04/01/2017,3806338,838.05,SEVACARE UK LTD
Adults Services,Adult Social Care,Support with Memory and Cognition - adults (18-64),Generic Care Packages NE Team -PS,Social Care - Homecare,04/01/2017,3806339,543.6,SEVACARE UK LTD
Adults Services,Adult Social Care,Support with Memory and Cognition - adults (18-64),Generic Care Packages SE Team -PS,Social Care - Homecare,04/01/2017,3806341,"1,102.30",SEVACARE UK LTD
Adults Services,Adult Social Care,Support with Memory and Cognition - adults (18-64),Generic Care Packages SE Team -PS,Social Care - Homecare,04/01/2017,3806343,588.9,SEVACARE UK LTD
Adults Services,Adult Social Care,Support with Memory and Cognition - adults (18-64),CLDS Longer Term Support Teams,Social Care - Homecare,04/01/2017,3806348,874.2,Excelcare (Home Care Division) LTD
Adults Services,Adult Social Care,Support with Memory and Cognition - adults (18-64),Generic Care Packages SW Team - PS,Social Care - Homecare,04/01/2017,3806349,"1,226.98",Excelcare (Home Care Division) LTD
Adults Services,Adult Social Care,Support with Memory and Cognition - adults (18-64),CLDS Longer Term Support Teams,Social Care - Homecare,04/01/2017,3806350,874.2,Excelcare (Home Care Division) LTD
Adults Services,Adult Social Care,Support with Memory and Cognition - adults (18-64),CLDS Longer Term Support Teams,Social Care - Homecare,04/01/2017,3806351,902.4,Excelcare (Home Care Division) LTD
Adults Services,Adult Social Care,Support with Memory and Cognition - adults (18-64),CLDS Longer Term Support Teams,Social Care - Homecare,04/01/2017,3806352,874.2,Excelcare (Home Care Division) LTD
Adults Services,Adult Social Care,Support with Memory and Cognition - adults (18-64),CLDS Longer Term Support Teams,Social Care - Homecare,04/01/2017,3806353,683.85,Excelcare (Home Care Division) LTD
Adults Services,Adult Social Care,Support with Memory and Cognition - adults (18-64),CLDS Longer Term Support Teams,Social Care - Homecare,04/01/2017,3806354,874.2,Excelcare (Home Care Division) LTD
Adults Services,Adult Social Care,Support with Memory and Cognition - adults (18-64),CLDS Longer Term Support Teams,Social Care - Homecare,04/01/2017,3806355,895,Excelcare (Home Care Division) LTD
Adults Services,Adult Social Care,Support with Memory and Cognition - adults (18-64),CLDS Longer Term Support Teams,Social Care - Homecare,04/01/2017,3806356,874.2,Excelcare (Home Care Division) LTD
Adults Services,Adult Social Care,Support with Memory and Cognition - adults (18-64),Generic Care Packages SW Team - PS,Social Care - Residential Care,04/01/2017,3806357,"2,263.13",JEWISH CARE
Adults Services,Adult Social Care,Support with Memory and Cognition - adults (18-64),Generic Care Packages SW Team - PS,Social Care - Residential Care,04/01/2017,3806358,"1,946.58",JEWISH CARE
Adults Services,Adult Social Care,Support with Memory and Cognition - adults (18-64),Generic Care Packages SE Team -PS,Social Care - Nursing Care,04/01/2017,3806359,"1,758.85",JEWISH CARE
Adults Services,Adult Social Care,Support with Memory and Cognition - adults (18-64),Generic Care Packages NE Team -PS,Social Care - Residential Care,04/01/2017,3806360,"2,291.43",JEWISH CARE
Adults Services,Adult Social Care,Support with Memory and Cognition - adults (18-64),CLDS Longer Term Support Teams,Social Care - Homecare,04/01/2017,3806362,874.2,Excelcare (Home Care Division) LTD
Adults Services,Adult Social Care,Support with Memory and Cognition - adults (18-64),CLDS Longer Term Support Teams,Social Care - Homecare,04/01/2017,3806363,874.2,Excelcare (Home Care Division) LTD
Adults Services,Adult Social Care,Support with Memory and Cognition - adults (18-64),CLDS Longer Term Support Teams,Social Care - Homecare,04/01/2017,3806366,874.2,Excelcare (Home Care Division) LTD
Adults Services,Adult Social Care,Support with Memory and Cognition - adults (18-64),CLDS Longer Term Support Teams,Social Care - Residential Care,04/01/2017,3806377,"4,871.34",SHERICO CARE SERVICES LTD
Adults Services,Adult Social Care,Support with Memory and Cognition - adults (18-64),Cmht For Older People,Social Care - Residential Care,04/01/2017,3806378,"2,900.71",Leona Enterprises Ltd
Adults Services,Adult Social Care,Support with Memory and Cognition - adults (18-64),Generic Care Packages NE Team -PS,Social Care - Homecare,04/01/2017,3806379,"1,960.80",COMMUNITY CARE CONSORTIUM
Adults Services,Adult Social Care,Support with Memory and Cognition - adults (18-64),Cmht For Older People,Social Care - Homecare,04/01/2017,3806380,"1,383.20",COMMUNITY CARE CONSORTIUM
Adults Services,Adult Social Care,Support with Memory and Cognition - adults (18-64),Generic Care Packages NE Team -PS,Social Care - Homecare,04/01/2017,3806381,"1,322.40",COMMUNITY CARE CONSORTIUM
Adults Services,Adult Social Care,Support with Memory and Cognition - adults (18-64),CLDS Longer Term Support Teams,Social Care - Homecare,04/01/2017,3806382,"1,299.60",COMMUNITY CARE CONSORTIUM
Adults Services,Adult Social Care,Support with Memory and Cognition - adults (18-64),Generic Care Packages SW Team-SMC,Social Care - Homecare,04/01/2017,3806383,"1,276.80",COMMUNITY CARE CONSORTIUM
Adults Services,Adult Social Care,Support with Memory and Cognition - adults (18-64),Generic Care Packages SW Team - PS,Social Care - Homecare,04/01/2017,3806384,"1,132.40",COMMUNITY CARE CONSORTIUM
Adults Services,Adult Social Care,Support with Memory and Cognition - adults (18-64),Generic Care Packages NW Team -PS,Social Care - Homecare,04/01/2017,3806385,"1,094.40",COMMUNITY CARE CONSORTIUM
Adults Services,Adult Social Care,Support with Memory and Cognition - adults (18-64),CLDS Longer Term Support Teams,Social Care - Homecare,04/01/2017,3806386,"1,079.20",COMMUNITY CARE CONSORTIUM
Adults Services,Adult Social Care,Support with Memory and Cognition - adults (18-64),CLDS Longer Term Support Teams,Social Care - Homecare,04/01/2017,3806387,"1,064.00",COMMUNITY CARE CONSORTIUM
Adults Services,Adult Social Care,Support with Memory and Cognition - adults (18-64),CLDS Longer Term Support Teams,Social Care - Homecare,04/01/2017,3806388,957.6,COMMUNITY CARE CONSORTIUM
Adults Services,Adult Social Care,Support with Memory and Cognition - adults (18-64),CLDS Longer Term Support Teams,Social Care - Homecare,04/01/2017,3806389,896.8,COMMUNITY CARE CONSORTIUM
Adults Services,Adult Social Care,Support with Memory and Cognition - adults (18-64),Generic Care Packages SE Team -PS,Social Care - Homecare,04/01/2017,3806390,851.2,COMMUNITY CARE CONSORTIUM
Adults Services,Adult Social Care,Support with Memory and Cognition - adults (18-64),Generic Care Packages SE Team -PS,Social Care - Homecare,04/01/2017,3806391,813.2,COMMUNITY CARE CONSORTIUM
Adults Services,Adult Social Care,Support with Memory and Cognition - adults (18-64),CLDS Longer Term Support Teams,Social Care - Homecare,04/01/2017,3806392,760,COMMUNITY CARE CONSORTIUM
Adults Services,Adult Social Care,Support with Memory and Cognition - adults (18-64),Generic Care Packages SE Team -PS,Social Care - Homecare,04/01/2017,3806393,752.4,COMMUNITY CARE CONSORTIUM
Adults Services,Adult Social Care,Support with Memory and Cognition - adults (18-64),CLDS Longer Term Support Teams,Social Care - Homecare,04/01/2017,3806394,729.6,COMMUNITY CARE CONSORTIUM
Adults Services,Adult Social Care,Support with Memory and Cognition - adults (18-64),Cmht For Older People,Social Care - Homecare,04/01/2017,3806395,699.2,COMMUNITY CARE CONSORTIUM
Adults Services,Adult Social Care,Support with Memory and Cognition - adults (18-64),CLDS Longer Term Support Teams,Social Care - Homecare,04/01/2017,3806396,638.4,COMMUNITY CARE CONSORTIUM
Adults Services,Adult Social Care,Support with Memory and Cognition - adults (18-64),Generic Care Packages NW Team -PS,Social Care - Homecare,04/01/2017,3806397,623.2,COMMUNITY CARE CONSORTIUM
Adults Services,Adult Social Care,Support with Memory and Cognition - adults (18-64),Generic Care Packages SE Team -PS,Social Care - Homecare,04/01/2017,3806398,623.2,COMMUNITY CARE CONSORTIUM
Adults Services,Adult Social Care,Physical Support - adults (18-64),"Failed Care Package Conversion		",Social Care - Homecare,04/01/2017,3806399,608,COMMUNITY CARE CONSORTIUM
Adults Services,Adult Social Care,Support with Memory and Cognition - adults (18-64),CLDS Longer Term Support Teams,Social Care - Homecare,04/01/2017,3806400,608,COMMUNITY CARE CONSORTIUM
Adults Services,Adult Social Care,Support with Memory and Cognition - adults (18-64),Generic Care Packages SE Team -PS,Social Care - Homecare,04/01/2017,3806401,592.8,COMMUNITY CARE CONSORTIUM
Adults Services,Adult Social Care,Support with Memory and Cognition - adults (18-64),Cmht For Older People,Social Care - Homecare,04/01/2017,3806402,577.6,COMMUNITY CARE CONSORTIUM
Adults Services,Adult Social Care,Support with Memory and Cognition - adults (18-64),CLDS Longer Term Support Teams,Social Care - Homecare,04/01/2017,3806403,577.6,COMMUNITY CARE CONSORTIUM
Adults Services,Adult Social Care,Support with Memory and Cognition - adults (18-64),Generic Care Packages NW Team -PS,Social Care - Homecare,04/01/2017,3806405,562.4,COMMUNITY CARE CONSORTIUM
Adults Services,Adult Social Care,Support with Memory and Cognition - adults (18-64),Generic Care Packages NW Team -PS,Social Care - Homecare,04/01/2017,3806406,547.2,COMMUNITY CARE CONSORTIUM
Adults Services,Adult Social Care,Support with Memory and Cognition - adults (18-64),Generic Care Packages SW Team - PS,Social Care - Homecare,04/01/2017,3806407,524.4,COMMUNITY CARE CONSORTIUM
Adults Services,Adult Social Care,Support with Memory and Cognition - adults (18-64),CLDS Longer Term Support Teams,Social Care - Homecare,04/01/2017,3806408,516.8,COMMUNITY CARE CONSORTIUM
Adults Services,Adult Social Care,Support with Memory and Cognition - adults (18-64),Generic Care Packages NW Team -PS,Social Care - Homecare,04/01/2017,3806409,501.6,COMMUNITY CARE CONSORTIUM
Adults Services,Adult Social Care,Support with Memory and Cognition - adults (18-64),Generic Care Packages NE Team -PS,Social Care - Homecare,04/01/2017,3806464,"2,005.95",COMMUNITY CARE CONSORTIUM
Adults Services,Adult Social Care,Support with Memory and Cognition - adults (18-64),Generic Care Packages SE Team -PS,Social Care - Homecare,04/01/2017,3806465,"1,492.80",COMMUNITY CARE CONSORTIUM
Adults Services,Adult Social Care,Support with Memory and Cognition - adults (18-64),Cmht For Older People,Social Care - Homecare,04/01/2017,3806466,"1,415.05",COMMUNITY CARE CONSORTIUM
Adults Services,Adult Social Care,Support with Memory and Cognition - adults (18-64),Generic Care Packages NE Team -PS,Social Care - Homecare,04/01/2017,3806467,"1,352.85",COMMUNITY CARE CONSORTIUM
Adults Services,Adult Social Care,Support with Memory and Cognition - adults (18-64),Generic Care Packages SW Team-SMC,Social Care - Homecare,04/01/2017,3806468,"1,306.20",COMMUNITY CARE CONSORTIUM
Adults Services,Adult Social Care,Support with Memory and Cognition - adults (18-64),Generic Care Packages SW Team - PS,Social Care - Homecare,04/01/2017,3806469,"1,158.48",COMMUNITY CARE CONSORTIUM
Adults Services,Adult Social Care,Support with Memory and Cognition - adults (18-64),Generic Care Packages NW Team -PS,Social Care - Homecare,04/01/2017,3806470,"1,127.38",COMMUNITY CARE CONSORTIUM
Adults Services,Adult Social Care,Support with Memory and Cognition - adults (18-64),CLDS Longer Term Support Teams,Social Care - Homecare,04/01/2017,3806471,"1,104.05",COMMUNITY CARE CONSORTIUM
Adults Services,Adult Social Care,Support with Memory and Cognition - adults (18-64),CLDS Longer Term Support Teams,Social Care - Homecare,04/01/2017,3806472,"1,088.50",COMMUNITY CARE CONSORTIUM
Adults Services,Adult Social Care,Support with Memory and Cognition - adults (18-64),CLDS Longer Term Support Teams,Social Care - Homecare,04/01/2017,3806473,979.65,COMMUNITY CARE CONSORTIUM
Adults Services,Adult Social Care,Support with Memory and Cognition - adults (18-64),CLDS Longer Term Support Teams,Social Care - Homecare,04/01/2017,3806474,917.45,COMMUNITY CARE CONSORTIUM
Adults Services,Adult Social Care,Support with Memory and Cognition - adults (18-64),Generic Care Packages SE Team -PS,Social Care - Homecare,04/01/2017,3806475,831.93,COMMUNITY CARE CONSORTIUM
Adults Services,Adult Social Care,Support with Memory and Cognition - adults (18-64),Generic Care Packages SE Team -PS,Social Care - Homecare,04/01/2017,3806476,785.28,COMMUNITY CARE CONSORTIUM
Adults Services,Adult Social Care,Support with Memory and Cognition - adults (18-64),CLDS Longer Term Support Teams,Social Care - Homecare,04/01/2017,3806477,777.5,COMMUNITY CARE CONSORTIUM
Adults Services,Adult Social Care,Support with Memory and Cognition - adults (18-64),CLDS Longer Term Support Teams,Social Care - Homecare,04/01/2017,3806478,746.4,COMMUNITY CARE CONSORTIUM
Adults Services,Adult Social Care,Support with Memory and Cognition - adults (18-64),Cmht For Older People,Social Care - Homecare,04/01/2017,3806479,715.3,COMMUNITY CARE CONSORTIUM
Adults Services,Adult Social Care,Support with Memory and Cognition - adults (18-64),CLDS Longer Term Support Teams,Social Care - Homecare,04/01/2017,3806480,653.1,COMMUNITY CARE CONSORTIUM
Adults Services,Adult Social Care,Support with Memory and Cognition - adults (18-64),Generic Care Packages NW Team -PS,Social Care - Homecare,04/01/2017,3806481,637.55,COMMUNITY CARE CONSORTIUM
Adults Services,Adult Social Care,Support with Memory and Cognition - adults (18-64),Generic Care Packages SE Team -PS,Social Care - Homecare,04/01/2017,3806482,629.78,COMMUNITY CARE CONSORTIUM
Adults Services,Adult Social Care,Physical Support - adults (18-64),"Failed Care Package Conversion		",Social Care - Homecare,04/01/2017,3806483,622,COMMUNITY CARE CONSORTIUM
Adults Services,Adult Social Care,Support with Memory and Cognition - adults (18-64),CLDS Longer Term Support Teams,Social Care - Homecare,04/01/2017,3806484,606.45,COMMUNITY CARE CONSORTIUM
Adults Services,Adult Social Care,Support with Memory and Cognition - adults (18-64),Generic Care Packages SE Team -PS,Social Care - Homecare,04/01/2017,3806485,598.68,COMMUNITY CARE CONSORTIUM
Adults Services,Adult Social Care,Support with Memory and Cognition - adults (18-64),CLDS Longer Term Support Teams,Social Care - Homecare,04/01/2017,3806486,590.9,COMMUNITY CARE CONSORTIUM
Adults Services,Adult Social Care,Support with Memory and Cognition - adults (18-64),Generic Care Packages NW Team -PS,Social Care - Homecare,04/01/2017,3806488,575.35,COMMUNITY CARE CONSORTIUM
Adults Services,Adult Social Care,Support with Memory and Cognition - adults (18-64),Generic Care Packages NW Team -PS,Social Care - Homecare,04/01/2017,3806489,559.8,COMMUNITY CARE CONSORTIUM
Adults Services,Adult Social Care,Support with Memory and Cognition - adults (18-64),Generic Care Packages NE Team -PS,Social Care - Homecare,04/01/2017,3806490,544.25,COMMUNITY CARE CONSORTIUM
Adults Services,Adult Social Care,Support with Memory and Cognition - adults (18-64),Cmht For Older People,Social Care - Homecare,04/01/2017,3806491,544.25,COMMUNITY CARE CONSORTIUM
Adults Services,Adult Social Care,Support with Memory and Cognition - adults (18-64),Generic Care Packages SW Team - PS,Social Care - Homecare,04/01/2017,3806492,536.48,COMMUNITY CARE CONSORTIUM
Adults Services,Adult Social Care,Support with Memory and Cognition - adults (18-64),CLDS Longer Term Support Teams,Social Care - Homecare,04/01/2017,3806493,528.7,COMMUNITY CARE CONSORTIUM
Adults Services,Adult Social Care,Physical Support - adults (18-64),"Failed Care Package Conversion		",Social Care - Homecare,04/01/2017,3806494,520.93,COMMUNITY CARE CONSORTIUM
Adults Services,Adult Social Care,Support with Memory and Cognition - adults (18-64),Generic Care Packages NW Team -PS,Social Care - Homecare,04/01/2017,3806495,513.15,COMMUNITY CARE CONSORTIUM
Adults Services,Adult Social Care,Support with Memory and Cognition - adults (18-64),CLDS Longer Term Support Teams,Social Care - Residential Care,04/01/2017,3806550,"6,198.14",NEXUS Programme Ltd
Adults Services,Adult Social Care,Support with Memory and Cognition - adults (18-64),Generic Care Packages SW Team - PS,Social Care - Nursing Care,04/01/2017,3806551,"2,315.19",HAWKINGE HOUSE LTD
Adults Services,Adult Social Care,Support with Memory and Cognition - adults (18-64),CLDS Longer Term Support Teams,Social Care - Day Care,04/01/2017,3806554,"1,166.34",GRACE EYRE FOUNDATION
Adults Services,Adult Social Care,Support with Memory and Cognition - adults (18-64),CLDS Longer Term Support Teams,Social Care - Residential Care,04/01/2017,3806556,"7,364.00",North Down Villa
Adults Services,Adult Social Care,Support with Memory and Cognition - adults (18-64),Generic Care Packages NE Team-SMC,Social Care - Residential Care,04/01/2017,3806557,"3,179.71",Leona Enterprises Ltd
Adults Services,Adult Social Care,Support with Memory and Cognition - adults (18-64),CLDS Longer Term Support Teams,Social Care - Homecare,04/01/2017,3806558,"1,589.20",APASENTH
Adults Services,Adult Social Care,Support with Memory and Cognition - adults (18-64),CLDS Longer Term Support Teams,Social Care - Homecare,04/01/2017,3806559,"1,438.50",APASENTH
Adults Services,Adult Social Care,Support with Memory and Cognition - adults (18-64),CLDS Longer Term Support Teams,Social Care - Homecare,04/01/2017,3806560,"1,315.20",APASENTH
Adults Services,Adult Social Care,Support with Memory and Cognition - adults (18-64),Generic Care Packages NE Team -PS,Social Care - Homecare,04/01/2017,3806561,"1,239.85",APASENTH
Adults Services,Adult Social Care,Support with Memory and Cognition - adults (18-64),Generic Care Packages NW Team -PS,Social Care - Homecare,04/01/2017,3806562,959,APASENTH
Adults Services,Adult Social Care,Support with Memory and Cognition - adults (18-64),CLDS Longer Term Support Teams,Social Care - Homecare,04/01/2017,3806563,904.2,APASENTH
Adults Services,Adult Social Care,Support with Memory and Cognition - adults (18-64),Generic Care Packages NW Team-SMC,Social Care - Homecare,04/01/2017,3806564,876.8,APASENTH
Adults Services,Adult Social Care,Support with Memory and Cognition - adults (18-64),CLDS Longer Term Support Teams,Social Care - Homecare,04/01/2017,3806565,835.7,APASENTH
Adults Services,Adult Social Care,Support with Memory and Cognition - adults (18-64),Generic Care Packages SE Team -PS,Social Care - Homecare,04/01/2017,3806566,767.2,APASENTH
Adults Services,Adult Social Care,Support with Memory and Cognition - adults (18-64),CLDS Longer Term Support Teams,Social Care - Homecare,04/01/2017,3806567,732.95,APASENTH
Adults Services,Adult Social Care,Support with Memory and Cognition - adults (18-64),CLDS Longer Term Support Teams,Social Care - Homecare,04/01/2017,3806568,685,APASENTH
Adults Services,Adult Social Care,Support with Memory and Cognition - adults (18-64),CLDS Longer Term Support Teams,Social Care - Homecare,04/01/2017,3806569,657.6,APASENTH
Adults Services,Adult Social Care,Support with Memory and Cognition - adults (18-64),Generic Care Packages SW Team - PS,Social Care - Homecare,04/01/2017,3806570,650.75,APASENTH
Adults Services,Adult Social Care,Support with Memory and Cognition - adults (18-64),CLDS Longer Term Support Teams,Social Care - Homecare,04/01/2017,3806571,561.7,APASENTH
Adults Services,Adult Social Care,Support with Memory and Cognition - adults (18-64),CLDS Longer Term Support Teams,Social Care - Homecare,04/01/2017,3806572,548,APASENTH
Adults Services,Adult Social Care,Support with Memory and Cognition - adults (18-64),CLDS Longer Term Support Teams,Social Care - Homecare,04/01/2017,3806573,548,APASENTH
Adults Services,Adult Social Care,Support with Memory and Cognition - adults (18-64),CLDS Longer Term Support Teams,Social Care - Homecare,04/01/2017,3806574,548,APASENTH
Adults Services,Adult Social Care,Support with Memory and Cognition - adults (18-64),Generic Care Packages NE Team -PS,Social Care - Homecare,04/01/2017,3806575,527.45,APASENTH
Adults Services,Adult Social Care,Support with Memory and Cognition - adults (18-64),CLDS Longer Term Support Teams,Social Care - Residential Care,04/01/2017,3806694,"7,307.14",DELROSE HOUSE LIMITED
Adults Services,Adult Social Care,Physical Support - adults (18-64),"Carers & Cross Cutting Issues		",Social Care - Prevention & Support - Block,04/01/2017,3806695,"8,050.00",COMMUNITY OF REFUGEES FROM VIETNAM -
Adults Services,Adult Social Care,Physical Support - adults (18-64),"Carers & Cross Cutting Issues		",Social Care - Prevention & Support - Block,04/01/2017,3806696,"8,050.00",COMMUNITY OF REFUGEES FROM VIETNAM -
Adults Services,Adult Social Care,Support with Memory and Cognition - adults (18-64),CLDS Longer Term Support Teams,Social Care - Day Care,04/01/2017,3806708,"1,524.40",POETRY IN WOOD
Adults Services,Adult Social Care,Support with Memory and Cognition - adults (18-64),CLDS Longer Term Support Teams,Social Care - Day Care,04/01/2017,3806710,"1,104.00",POETRY IN WOOD
Adults Services,Adult Social Care,Support with Memory and Cognition - adults (18-64),Cmht For Older People,Social Care - Residential Care,04/01/2017,3806711,"2,300.00",Highcroft Care Home
Adults Services,Adult Social Care,Support with Memory and Cognition - adults (18-64),Generic Care Packages SE Team -PS,Social Care - Homecare,04/01/2017,3806737,927,St Hilda's East Community Centre
Adults Services,Adult Social Care,Support with Memory and Cognition - adults (18-64),Generic Care Packages SE Team -PS,Social Care - Homecare,04/01/2017,3806750,726.15,St Hilda's East Community Centre
Adults Services,Adult Social Care,Support with Memory and Cognition - adults (18-64),Generic Care Packages SW Team - PS,Social Care - Homecare,04/01/2017,3806751,973.35,St Hilda's East Community Centre
Adults Services,Adult Social Care,Support with Memory and Cognition - adults (18-64),Generic Care Packages NW Team -PS,Social Care - Homecare,04/01/2017,3806759,973.35,St Hilda's East Community Centre
Adults Services,Adult Social Care,Support with Memory and Cognition - adults (18-64),Generic Care Packages SW Team - PS,Social Care - Homecare,04/01/2017,3806760,540.75,St Hilda's East Community Centre
Adults Services,Adult Social Care,Support with Memory and Cognition - adults (18-64),Generic Care Packages NE Team -PS,Social Care - Homecare,04/01/2017,3806763,"1,730.40",St Hilda's East Community Centre
Adults Services,Adult Social Care,Support with Memory and Cognition - adults (18-64),"Generic Care Packages SW Team -SS		",Social Care - Homecare,04/01/2017,3806776,509.85,St Hilda's East Community Centre
Adults Services,Adult Social Care,Support with Memory and Cognition - adults (18-64),Generic Care Packages NW Team -PS,Social Care - Homecare,04/01/2017,3806779,"1,313.25",St Hilda's East Community Centre
Adults Services,Adult Social Care,Support with Memory and Cognition - adults (18-64),Generic Care Packages NE Team -PS,Social Care - Homecare,04/01/2017,3806782,641.18,St Hilda's East Community Centre
Adults Services,Adult Social Care,Support with Memory and Cognition - adults (18-64),Generic Care Packages SE Team -PS,Social Care - Homecare,04/01/2017,3806785,525.3,St Hilda's East Community Centre
Adults Services,Adult Social Care,Support with Memory and Cognition - adults (18-64),Generic Care Packages NE Team -PS,Social Care - Home Care (Short Term),04/01/2017,3806794,"2,808.52",SANCTUARY HOME CARE LIMITED
Adults Services,Adult Social Care,Support with Memory and Cognition - adults (18-64),Generic Care Packages NE Team-SMC,Social Care - Home Care (Short Term),04/01/2017,3806800,"1,805.44",SANCTUARY HOME CARE LIMITED
Adults Services,Adult Social Care,Support with Memory and Cognition - adults (18-64),Generic Care Packages NW Team -PS,Social Care - Homecare,04/01/2017,3806801,"3,836.56",SANCTUARY HOME CARE LIMITED
Adults Services,Adult Social Care,Support with Memory and Cognition - adults (18-64),Generic Care Packages NW Team -PS,Social Care - Homecare,04/01/2017,3806808,548.08,SANCTUARY HOME CARE LIMITED
Adults Services,Adult Social Care,Support with Memory and Cognition - adults (18-64),Generic Care Packages SE Team -PS,Social Care - Home Care (Short Term),04/01/2017,3806817,652.86,SANCTUARY HOME CARE LIMITED
Adults Services,Adult Social Care,Support with Memory and Cognition - adults (18-64),Generic Care Packages SW Team - PS,Social Care - Homecare,04/01/2017,3806825,709.28,SANCTUARY HOME CARE LIMITED
Adults Services,Adult Social Care,Support with Memory and Cognition - adults (18-64),Generic Care Packages SE Team -PS,Social Care - Home Care (Short Term),04/01/2017,3806827,507.78,SANCTUARY HOME CARE LIMITED
Adults Services,Adult Social Care,Support with Memory and Cognition - adults (18-64),Generic Care Packages NE Team -PS,Social Care - Homecare,04/01/2017,3806829,564.2,SANCTUARY HOME CARE LIMITED
Adults Services,Adult Social Care,Support with Memory and Cognition - adults (18-64),Generic Care Packages SE Team -PS,Social Care - Homecare,04/01/2017,3806830,"1,289.60",SANCTUARY HOME CARE LIMITED
Adults Services,Adult Social Care,Support with Memory and Cognition - adults (18-64),Generic Care Packages SW Team - PS,Social Care - Home Care (Short Term),04/01/2017,3806831,564.2,SANCTUARY HOME CARE LIMITED
Adults Services,Adult Social Care,Support with Memory and Cognition - adults (18-64),Generic Care Packages SW Team - PS,Social Care - Homecare,04/01/2017,3806833,"1,805.44",SANCTUARY HOME CARE LIMITED
Adults Services,Adult Social Care,Support with Memory and Cognition - adults (18-64),"Generic Care Packages SE Team-MH								",Social Care - Home Care (Short Term),04/01/2017,3806834,531.96,SANCTUARY HOME CARE LIMITED
Adults Services,Adult Social Care,Support with Memory and Cognition - adults (18-64),Generic Care Packages NW Team -PS,Social Care - Home Care (Short Term),04/01/2017,3806836,548.08,SANCTUARY HOME CARE LIMITED
Adults Services,Adult Social Care,Support with Memory and Cognition - adults (18-64),CLDS Longer Term Support Teams,Social Care - Homecare,04/01/2017,3806840,628.68,SANCTUARY HOME CARE LIMITED
Adults Services,Adult Social Care,Support with Memory and Cognition - adults (18-64),Generic Care Packages SW Team - PS,Social Care - Homecare,04/01/2017,3806862,"1,192.88",SANCTUARY HOME CARE LIMITED
Adults Services,Adult Social Care,Support with Memory and Cognition - adults (18-64),Generic Care Packages NE Team -PS,Social Care - Home Care (Short Term),04/01/2017,3806868,"1,547.52",SANCTUARY HOME CARE LIMITED
Adults Services,Adult Social Care,Support with Memory and Cognition - adults (18-64),Generic Care Packages NE Team -PS,Social Care - Home Care (Short Term),04/01/2017,3806870,531.96,SANCTUARY HOME CARE LIMITED
Adults Services,Adult Social Care,Support with Memory and Cognition - adults (18-64),Generic Care Packages SE Team-SMC,Social Care - Homecare,04/01/2017,3806871,531.96,SANCTUARY HOME CARE LIMITED
Adults Services,Adult Social Care,Support with Memory and Cognition - adults (18-64),Generic Care Packages NW Team -PS,Social Care - Homecare,04/01/2017,3806874,677.04,SANCTUARY HOME CARE LIMITED
Adults Services,Adult Social Care,Support with Memory and Cognition - adults (18-64),Generic Care Packages SW Team - PS,Social Care - Homecare,04/01/2017,3806878,"2,470.50",SANCTUARY HOME CARE LIMITED
Adults Services,Adult Social Care,Support with Memory and Cognition - adults (18-64),Generic Care Packages NW Team -PS,Social Care - Homecare,04/01/2017,3806884,634.14,SANCTUARY HOME CARE LIMITED
Adults Services,Adult Social Care,Support with Memory and Cognition - adults (18-64),Generic Care Packages NE Team -PS,Social Care - Homecare,04/01/2017,3806887,634.1,SANCTUARY HOME CARE LIMITED
Adults Services,Adult Social Care,Support with Memory and Cognition - adults (18-64),Generic Care Packages NE Team -PS,Social Care - Homecare,04/01/2017,3806890,568.23,SANCTUARY HOME CARE LIMITED
Adults Services,Adult Social Care,Support with Memory and Cognition - adults (18-64),Generic Care Packages NE Team-SMC,Social Care - Homecare,04/01/2017,3806902,634.12,SANCTUARY HOME CARE LIMITED
Adults Services,Adult Social Care,Support with Memory and Cognition - adults (18-64),Generic Care Packages NW Team -PS,Social Care - Homecare,04/01/2017,3806903,535.28,SANCTUARY HOME CARE LIMITED
Adults Services,Adult Social Care,Support with Memory and Cognition - adults (18-64),Generic Care Packages SW Team - PS,Social Care - Homecare,04/01/2017,3806905,551.76,SANCTUARY HOME CARE LIMITED
Adults Services,Adult Social Care,Support with Memory and Cognition - adults (18-64),Generic Care Packages NE Team -PS,Social Care - Homecare,04/01/2017,3806910,691.76,SANCTUARY HOME CARE LIMITED
Adults Services,Adult Social Care,Support with Memory and Cognition - adults (18-64),CLDS Longer Term Support Teams,Social Care - Homecare,04/01/2017,3806911,510.56,SANCTUARY HOME CARE LIMITED
Adults Services,Adult Social Care,Support with Memory and Cognition - adults (18-64),Generic Care Packages SE Team -PS,Social Care - Home Care (Short Term),04/01/2017,3806922,667.04,SANCTUARY HOME CARE LIMITED
Adults Services,Adult Social Care,Support with Memory and Cognition - adults (18-64),Generic Care Packages SW Team - PS,Social Care - Homecare,04/01/2017,3806930,724.68,SANCTUARY HOME CARE LIMITED
Adults Services,Adult Social Care,Support with Memory and Cognition - adults (18-64),Generic Care Packages NW Team -PS,Social Care - Home Care (Short Term),04/01/2017,3806932,"1,268.20",SANCTUARY HOME CARE LIMITED
Adults Services,Adult Social Care,Support with Memory and Cognition - adults (18-64),Generic Care Packages SE Team -PS,Social Care - Home Care (Short Term),04/01/2017,3806934,518.82,SANCTUARY HOME CARE LIMITED
Adults Services,Adult Social Care,Support with Memory and Cognition - adults (18-64),Generic Care Packages NE Team -PS,Social Care - Homecare,04/01/2017,3806935,576.46,SANCTUARY HOME CARE LIMITED
Adults Services,Adult Social Care,Support with Memory and Cognition - adults (18-64),Generic Care Packages SE Team -PS,Social Care - Homecare,04/01/2017,3806955,"1,444.16",Soma Healthcare Ltd
Adults Services,Adult Social Care,Support with Memory and Cognition - adults (18-64),Generic Care Packages SE Team -PS,Social Care - Homecare,04/01/2017,3806956,"1,755.60",Soma Healthcare Ltd
Adults Services,Adult Social Care,Support with Memory and Cognition - adults (18-64),CLDS Longer Term Support Teams,Social Care - Homecare,04/01/2017,3806958,765.6,Outward Housing
Adults Services,Adult Social Care,Support with Memory and Cognition - adults (18-64),CLDS Longer Term Support Teams,Social Care - Prevention & Support,04/01/2017,3806959,"1,531.20",Outward Housing
Adults Services,Adult Social Care,Support with Memory and Cognition - adults (18-64),CLDS Longer Term Support Teams,Social Care - Homecare,04/01/2017,3806960,535.92,Outward Housing
Adults Services,Adult Social Care,Support with Memory and Cognition - adults (18-64),CLDS Longer Term Support Teams,Social Care - Prevention & Support,04/01/2017,3806961,765.6,Outward Housing
Adults Services,Adult Social Care,Support with Memory and Cognition - adults (18-64),CLDS Longer Term Support Teams,Social Care - Prevention & Support,04/01/2017,3806962,"1,837.44",Outward Housing
Adults Services,Adult Social Care,Support with Memory and Cognition - adults (18-64),CLDS Longer Term Support Teams,Social Care - Homecare,04/01/2017,3806963,"1,147.32",Outward Housing
Adults Services,Adult Social Care,Support with Memory and Cognition - adults (18-64),CLDS Longer Term Support Teams,Social Care - Prevention & Support,04/01/2017,3806964,"1,098.72",Outward Housing
Adults Services,Adult Social Care,Support with Memory and Cognition - adults (18-64),CLDS Longer Term Support Teams,Social Care - Homecare,04/01/2017,3806965,"1,177.20",Outward Housing
Adults Services,Adult Social Care,Support with Memory and Cognition - adults (18-64),CLDS Longer Term Support Teams,Social Care - Homecare,04/01/2017,3806966,"1,005.84",Outward Housing
Adults Services,Adult Social Care,Support with Memory and Cognition - adults (18-64),CLDS Longer Term Support Teams,Social Care - Prevention & Support,04/01/2017,3806967,"1,098.72",Outward Housing
Adults Services,Adult Social Care,Support with Memory and Cognition - adults (18-64),CLDS Longer Term Support Teams,Social Care - Prevention & Support,04/01/2017,3806968,981,Outward Housing
Adults Services,Adult Social Care,Support with Memory and Cognition - adults (18-64),CLDS Longer Term Support Teams,Social Care - Prevention & Support,04/01/2017,3806969,756.77,Outward Housing
Adults Services,Adult Social Care,Support with Memory and Cognition - adults (18-64),CLDS Longer Term Support Teams,Social Care - Homecare,04/01/2017,3806972,"1,186.68",Outward Housing
Adults Services,Adult Social Care,Support with Memory and Cognition - adults (18-64),CLDS Longer Term Support Teams,Social Care - Homecare,04/01/2017,3806973,547.8,Outward Housing
Adults Services,Adult Social Care,Support with Memory and Cognition - adults (18-64),CLDS Longer Term Support Teams,Social Care - Prevention & Support,04/01/2017,3806973,550.92,Outward Housing
Adults Services,Adult Social Care,Physical Support - adults (18-64),"Failed Care Package Conversion		",Social Care - Prevention & Support - Block,04/01/2017,3806980,"3,125.00",Black Women's Health & Family Support
Adults Services,Adult Social Care,Physical Support - adults (18-64),Public Health � Healthy Children & Adolescents,Third Party Payments - Other Establishments,06/01/2017,3794002,"263,486.50",COMPASS WELLBEING CIC
Adults Services,Adult Social Care,Physical Support - adults (18-64),Public Health � Healthy 0-5 year olds,Third Party Payments - Other Establishments,06/01/2017,3794003,"91,708.17",COMPASS WELLBEING CIC
Adults Services,Adult Social Care,Support with Memory and Cognition - adults (18-64),CLDS Longer Term Support Teams,Social Care - Respite Care,06/01/2017,3795996,"1,462.50",QALB Centre Short Break Services
Adults Services,Adult Social Care,Support with Memory and Cognition - adults (18-64),Generic Care Packages SW Team - PS,Social Care - Direct Payments,06/01/2017,3806246,-704.45,DAVID HOWARD LTD CLIENT ACCOUNT
Adults Services,Adult Social Care,Physical Support - adults (18-64),"Carers & Cross Cutting Issues		",Social Care - Prevention & Support - Block,06/01/2017,3809318,"8,050.00",COMMUNITY OF REFUGEES FROM VIETNAM -
Adults Services,Adult Social Care,Physical Support - adults (18-64),"Failed Care Package Conversion		",Social Care - Learning Disabilities,06/01/2017,3809321,"25,796.49",MENCAP
Adults Services,Adult Social Care,Physical Support - adults (18-64),"Failed Care Package Conversion		",Social Care - Learning Disabilities,06/01/2017,3809322,"26,656.37",MENCAP
Adults Services,Adult Social Care,Support with Memory and Cognition - adults (18-64),Cmht Bethnal Green,Social Care - Supported Living,06/01/2017,3809324,"3,603.81",J M CAREHOMES LIMITED
Adults Services,Adult Social Care,Support with Memory and Cognition - adults (18-64),Generic Care Packages SW Team - PS,Social Care - Residential Care,06/01/2017,3809325,"2,892.90",Rowallan House
Adults Services,Adult Social Care,Support with Memory and Cognition - adults (18-64),Generic Care Packages NE Team -SP,Social Care - Residential Care,06/01/2017,3809326,"1,600.56",Sir Josiah Mason's Care Charity
Adults Services,Adult Social Care,Support with Memory and Cognition - adults (18-64),Generic Care Packages SW Team - PS,Social Care - Residential Care,06/01/2017,3809329,"2,989.33",Rowallan House
Adults Services,Adult Social Care,Support with Memory and Cognition - adults (18-64),CLDS Longer Term Support Teams,Social Care - Day Care,06/01/2017,3809334,"2,720.00",ST MARKS DAY SERVICE
Adults Services,Adult Social Care,Support with Memory and Cognition - adults (18-64),CLDS Longer Term Support Teams,Social Care - Residential Care,06/01/2017,3809335,"6,755.83",INDEPENDENCE HOMES LTD
Adults Services,Adult Social Care,Support with Memory and Cognition - adults (18-64),Cmht For Older People,Social Care - Supported Living,06/01/2017,3809336,"2,505.07",J M CAREHOMES LIMITED
Adults Services,Adult Social Care,Support with Memory and Cognition - adults (18-64),CLDS Longer Term Support Teams,Social Care - Supported Living,06/01/2017,3809338,"4,476.71",HOLMLEIGH CARE HOMES LTD
Adults Services,Adult Social Care,Support with Memory and Cognition - adults (18-64),Generic Care Packages NE Team -PS,Social Care - Homecare,06/01/2017,3809339,516.65,Excelcare (Home Care Division) LTD
Adults Services,Adult Social Care,Support with Memory and Cognition - adults (18-64),Generic Care Packages NE Team -PS,Social Care - Homecare,06/01/2017,3809341,516.65,Excelcare (Home Care Division) LTD
Adults Services,Adult Social Care,Support with Memory and Cognition - adults (18-64),CLDS Longer Term Support Teams,Social Care - Homecare,06/01/2017,3809347,"1,743.33",MEARS CARE LTD
Adults Services,Adult Social Care,Support with Memory and Cognition - adults (18-64),CLDS Longer Term Support Teams,Social Care - Homecare,06/01/2017,3809348,"2,647.77",MEARS CARE LTD
Adults Services,Adult Social Care,Support with Memory and Cognition - adults (18-64),CLDS Longer Term Support Teams,Social Care - Homecare,06/01/2017,3809351,"1,743.33",MEARS CARE LTD
Adults Services,Adult Social Care,Support with Memory and Cognition - adults (18-64),CLDS Longer Term Support Teams,Social Care - Homecare,06/01/2017,3809352,"2,599.80",MEARS CARE LTD
Adults Services,Adult Social Care,Support with Memory and Cognition - adults (18-64),CLDS Longer Term Support Teams,Social Care - Homecare,06/01/2017,3809354,"2,599.80",MEARS CARE LTD
Adults Services,Adult Social Care,Support with Memory and Cognition - adults (18-64),Generic Care Packages SE Team -PS,Social Care - Homecare,06/01/2017,3809363,605.8,Excelcare (Home Care Division) LTD
Adults Services,Adult Social Care,Support with Memory and Cognition - adults (18-64),Generic Care Packages SW Team - PS,Social Care - Homecare,06/01/2017,3809375,"1,872.30",Excelcare (Home Care Division) LTD
Adults Services,Adult Social Care,Support with Memory and Cognition - adults (18-64),Generic Care Packages NW Team -PS,Social Care - Homecare,06/01/2017,3809377,620.06,Excelcare (Home Care Division) LTD
Adults Services,Adult Social Care,Support with Memory and Cognition - adults (18-64),Generic Care Packages SE Team -PS,Social Care - Homecare,06/01/2017,3809379,538.11,Excelcare (Home Care Division) LTD
Adults Services,Adult Social Care,Support with Memory and Cognition - adults (18-64),Generic Care Packages SE Team -PS,Social Care - Homecare,06/01/2017,3809383,541.72,Excelcare (Home Care Division) LTD
Adults Services,Adult Social Care,Support with Memory and Cognition - adults (18-64),Generic Care Packages NW Team -SP,Social Care - Homecare,06/01/2017,3809384,"1,126.10",Excelcare (Home Care Division) LTD
Adults Services,Adult Social Care,Support with Memory and Cognition - adults (18-64),Generic Care Packages SE Team -PS,Social Care - Homecare,06/01/2017,3809390,783.82,Excelcare (Home Care Division) LTD
Adults Services,Adult Social Care,Support with Memory and Cognition - adults (18-64),Generic Care Packages SW Team - PS,Social Care - Homecare,06/01/2017,3809393,"1,212.88",Excelcare (Home Care Division) LTD
Adults Services,Adult Social Care,Support with Memory and Cognition - adults (18-64),Generic Care Packages SE Team -SP,Social Care - Homecare,06/01/2017,3809395,534.54,Excelcare (Home Care Division) LTD
Adults Services,Adult Social Care,Support with Memory and Cognition - adults (18-64),Generic Care Packages SW Team - PS,Social Care - Homecare,06/01/2017,3809400,726.82,Excelcare (Home Care Division) LTD
Adults Services,Adult Social Care,Support with Memory and Cognition - adults (18-64),Generic Care Packages SW Team - PS,Social Care - Homecare,06/01/2017,3809404,691.04,Excelcare (Home Care Division) LTD
Adults Services,Adult Social Care,Support with Memory and Cognition - adults (18-64),Generic Care Packages SW Team - PS,Social Care - Homecare,06/01/2017,3809412,818.22,Excelcare (Home Care Division) LTD
Adults Services,Adult Social Care,Support with Memory and Cognition - adults (18-64),Generic Care Packages NE Team -PS,Social Care - Homecare,06/01/2017,3809414,888.44,Excelcare (Home Care Division) LTD
Adults Services,Adult Social Care,Support with Memory and Cognition - adults (18-64),Generic Care Packages NW Team -PS,Social Care - Homecare,06/01/2017,3809415,"1,218.62",Excelcare (Home Care Division) LTD
Adults Services,Adult Social Care,Support with Memory and Cognition - adults (18-64),CLDS Longer Term Support Teams,Social Care - Homecare,06/01/2017,3809418,817.8,Excelcare (Home Care Division) LTD
Adults Services,Adult Social Care,Support with Memory and Cognition - adults (18-64),Generic Care Packages SE Team -PS,Social Care - Homecare,06/01/2017,3809419,605.8,Excelcare (Home Care Division) LTD
Adults Services,Adult Social Care,Support with Memory and Cognition - adults (18-64),Generic Care Packages NW Team -PS,Social Care - Homecare,06/01/2017,3809426,"2,265.80",Excelcare (Home Care Division) LTD
Adults Services,Adult Social Care,Support with Memory and Cognition - adults (18-64),Generic Care Packages SE Team -PS,Social Care - Homecare,06/01/2017,3809450,"4,088.00",Excelcare (Home Care Division) LTD
Adults Services,Adult Social Care,Support with Memory and Cognition - adults (18-64),Generic Care Packages NW Team -PS,Social Care - Homecare,06/01/2017,3809460,634.5,Excelcare (Home Care Division) LTD
Adults Services,Adult Social Care,Support with Memory and Cognition - adults (18-64),Generic Care Packages SE Team -PS,Social Care - Home Care (Short Term),06/01/2017,3809463,761.54,Excelcare (Home Care Division) LTD
Adults Services,Adult Social Care,Support with Memory and Cognition - adults (18-64),Generic Care Packages SW Team - PS,Social Care - Homecare,06/01/2017,3809464,535.8,Excelcare (Home Care Division) LTD
Adults Services,Adult Social Care,Support with Memory and Cognition - adults (18-64),Generic Care Packages NE Team -PS,Social Care - Homecare,06/01/2017,3809465,588.88,Excelcare (Home Care Division) LTD
Adults Services,Adult Social Care,Support with Memory and Cognition - adults (18-64),Generic Care Packages SE Team -PS,Social Care - Homecare,06/01/2017,3809467,"1,396.64",Excelcare (Home Care Division) LTD
Adults Services,Adult Social Care,Support with Memory and Cognition - adults (18-64),Generic Care Packages SE Team -PS,Social Care - Home Care (Short Term),06/01/2017,3809469,"2,227.82",Excelcare (Home Care Division) LTD
Adults Services,Adult Social Care,Support with Memory and Cognition - adults (18-64),CLDS Longer Term Support Teams,Social Care - Homecare,06/01/2017,3809470,"1,762.58",Excelcare (Home Care Division) LTD
Adults Services,Adult Social Care,Support with Memory and Cognition - adults (18-64),Generic Care Packages SE Team -PS,Social Care - Homecare,06/01/2017,3809471,"1,156.34",Excelcare (Home Care Division) LTD
Adults Services,Adult Social Care,Physical Support - adults (18-64),"Failed Care Package Conversion		",Social Care - Homecare,06/01/2017,3809477,"1,184.40",Excelcare (Home Care Division) LTD
Adults Services,Adult Social Care,Support with Memory and Cognition - adults (18-64),CLDS Longer Term Support Teams,Social Care - Homecare,06/01/2017,3809478,798.16,Excelcare (Home Care Division) LTD
Adults Services,Adult Social Care,Support with Memory and Cognition - adults (18-64),CLDS Longer Term Support Teams,Social Care - Homecare,06/01/2017,3809480,"3,161.80",Excelcare (Home Care Division) LTD
Adults Services,Adult Social Care,Support with Memory and Cognition - adults (18-64),CLDS Longer Term Support Teams,Social Care - Homecare,06/01/2017,3809482,"4,088.02",Excelcare (Home Care Division) LTD
Adults Services,Adult Social Care,Support with Memory and Cognition - adults (18-64),Generic Care Packages SE Team -PS,Social Care - Homecare,06/01/2017,3809489,987.28,Excelcare (Home Care Division) LTD
Adults Services,Adult Social Care,Support with Memory and Cognition - adults (18-64),Generic Care Packages NW Team -PS,Social Care - Homecare,06/01/2017,3809495,509.72,Excelcare (Home Care Division) LTD
Adults Services,Adult Social Care,Support with Memory and Cognition - adults (18-64),CLDS Longer Term Support Teams,Social Care - Residential Care,06/01/2017,3809496,"-4,205.55",MENCAP
Adults Services,Adult Social Care,Physical Support - adults (18-64),"Failed Care Package Conversion		",Social Care - Extra Care Sheltered Housing,06/01/2017,3809498,"56,424.16",Creative Support
Adults Services,Adult Social Care,Support with Memory and Cognition - adults (18-64),Generic Care Packages SE Team -PS,Social Care - Direct Payments,06/01/2017,3809500,"3,214.73",DAVID HOWARD LTD CLIENT ACCOUNT
Adults Services,Adult Social Care,Support with Memory and Cognition - adults (18-64),CLDS Longer Term Support Teams,Social Care - Residential Care,06/01/2017,3809506,"1,600.00",SAHARA HOMES LIMITED
Adults Services,Adult Social Care,Support with Memory and Cognition - adults (18-64),CLDS Longer Term Support Teams,Social Care - Day Care,06/01/2017,3809507,"1,681.94",CRAEGMOOR HEALTHCARE
Adults Services,Adult Social Care,Support with Memory and Cognition - adults (18-64),CLDS Longer Term Support Teams,Social Care - Residential Care,06/01/2017,3809508,"2,774.94",CRAEGMOOR HEALTHCARE
Adults Services,Adult Social Care,Physical Support - adults (18-64),"Failed Care Package Conversion		",Social Care - Others,06/01/2017,3809509,"1,778.68",ANCHOR TRUST HOMES ACCOUNT
Adults Services,Adult Social Care,Support with Memory and Cognition - adults (18-64),Generic Care Packages SE Team -PS,Social Care - Homecare,06/01/2017,3809510,"4,421.72",Bluebird Care (Enfield)
Adults Services,Adult Social Care,Support with Memory and Cognition - adults (18-64),CLDS Longer Term Support Teams,Social Care - Residential Care,06/01/2017,3809511,"3,099.08",Wallace Crescent
Adults Services,Adult Social Care,Support with Memory and Cognition - adults (18-64),CLDS Transition,Social Care - Residential Care,06/01/2017,3809511,"6,508.04",Wallace Crescent
Adults Services,Adult Social Care,Support with Memory and Cognition - adults (18-64),Generic Care Packages SE Team -PS,Social Care - Homecare,06/01/2017,3809524,943.75,SEVACARE UK LTD
Adults Services,Adult Social Care,Support with Memory and Cognition - adults (18-64),Generic Care Packages NW Team -PS,Social Care - Homecare,06/01/2017,3809529,739.9,SEVACARE UK LTD
Adults Services,Adult Social Care,Support with Memory and Cognition - adults (18-64),Generic Care Packages SW Team - PS,Social Care - Homecare,06/01/2017,3809544,611.55,SEVACARE UK LTD
Adults Services,Adult Social Care,Support with Memory and Cognition - adults (18-64),Generic Care Packages NW Team -PS,Social Care - Home Care (Short Term),06/01/2017,3809554,581.35,SEVACARE UK LTD
Adults Services,Adult Social Care,Support with Memory and Cognition - adults (18-64),Generic Care Packages NW Team -PS,Social Care - Homecare,06/01/2017,3809555,513.4,SEVACARE UK LTD
Adults Services,Adult Social Care,Support with Memory and Cognition - adults (18-64),Generic Care Packages NE Team -PS,Social Care - Home Care (Short Term),06/01/2017,3809556,520.95,SEVACARE UK LTD
Adults Services,Adult Social Care,Support with Memory and Cognition - adults (18-64),Generic Care Packages SE Team -PS,Social Care - Home Care (Short Term),06/01/2017,3809557,705.93,SEVACARE UK LTD
Adults Services,Adult Social Care,Support with Memory and Cognition - adults (18-64),Generic Care Packages SW Team - PS,Social Care - Homecare,06/01/2017,3809562,"1,683.65",SEVACARE UK LTD
Adults Services,Adult Social Care,Support with Memory and Cognition - adults (18-64),CLDS Longer Term Support Teams,Social Care - Residential Care,06/01/2017,3809566,"1,927.89",The Mount
Adults Services,Adult Social Care,Support with Memory and Cognition - adults (18-64),Generic Care Packages NW Team -PS,Social Care - Residential Care,06/01/2017,3809568,"3,428.57",Dalton Court Care Home
Adults Services,Adult Social Care,Support with Memory and Cognition - adults (18-64),CLDS Longer Term Support Teams,Social Care - Supported Living,06/01/2017,3809569,"6,441.91",Transitions Living
Adults Services,Adult Social Care,Support with Memory and Cognition - adults (18-64),CLDS Longer Term Support Teams,Social Care - Homecare,06/01/2017,3809570,"1,503.80",COMMUNITY CARE CONSORTIUM
Adults Services,Adult Social Care,Support with Memory and Cognition - adults (18-64),Generic Care Packages NW Team -PS,Social Care - Homecare,06/01/2017,3809571,635.1,COMMUNITY CARE CONSORTIUM
Adults Services,Adult Social Care,Support with Memory and Cognition - adults (18-64),Generic Care Packages NW Team -PS,Social Care - Homecare,06/01/2017,3809573,650.33,COMMUNITY CARE CONSORTIUM
Adults Services,Adult Social Care,Support with Memory and Cognition - adults (18-64),Generic Care Packages SE Team -PS,Social Care - Home Care (Short Term),06/01/2017,3809601,-570.3,SEVACARE UK LTD
Adults Services,Adult Social Care,Support with Memory and Cognition - adults (18-64),Generic Care Packages SW Team - PS,Social Care - Nursing Care,06/01/2017,3809602,"11,863.39",CRANHAM COURT NURSING HOME
Adults Services,Adult Social Care,Support with Memory and Cognition - adults (18-64),Generic Care Packages SW Team - PS,Social Care - Nursing Care,06/01/2017,3809605,"2,392.36",HAWKINGE HOUSE LTD
Adults Services,Adult Social Care,Support with Memory and Cognition - adults (18-64),Generic Care Packages SW Team - PS,Social Care - Nursing Care,06/01/2017,3809606,"4,849.41",Highgate Nursing Home (BUPA)
Adults Services,Adult Social Care,Support with Memory and Cognition - adults (18-64),Generic Care Packages SW Team-SMC,Social Care - Nursing Care,06/01/2017,3809608,"4,457.23",Havelock Court (Bupa)
Adults Services,Adult Social Care,Support with Memory and Cognition - adults (18-64),Generic Care Packages SW Team-SMC,Social Care - Nursing Care,06/01/2017,3809609,"4,605.80",Havelock Court (Bupa)
Adults Services,Adult Social Care,Support with Memory and Cognition - adults (18-64),Generic Care Packages SW Team-SMC,Social Care - Nursing Care,06/01/2017,3809610,"4,457.23",Havelock Court (Bupa)
Adults Services,Adult Social Care,Support with Memory and Cognition - adults (18-64),CLDS Longer Term Support Teams,Social Care - Day Care,06/01/2017,3809611,"1,426.00",POETRY IN WOOD
Adults Services,Adult Social Care,Support with Memory and Cognition - adults (18-64),Cmht For Older People,Social Care - Residential Care,06/01/2017,3809614,"3,203.57",Highcroft Care Home
Adults Services,Adult Social Care,Support with Memory and Cognition - adults (18-64),Cmht For Older People,Social Care - Residential Care,06/01/2017,3809615,"2,300.00",Highcroft Care Home
Adults Services,Adult Social Care,Support with Memory and Cognition - adults (18-64),Cmht For Older People,Social Care - Residential Care,06/01/2017,3809616,"2,300.00",Highcroft Care Home
Adults Services,Adult Social Care,Support with Memory and Cognition - adults (18-64),Cmht For Older People,Social Care - Residential Care,06/01/2017,3809617,"2,300.00",Highcroft Care Home
Adults Services,Adult Social Care,Support with Memory and Cognition - adults (18-64),Generic Care Packages SE Team -PS,Social Care - Homecare,06/01/2017,3809623,927,St Hilda's East Community Centre
Adults Services,Adult Social Care,Support with Memory and Cognition - adults (18-64),Generic Care Packages SE Team -PS,Social Care - Homecare,06/01/2017,3809626,726.15,St Hilda's East Community Centre
Adults Services,Adult Social Care,Support with Memory and Cognition - adults (18-64),Generic Care Packages NE Team -PS,Social Care - Homecare,06/01/2017,3809632,641.18,St Hilda's East Community Centre
Adults Services,Adult Social Care,Support with Memory and Cognition - adults (18-64),Generic Care Packages SE Team -PS,Social Care - Homecare,06/01/2017,3809633,525.3,St Hilda's East Community Centre
Adults Services,Adult Social Care,Support with Memory and Cognition - adults (18-64),Generic Care Packages SE Team -PS,Social Care - Residential Care,06/01/2017,3809634,"1,269.80",RUNWOOD HOMES PLC
Adults Services,Adult Social Care,Support with Memory and Cognition - adults (18-64),Generic Care Packages NE Team -PS,Social Care - Homecare,06/01/2017,3809635,677.04,SANCTUARY HOME CARE LIMITED
Adults Services,Adult Social Care,Support with Memory and Cognition - adults (18-64),Generic Care Packages SW Team - PS,Social Care - Homecare,06/01/2017,3809643,"2,821.00",SANCTUARY HOME CARE LIMITED
Adults Services,Adult Social Care,Support with Memory and Cognition - adults (18-64),Generic Care Packages SW Team - PS,Social Care - Home Care (Short Term),06/01/2017,3809645,507.78,SANCTUARY HOME CARE LIMITED
Adults Services,Adult Social Care,Support with Memory and Cognition - adults (18-64),Generic Care Packages NW Team -PS,Social Care - Homecare,06/01/2017,3809661,601.26,SANCTUARY HOME CARE LIMITED
Adults Services,Adult Social Care,Support with Memory and Cognition - adults (18-64),Generic Care Packages NE Team -PS,Social Care - Homecare,06/01/2017,3809663,620.62,SANCTUARY HOME CARE LIMITED
Adults Services,Adult Social Care,Support with Memory and Cognition - adults (18-64),Generic Care Packages NE Team -PS,Social Care - Homecare,06/01/2017,3809666,556.14,SANCTUARY HOME CARE LIMITED
Adults Services,Adult Social Care,Support with Memory and Cognition - adults (18-64),Generic Care Packages SE Team -PS,Social Care - Homecare,06/01/2017,3809679,668.98,SANCTUARY HOME CARE LIMITED
Adults Services,Adult Social Care,Support with Memory and Cognition - adults (18-64),Generic Care Packages SW Team - PS,Social Care - Homecare,06/01/2017,3809681,507.78,SANCTUARY HOME CARE LIMITED
Adults Services,Adult Social Care,Support with Memory and Cognition - adults (18-64),Generic Care Packages SW Team-SMC,Social Care - Homecare,06/01/2017,3809682,"1,418.56",SANCTUARY HOME CARE LIMITED
Adults Services,Adult Social Care,Support with Memory and Cognition - adults (18-64),Generic Care Packages NW Team -PS,Social Care - Homecare,06/01/2017,3809684,773.76,SANCTUARY HOME CARE LIMITED
Adults Services,Adult Social Care,Support with Memory and Cognition - adults (18-64),Generic Care Packages NE Team-SMC,Social Care - Homecare,06/01/2017,3809690,620.62,SANCTUARY HOME CARE LIMITED
Adults Services,Adult Social Care,Support with Memory and Cognition - adults (18-64),Generic Care Packages NW Team -PS,Social Care - Homecare,06/01/2017,3809691,523.9,SANCTUARY HOME CARE LIMITED
Adults Services,Adult Social Care,Support with Memory and Cognition - adults (18-64),Generic Care Packages SW Team - PS,Social Care - Homecare,06/01/2017,3809693,540.02,SANCTUARY HOME CARE LIMITED
Adults Services,Adult Social Care,Support with Memory and Cognition - adults (18-64),Generic Care Packages SW Team - PS,Social Care - Home Care (Short Term),06/01/2017,3809703,507.78,SANCTUARY HOME CARE LIMITED
Adults Services,Adult Social Care,Support with Memory and Cognition - adults (18-64),Generic Care Packages NE Team -PS,Social Care - Homecare,06/01/2017,3809706,677.04,SANCTUARY HOME CARE LIMITED
Adults Services,Adult Social Care,Support with Memory and Cognition - adults (18-64),Generic Care Packages SW Team - PS,Social Care - Homecare,06/01/2017,3809710,507.78,SANCTUARY HOME CARE LIMITED
Adults Services,Adult Social Care,Support with Memory and Cognition - adults (18-64),Generic Care Packages SE Team -PS,Social Care - Homecare,06/01/2017,3809712,540.02,SANCTUARY HOME CARE LIMITED
Adults Services,Adult Social Care,Support with Memory and Cognition - adults (18-64),Generic Care Packages NE Team-SMC,Social Care - Home Care (Short Term),06/01/2017,3809717,515.84,SANCTUARY HOME CARE LIMITED
Adults Services,Adult Social Care,Support with Memory and Cognition - adults (18-64),Generic Care Packages SE Team -PS,Social Care - Homecare,06/01/2017,3809723,515.84,SANCTUARY HOME CARE LIMITED
Adults Services,Adult Social Care,Support with Memory and Cognition - adults (18-64),Generic Care Packages SW Team - PS,Social Care - Homecare,06/01/2017,3809731,"1,015.56",SANCTUARY HOME CARE LIMITED
Adults Services,Adult Social Care,Support with Memory and Cognition - adults (18-64),Generic Care Packages SE Team -PS,Social Care - Homecare,06/01/2017,3809733,515.84,SANCTUARY HOME CARE LIMITED
Adults Services,Adult Social Care,Support with Memory and Cognition - adults (18-64),Generic Care Packages NW Team -PS,Social Care - Homecare,06/01/2017,3809734,596.44,SANCTUARY HOME CARE LIMITED
Adults Services,Adult Social Care,Physical Support - adults (18-64),"Failed Care Package Conversion		",Social Care - Homecare,06/01/2017,3809740,507.78,SANCTUARY HOME CARE LIMITED
Adults Services,Adult Social Care,Support with Memory and Cognition - adults (18-64),Generic Care Packages NW Team -PS,Social Care - Homecare,06/01/2017,3809742,504.9,Soma Healthcare Ltd
Adults Services,Adult Social Care,Support with Memory and Cognition - adults (18-64),Generic Care Packages NW Team -PS,Social Care - Homecare,06/01/2017,3809743,556.88,Soma Healthcare Ltd
Adults Services,Adult Social Care,Support with Memory and Cognition - adults (18-64),Generic Care Packages NW Team -PS,Social Care - Homecare,06/01/2017,3809745,556.88,Soma Healthcare Ltd
Adults Services,Adult Social Care,Support with Memory and Cognition - adults (18-64),Generic Care Packages NW Team -PS,Social Care - Homecare,06/01/2017,3809748,564.3,Soma Healthcare Ltd
Adults Services,Adult Social Care,Support with Memory and Cognition - adults (18-64),Generic Care Packages NW Team -PS,Social Care - Homecare,06/01/2017,3809751,504.9,Soma Healthcare Ltd
Adults Services,Adult Social Care,Support with Memory and Cognition - adults (18-64),Generic Care Packages NW Team -PS,Social Care - Homecare,06/01/2017,3809752,516.8,Soma Healthcare Ltd
Adults Services,Adult Social Care,Support with Memory and Cognition - adults (18-64),Generic Care Packages NW Team -PS,Social Care - Homecare,06/01/2017,3809753,503.47,Soma Healthcare Ltd
Adults Services,Adult Social Care,Support with Memory and Cognition - adults (18-64),Generic Care Packages NW Team -PS,Social Care - Homecare,06/01/2017,3809754,512.33,Soma Healthcare Ltd
Adults Services,Adult Social Care,Support with Memory and Cognition - adults (18-64),Generic Care Packages NW Team -PS,Social Care - Homecare,06/01/2017,3809755,519.75,Soma Healthcare Ltd
Adults Services,Adult Social Care,Support with Memory and Cognition - adults (18-64),Generic Care Packages NW Team -PS,Social Care - Homecare,06/01/2017,3809757,576.86,Soma Healthcare Ltd
Adults Services,Adult Social Care,Support with Memory and Cognition - adults (18-64),Generic Care Packages NW Team -PS,Social Care - Home Care (Short Term),06/01/2017,3809758,"2,501.20",AQUAFLO CARE LTD
Adults Services,Adult Social Care,Support with Memory and Cognition - adults (18-64),Cmht Bethnal Green,Social Care - Supported Living,09/01/2017,3794656,"2,000.00",SHANTI HEALTHCARE LTD
Adults Services,Adult Social Care,Support with Memory and Cognition - adults (18-64),Cmht Bethnal Green,Social Care - Supported Living,09/01/2017,3794657,"2,142.86",SHANTI HEALTHCARE LTD
Adults Services,Adult Social Care,Support with Memory and Cognition - adults (18-64),Cmht Bethnal Green,Social Care - Supported Living,09/01/2017,3794658,"2,214.29",SHANTI HEALTHCARE LTD
Adults Services,Adult Social Care,Support with Memory and Cognition - adults (18-64),Generic Care Packages NW Team -PS,Social Care - Residential Care,09/01/2017,3798277,"1,137.00",Forest Drive Residential Home Ltd
Adults Services,Adult Social Care,Physical Support - adults (18-64),Adult Protection Team,Services - Professional Fees - Consultants Fees,09/01/2017,3798612,"8,148.39",OYE Ltd
Adults Services,Adult Social Care,Support with Memory and Cognition - adults (18-64),Generic Care Packages SW Team - PS,Social Care - Residential Care,09/01/2017,3806361,"1,806.59",JEWISH CARE
Adults Services,Adult Social Care,Support with Memory and Cognition - adults (18-64),Generic Care Packages NW Team -PS,Social Care - Residential Care,09/01/2017,3809356,"3,764.29",OULTON PARK CARE CENTRE
Adults Services,Adult Social Care,Support with Memory and Cognition - adults (18-64),Generic Care Packages NW Team -PS,Social Care - Residential Care,11/01/2017,3797726,"3,365.71",Federation of Jewish Services
Adults Services,Adult Social Care,Support with Memory and Cognition - adults (18-64),Generic Care Packages NW Team -PS,Social Care - Residential Care,11/01/2017,3798274,"2,258.57",ROSE COURT
Adults Services,Adult Social Care,Support with Memory and Cognition - adults (18-64),Generic Care Packages SE Team -SP,Non Staff Transport Costs - Client Transport Costs,11/01/2017,3800468,600,Abacus Ambulance Service
Adults Services,Adult Social Care,Physical Support - adults (18-64),"Failed Care Package Conversion		",Social Care - Prevention & Support - Block,11/01/2017,3800689,"3,125.00",London Buddhist Centre
Adults Services,Adult Social Care,Physical Support - adults (18-64),Fides Care,Healthy & Safety Supplies,11/01/2017,3800863,838,Praetorian Disposable Products Ltd
Adults Services,Adult Social Care,Physical Support - adults (18-64),Public Health � Healthy 0-5 year olds,Third Party Payments - Voluntary Associations,11/01/2017,3804882,"7,500.00",Island House Community Centre
Adults Services,Adult Social Care,Physical Support - adults (18-64),Public Health � Healthy 0-5 year olds,Third Party Payments - Voluntary Associations,11/01/2017,3804883,"10,000.00",Island House Community Centre
Adults Services,Adult Social Care,Support with Memory and Cognition - adults (18-64),CLDS Longer Term Support Teams,Social Care - Day Care,11/01/2017,3806256,"1,076.16",Somerset County Council
Adults Services,Adult Social Care,Support with Memory and Cognition - adults (18-64),CLDS Longer Term Support Teams,Social Care - Day Care,11/01/2017,3806257,"1,210.68",Somerset County Council
Adults Services,Adult Social Care,Physical Support - adults (18-64),Public Health � Healthy Middle Age & Older People.,Payments to Private Contractors - Other Contractors,11/01/2017,3809063,883.08,Chapel Pharmacy
Adults Services,No Service Specified,No Division Specified,Community Equipment Store,Community Equipment  Supplies - Aids and Appliances,11/01/2017,3810555,539.98,Laville Ltd t/a BRITANNIA PHARMACY
Adults Services,No Service Specified,No Division Specified,Community Equipment Store,Community Equipment  Supplies - Aids and Appliances,11/01/2017,3810566,"1,750.83",SINCLAIR PHARMACY
Adults Services,No Service Specified,No Division Specified,Community Equipment Store,Community Equipment  Supplies - Aids and Appliances,11/01/2017,3810571,561.86,MILDCARE LTD
Adults Services,No Service Specified,No Division Specified,Community Equipment Store,Community Equipment  Supplies - Aids and Appliances,11/01/2017,3810572,515.56,FLORIDA PHARMACY
Adults Services,No Service Specified,No Division Specified,Community Equipment Store,Community Equipment  Supplies - Aids and Appliances,11/01/2017,3810590,"3,194.75",Cubitt Town Pharmacy
Adults Services,No Service Specified,No Division Specified,Community Equipment Store,Community Equipment  Supplies - Aids and Appliances,11/01/2017,3810593,"1,841.17",SINCLAIR PHARMACY
Adults Services,No Service Specified,No Division Specified,Community Equipment Store,Community Equipment  Supplies - Aids and Appliances,11/01/2017,3810596,"4,049.87",Jaypharm Chemist
Adults Services,No Service Specified,No Division Specified,Community Equipment Store,Community Equipment  Supplies - Aids and Appliances,11/01/2017,3810599,"1,032.10",Medichem (Bright Bridge Ltd)
Adults Services,No Service Specified,No Division Specified,Community Equipment Store,Community Equipment  Supplies - Aids and Appliances,11/01/2017,3810600,"2,475.33",Cubitt Town Pharmacy
Adults Services,No Service Specified,No Division Specified,Community Equipment Store,Community Equipment  Supplies - Aids and Appliances,11/01/2017,3810605,503.45,D M B CHEMIST
Adults Services,Adult Social Care,Support with Memory and Cognition - adults (18-64),CLDS Longer Term Support Teams,Social Care - Day Care,11/01/2017,3810736,565.66,HOFFMANN FOUNDATION FOR AUTISM
Adults Services,Adult Social Care,Support with Memory and Cognition - adults (18-64),Generic Care Packages SW Team - PS,Social Care - Residential Care,11/01/2017,3810742,"2,892.90",Rowallan House
Adults Services,Adult Social Care,Support with Memory and Cognition - adults (18-64),Generic Care Packages NE Team -PS,Social Care - Homecare,11/01/2017,3810757,833.91,ATHLONE CARE LTD
Adults Services,Adult Social Care,Support with Memory and Cognition - adults (18-64),Generic Care Packages NE Team -PS,Social Care - Homecare,11/01/2017,3810759,"1,249.06",ATHLONE CARE LTD
Adults Services,Adult Social Care,Support with Memory and Cognition - adults (18-64),Generic Care Packages NW Team -PS,Social Care - Homecare,11/01/2017,3810770,577.6,ATHLONE CARE LTD
Adults Services,Adult Social Care,Support with Memory and Cognition - adults (18-64),Generic Care Packages NE Team -PS,Social Care - Homecare,11/01/2017,3810771,649.8,ATHLONE CARE LTD
Adults Services,Adult Social Care,Support with Memory and Cognition - adults (18-64),Generic Care Packages SW Team - PS,Social Care - Homecare,11/01/2017,3810773,671.46,ATHLONE CARE LTD
Adults Services,Adult Social Care,Support with Memory and Cognition - adults (18-64),Generic Care Packages SE Team -PS,Social Care - Homecare,11/01/2017,3810775,"1,256.28",ATHLONE CARE LTD
Adults Services,Adult Social Care,Support with Memory and Cognition - adults (18-64),Generic Care Packages NW Team -PS,Social Care - Homecare,11/01/2017,3810776,"1,682.26",ATHLONE CARE LTD
Adults Services,Adult Social Care,Support with Memory and Cognition - adults (18-64),Generic Care Packages NW Team-SMC,Social Care - Homecare,11/01/2017,3810779,606.48,ATHLONE CARE LTD
Adults Services,Adult Social Care,Support with Memory and Cognition - adults (18-64),Generic Care Packages NE Team -PS,Social Care - Homecare,11/01/2017,3810785,527.06,ATHLONE CARE LTD
Adults Services,Adult Social Care,Support with Memory and Cognition - adults (18-64),Generic Care Packages NW Team -PS,Social Care - Homecare,11/01/2017,3810790,"1,032.46",ATHLONE CARE LTD
Adults Services,Adult Social Care,Support with Memory and Cognition - adults (18-64),Generic Care Packages NE Team -PS,Social Care - Home Care (Short Term),11/01/2017,3810791,"1,061.34",ATHLONE CARE LTD
Adults Services,Adult Social Care,Support with Memory and Cognition - adults (18-64),Generic Care Packages SE Team -PS,Social Care - Homecare,11/01/2017,3810804,808.64,ATHLONE CARE LTD
Adults Services,Adult Social Care,Support with Memory and Cognition - adults (18-64),CLDS Longer Term Support Teams,Social Care - Homecare,11/01/2017,3810818,"1,933.59",MEARS CARE LTD
Adults Services,Adult Social Care,Support with Memory and Cognition - adults (18-64),Generic Care Packages SW Team - PS,Social Care - Home Care (Short Term),11/01/2017,3810820,"2,422.78",Excelcare (Home Care Division) LTD
Adults Services,Adult Social Care,Support with Memory and Cognition - adults (18-64),Generic Care Packages NE Team -PS,Social Care - Homecare,11/01/2017,3810847,521.8,Excelcare (Home Care Division) LTD
Adults Services,Adult Social Care,Support with Memory and Cognition - adults (18-64),Generic Care Packages NE Team -PS,Social Care - Homecare,11/01/2017,3810848,571.2,Excelcare (Home Care Division) LTD
Adults Services,Adult Social Care,Support with Memory and Cognition - adults (18-64),Generic Care Packages NE Team -PS,Social Care - Prevention & Support,11/01/2017,3810853,"1,750.00",CITY VIEW HOTEL LTD
Adults Services,Adult Social Care,Support with Memory and Cognition - adults (18-64),Generic Care Packages NE Team -PS,Social Care - Prevention & Support,11/01/2017,3810854,"1,808.00",CITY VIEW HOTEL LTD
Adults Services,Adult Social Care,Support with Memory and Cognition - adults (18-64),CLDS Longer Term Support Teams,Social Care - Day Care,11/01/2017,3810855,540,BANGLADESHI PARENTS & CARERS ASSOCIATION
Adults Services,Adult Social Care,Support with Memory and Cognition - adults (18-64),CLDS Longer Term Support Teams,Social Care - Day Care,11/01/2017,3810856,810,BANGLADESHI PARENTS & CARERS ASSOCIATION
Adults Services,Adult Social Care,Support with Memory and Cognition - adults (18-64),CLDS Longer Term Support Teams,Social Care - Day Care,11/01/2017,3810857,945,BANGLADESHI PARENTS & CARERS ASSOCIATION
Adults Services,Adult Social Care,Support with Memory and Cognition - adults (18-64),CLDS Longer Term Support Teams,Social Care - Day Care,11/01/2017,3810858,765,BANGLADESHI PARENTS & CARERS ASSOCIATION
Adults Services,Adult Social Care,Support with Memory and Cognition - adults (18-64),CLDS Longer Term Support Teams,Social Care - Day Care,11/01/2017,3810859,"2,255.00",BANGLADESHI PARENTS & CARERS ASSOCIATION
Adults Services,Adult Social Care,Support with Memory and Cognition - adults (18-64),CLDS Longer Term Support Teams,Social Care - Day Care,11/01/2017,3810860,990,BANGLADESHI PARENTS & CARERS ASSOCIATION
Adults Services,Adult Social Care,Support with Memory and Cognition - adults (18-64),CLDS Longer Term Support Teams,Social Care - Day Care,11/01/2017,3810861,900,BANGLADESHI PARENTS & CARERS ASSOCIATION
Adults Services,Adult Social Care,Support with Memory and Cognition - adults (18-64),CLDS Longer Term Support Teams,Social Care - Day Care,11/01/2017,3810862,990,BANGLADESHI PARENTS & CARERS ASSOCIATION
Adults Services,Adult Social Care,Support with Memory and Cognition - adults (18-64),CLDS Longer Term Support Teams,Social Care - Day Care,11/01/2017,3810863,"2,464.00",BANGLADESHI PARENTS & CARERS ASSOCIATION
Adults Services,Adult Social Care,Support with Memory and Cognition - adults (18-64),CLDS Longer Term Support Teams,Social Care - Day Care,11/01/2017,3810865,990,BANGLADESHI PARENTS & CARERS ASSOCIATION
Adults Services,Adult Social Care,Support with Memory and Cognition - adults (18-64),CLDS Longer Term Support Teams,Social Care - Day Care,11/01/2017,3810866,990,BANGLADESHI PARENTS & CARERS ASSOCIATION
Adults Services,Adult Social Care,Support with Memory and Cognition - adults (18-64),CLDS Longer Term Support Teams,Social Care - Day Care,11/01/2017,3810867,"2,464.00",BANGLADESHI PARENTS & CARERS ASSOCIATION
Adults Services,Adult Social Care,Support with Memory and Cognition - adults (18-64),CLDS Longer Term Support Teams,Social Care - Day Care,11/01/2017,3810868,990,BANGLADESHI PARENTS & CARERS ASSOCIATION
Adults Services,Adult Social Care,Support with Memory and Cognition - adults (18-64),CLDS Longer Term Support Teams,Social Care - Day Care,11/01/2017,3810869,990,BANGLADESHI PARENTS & CARERS ASSOCIATION
Adults Services,Adult Social Care,Support with Memory and Cognition - adults (18-64),CLDS Longer Term Support Teams,Social Care - Day Care,11/01/2017,3810870,"2,464.00",BANGLADESHI PARENTS & CARERS ASSOCIATION
Adults Services,Adult Social Care,Support with Memory and Cognition - adults (18-64),CLDS Longer Term Support Teams,Social Care - Day Care,11/01/2017,3810871,"2,464.00",BANGLADESHI PARENTS & CARERS ASSOCIATION
Adults Services,Adult Social Care,Support with Memory and Cognition - adults (18-64),CLDS Longer Term Support Teams,Social Care - Day Care,11/01/2017,3810872,"2,464.00",BANGLADESHI PARENTS & CARERS ASSOCIATION
Adults Services,Adult Social Care,Support with Memory and Cognition - adults (18-64),CLDS Longer Term Support Teams,Social Care - Day Care,11/01/2017,3810873,"2,464.00",BANGLADESHI PARENTS & CARERS ASSOCIATION
Adults Services,Adult Social Care,Support with Memory and Cognition - adults (18-64),CLDS Longer Term Support Teams,Social Care - Day Care,11/01/2017,3810874,990,BANGLADESHI PARENTS & CARERS ASSOCIATION
Adults Services,Adult Social Care,Support with Memory and Cognition - adults (18-64),CLDS Longer Term Support Teams,Social Care - Day Care,11/01/2017,3810875,990,BANGLADESHI PARENTS & CARERS ASSOCIATION
Adults Services,Adult Social Care,Support with Memory and Cognition - adults (18-64),CLDS Longer Term Support Teams,Social Care - Day Care,11/01/2017,3810876,990,BANGLADESHI PARENTS & CARERS ASSOCIATION
Adults Services,Adult Social Care,Support with Memory and Cognition - adults (18-64),CLDS Longer Term Support Teams,Social Care - Day Care,11/01/2017,3810877,"2,464.00",BANGLADESHI PARENTS & CARERS ASSOCIATION
Adults Services,Adult Social Care,Support with Memory and Cognition - adults (18-64),Generic Care Packages NE Team-SMC,Social Care - Direct Payments,11/01/2017,3810879,542.67,DAVID HOWARD LTD CLIENT ACCOUNT
Adults Services,Adult Social Care,Support with Memory and Cognition - adults (18-64),Generic Care Packages SE Team -PS,Social Care - Direct Payments,11/01/2017,3810881,959.04,DAVID HOWARD LTD CLIENT ACCOUNT
Adults Services,Adult Social Care,Support with Memory and Cognition - adults (18-64),CLDS Longer Term Support Teams,Social Care - Homecare,11/01/2017,3810887,"1,608.84",CARE SOLUTION BAREAU
Adults Services,Adult Social Care,Support with Memory and Cognition - adults (18-64),Generic Care Packages NW Team -PS,Social Care - Home Care (Short Term),11/01/2017,3810905,"5,390.70",SEVACARE UK LTD
Adults Services,Adult Social Care,Support with Memory and Cognition - adults (18-64),Generic Care Packages NE Team -PS,Social Care - Home Care (Short Term),11/01/2017,3810909,951.3,SEVACARE UK LTD
Adults Services,Adult Social Care,Support with Memory and Cognition - adults (18-64),"Generic Care Packages SW Team -SS		",Social Care - Homecare,11/01/2017,3810916,739.9,SEVACARE UK LTD
Adults Services,Adult Social Care,Support with Memory and Cognition - adults (18-64),Generic Care Packages SE Team -PS,Social Care - Homecare,11/01/2017,3810917,"1,162.70",SEVACARE UK LTD
Adults Services,Adult Social Care,Support with Memory and Cognition - adults (18-64),Generic Care Packages SW Team - PS,Social Care - Homecare,11/01/2017,3810919,"1,102.30",SEVACARE UK LTD
Adults Services,Adult Social Care,Support with Memory and Cognition - adults (18-64),Generic Care Packages NW Team -PS,Social Care - Homecare,11/01/2017,3810923,"1,162.70",SEVACARE UK LTD
Adults Services,Adult Social Care,Support with Memory and Cognition - adults (18-64),Generic Care Packages SE Team -PS,Social Care - Home Care (Short Term),11/01/2017,3810924,"1,268.40",SEVACARE UK LTD
Adults Services,Adult Social Care,Support with Memory and Cognition - adults (18-64),Generic Care Packages NE Team -PS,Social Care - Homecare,11/01/2017,3810937,"1,238.20",SEVACARE UK LTD
Adults Services,Adult Social Care,Support with Memory and Cognition - adults (18-64),Generic Care Packages SE Team-SMC,Social Care - Homecare,11/01/2017,3810938,"2,114.00",SEVACARE UK LTD
Adults Services,Adult Social Care,Support with Memory and Cognition - adults (18-64),Generic Care Packages SW Team - PS,Social Care - Homecare,11/01/2017,3810951,"1,812.00",SEVACARE UK LTD
Adults Services,Adult Social Care,Support with Memory and Cognition - adults (18-64),Generic Care Packages NE Team -PS,Social Care - Homecare,11/01/2017,3810959,"1,177.80",SEVACARE UK LTD
Adults Services,Adult Social Care,Support with Memory and Cognition - adults (18-64),Generic Care Packages SW Team - PS,Social Care - Home Care (Short Term),11/01/2017,3810963,906,SEVACARE UK LTD
Adults Services,Adult Social Care,Support with Memory and Cognition - adults (18-64),Generic Care Packages NW Team -PS,Social Care - Home Care (Short Term),11/01/2017,3810964,604,SEVACARE UK LTD
Adults Services,Adult Social Care,Support with Memory and Cognition - adults (18-64),Generic Care Packages NW Team -PS,Social Care - Homecare,11/01/2017,3810972,845.6,SEVACARE UK LTD
Adults Services,Adult Social Care,Support with Memory and Cognition - adults (18-64),Generic Care Packages NW Team -PS,Social Care - Home Care (Short Term),11/01/2017,3810995,611.55,SEVACARE UK LTD
Adults Services,Adult Social Care,Support with Memory and Cognition - adults (18-64),Generic Care Packages NW Team -PS,Social Care - Homecare,11/01/2017,3810996,528.5,SEVACARE UK LTD
Adults Services,Adult Social Care,Support with Memory and Cognition - adults (18-64),Generic Care Packages SE Team -PS,Social Care - Home Care (Short Term),11/01/2017,3810998,996.6,SEVACARE UK LTD
Adults Services,Adult Social Care,Support with Memory and Cognition - adults (18-64),Generic Care Packages SW Team - PS,Social Care - Home Care (Short Term),11/01/2017,3811008,551.15,SEVACARE UK LTD
Adults Services,Adult Social Care,Support with Memory and Cognition - adults (18-64),Generic Care Packages SE Team -PS,Social Care - Home Care (Short Term),11/01/2017,3811009,"1,011.70",SEVACARE UK LTD
Adults Services,Adult Social Care,Support with Memory and Cognition - adults (18-64),Generic Care Packages SW Team - PS,Social Care - Homecare,11/01/2017,3811010,543.6,SEVACARE UK LTD
Adults Services,Adult Social Care,Support with Memory and Cognition - adults (18-64),Generic Care Packages SE Team -PS,Social Care - Homecare,11/01/2017,3811012,"1,041.90",SEVACARE UK LTD
Adults Services,Adult Social Care,Support with Memory and Cognition - adults (18-64),"Generic Care Packages NW Team-MH						",Social Care - Homecare,11/01/2017,3811022,"1,600.60",SEVACARE UK LTD
Adults Services,Adult Social Care,Physical Support - adults (18-64),"Failed Care Package Conversion		",Social Care - Homecare,11/01/2017,3811035,551.15,SEVACARE UK LTD
Adults Services,Adult Social Care,Support with Memory and Cognition - adults (18-64),Cmht Iod / Poplar South,Social Care - Homecare,11/01/2017,3811045,883.35,SEVACARE UK LTD
Adults Services,Adult Social Care,Support with Memory and Cognition - adults (18-64),Generic Care Packages NE Team -PS,Social Care - Homecare,11/01/2017,3811046,845.6,SEVACARE UK LTD
Adults Services,Adult Social Care,Support with Memory and Cognition - adults (18-64),Generic Care Packages NE Team -PS,Social Care - Homecare,11/01/2017,3811047,543.6,SEVACARE UK LTD
Adults Services,Adult Social Care,Support with Memory and Cognition - adults (18-64),Generic Care Packages SE Team -PS,Social Care - Homecare,11/01/2017,3811051,588.9,SEVACARE UK LTD
Adults Services,Adult Social Care,Support with Memory and Cognition - adults (18-64),Generic Care Packages NE Team -PS,Social Care - Homecare,11/01/2017,3811055,596.45,SEVACARE UK LTD
Adults Services,Adult Social Care,Support with Memory and Cognition - adults (18-64),Generic Care Packages NE Team -PS,Social Care - Homecare,11/01/2017,3811056,894.2,REDSPOT HOMECARE (CONTRACTS) LTD
Adults Services,Adult Social Care,Support with Memory and Cognition - adults (18-64),Generic Care Packages SW Team-SMC,Social Care - Homecare,11/01/2017,3811057,"1,012.50",REDSPOT HOMECARE (CONTRACTS) LTD
Adults Services,Adult Social Care,Support with Memory and Cognition - adults (18-64),Cmht For Older People,Social Care - Homecare,11/01/2017,3811057,604.95,REDSPOT HOMECARE (CONTRACTS) LTD
Adults Services,Adult Social Care,Support with Memory and Cognition - adults (18-64),Generic Care Packages SE Team -PS,Social Care - Homecare,11/01/2017,3811064,"1,209.80",REDSPOT HOMECARE (CONTRACTS) LTD
Adults Services,Adult Social Care,Support with Memory and Cognition - adults (18-64),CLDS Longer Term Support Teams,Social Care - Homecare,11/01/2017,3811065,"1,459.65",REDSPOT HOMECARE (CONTRACTS) LTD
Adults Services,Adult Social Care,Support with Memory and Cognition - adults (18-64),Generic Care Packages SW Team - PS,Social Care - Homecare,11/01/2017,3811067,920.5,REDSPOT HOMECARE (CONTRACTS) LTD
Adults Services,Adult Social Care,Support with Memory and Cognition - adults (18-64),Generic Care Packages SW Team - PS,Social Care - Homecare,11/01/2017,3811078,828.45,REDSPOT HOMECARE (CONTRACTS) LTD
Adults Services,Adult Social Care,Support with Memory and Cognition - adults (18-64),Generic Care Packages NE Team -PS,Social Care - Homecare,11/01/2017,3811084,"1,944.00",REDSPOT HOMECARE (CONTRACTS) LTD
Adults Services,Adult Social Care,Support with Memory and Cognition - adults (18-64),Generic Care Packages SE Team -PS,Social Care - Homecare,11/01/2017,3811084,"2,474.40",REDSPOT HOMECARE (CONTRACTS) LTD
Adults Services,Adult Social Care,Support with Memory and Cognition - adults (18-64),Generic Care Packages NW Team -PS,Social Care - Homecare,11/01/2017,3811087,"1,084.88",REDSPOT HOMECARE (CONTRACTS) LTD
Adults Services,Adult Social Care,Support with Memory and Cognition - adults (18-64),Generic Care Packages SW Team - PS,Social Care - Homecare,11/01/2017,3811089,703.53,REDSPOT HOMECARE (CONTRACTS) LTD
Adults Services,Adult Social Care,Support with Memory and Cognition - adults (18-64),Generic Care Packages NW Team -PS,Social Care - Homecare,11/01/2017,3811090,"1,906.75",REDSPOT HOMECARE (CONTRACTS) LTD
Adults Services,Adult Social Care,Support with Memory and Cognition - adults (18-64),Generic Care Packages NE Team -PS,Social Care - Homecare,11/01/2017,3811092,604.9,REDSPOT HOMECARE (CONTRACTS) LTD
Adults Services,Adult Social Care,Support with Memory and Cognition - adults (18-64),Generic Care Packages SW Team - PS,Social Care - Homecare,11/01/2017,3811101,598.33,REDSPOT HOMECARE (CONTRACTS) LTD
Adults Services,Adult Social Care,Support with Memory and Cognition - adults (18-64),"Generic Care Packages SW Team-LD									",Social Care - Supported Living,11/01/2017,3811102,"1,782.11",FAIRKYTES
Adults Services,Adult Social Care,Support with Memory and Cognition - adults (18-64),Generic Care Packages NE Team -PS,Social Care - Day Care,11/01/2017,3811106,616.68,St Hilda's East Community Centre
Adults Services,Adult Social Care,Support with Memory and Cognition - adults (18-64),Cmht For Older People,Social Care - Home Care (Short Term),11/01/2017,3811109,611.6,St Hilda's East Community Centre
Adults Services,Adult Social Care,Support with Memory and Cognition - adults (18-64),Generic Care Packages NW Team -PS,Social Care - Day Care,11/01/2017,3811113,694.95,St Hilda's East Community Centre
Adults Services,Adult Social Care,Support with Memory and Cognition - adults (18-64),Generic Care Packages NW Team -PS,Social Care - Day Care,11/01/2017,3811123,501.27,St Hilda's East Community Centre
Adults Services,Adult Social Care,Support with Memory and Cognition - adults (18-64),Generic Care Packages NW Team -PS,Social Care - Day Care,11/01/2017,3811134,843.97,St Hilda's East Community Centre
Adults Services,Adult Social Care,Support with Memory and Cognition - adults (18-64),Generic Care Packages SW Team - PS,Social Care - Day Care,11/01/2017,3811142,561.95,St Hilda's East Community Centre
Adults Services,Adult Social Care,Support with Memory and Cognition - adults (18-64),Cmht Bethnal Green,Social Care - Day Care,11/01/2017,3811147,501.27,St Hilda's East Community Centre
Adults Services,Adult Social Care,Support with Memory and Cognition - adults (18-64),Cmht For Older People,Social Care - Day Care,11/01/2017,3811149,606.68,St Hilda's East Community Centre
Adults Services,Adult Social Care,Support with Memory and Cognition - adults (18-64),Generic Care Packages SW Team - PS,Social Care - Day Care,11/01/2017,3811154,822.24,St Hilda's East Community Centre
Adults Services,Adult Social Care,Support with Memory and Cognition - adults (18-64),Generic Care Packages NW Team -PS,Social Care - Day Care,11/01/2017,3811155,699.98,St Hilda's East Community Centre
Adults Services,Adult Social Care,Support with Memory and Cognition - adults (18-64),Generic Care Packages SE Team -PS,Social Care - Day Care,11/01/2017,3811159,565.29,St Hilda's East Community Centre
Adults Services,Adult Social Care,Support with Memory and Cognition - adults (18-64),Generic Care Packages SW Team - PS,Social Care - Day Care,11/01/2017,3811160,616.68,St Hilda's East Community Centre
Adults Services,Adult Social Care,Support with Memory and Cognition - adults (18-64),Generic Care Packages NW Team -PS,Social Care - Day Care,11/01/2017,3811164,601.41,St Hilda's East Community Centre
Adults Services,Adult Social Care,Support with Memory and Cognition - adults (18-64),Cmht Stepney / Wapping,Social Care - Day Care,11/01/2017,3811165,758.22,St Hilda's East Community Centre
Adults Services,Adult Social Care,Support with Memory and Cognition - adults (18-64),Generic Care Packages SW Team - PS,Social Care - Day Care,11/01/2017,3811166,928.55,St Hilda's East Community Centre
Adults Services,Adult Social Care,Support with Memory and Cognition - adults (18-64),Cmht Bow / Poplar North,Social Care - Day Care,11/01/2017,3811167,565.29,St Hilda's East Community Centre
Adults Services,Adult Social Care,Support with Memory and Cognition - adults (18-64),Generic Care Packages SW Team -SI,Social Care - Day Care,11/01/2017,3811172,832.4,St Hilda's East Community Centre
Adults Services,Adult Social Care,Support with Memory and Cognition - adults (18-64),Generic Care Packages NE Team -PS,Social Care - Day Care,11/01/2017,3811177,"1,019.38",St Hilda's East Community Centre
Adults Services,Adult Social Care,Support with Memory and Cognition - adults (18-64),Generic Care Packages SW Team - PS,Social Care - Day Care,11/01/2017,3811184,548.26,St Hilda's East Community Centre
Adults Services,Adult Social Care,Support with Memory and Cognition - adults (18-64),Generic Care Packages SE Team -PS,Social Care - Day Care,11/01/2017,3811186,565.29,St Hilda's East Community Centre
Adults Services,Adult Social Care,Support with Memory and Cognition - adults (18-64),Cmht Bow / Poplar North,Social Care - Day Care,11/01/2017,3811189,561.08,St Hilda's East Community Centre
Adults Services,Adult Social Care,Support with Memory and Cognition - adults (18-64),Generic Care Packages NE Team -PS,Social Care - Residential Care,11/01/2017,3811191,-942.86,CRANHAM COURT NURSING HOME
Adults Services,Adult Social Care,Support with Memory and Cognition - adults (18-64),Generic Care Packages NE Team -PS,Social Care - Residential Care,11/01/2017,3811192,-942.86,CRANHAM COURT NURSING HOME
Adults Services,Adult Social Care,Support with Memory and Cognition - adults (18-64),Generic Care Packages NE Team -PS,Social Care - Residential Care,11/01/2017,3811193,"2,400.00",CRANHAM COURT NURSING HOME
Adults Services,Adult Social Care,Support with Memory and Cognition - adults (18-64),Generic Care Packages NE Team -PS,Social Care - Residential Care,11/01/2017,3811194,"2,400.00",CRANHAM COURT NURSING HOME
Adults Services,Adult Social Care,Support with Memory and Cognition - adults (18-64),Generic Care Packages NE Team -PS,Social Care - Residential Care,11/01/2017,3811195,"2,400.00",CRANHAM COURT NURSING HOME
Adults Services,Adult Social Care,Support with Memory and Cognition - adults (18-64),CLDS Longer Term Support Teams,Social Care - Day Care,11/01/2017,3811196,981.36,APASENTH
Adults Services,Adult Social Care,Support with Memory and Cognition - adults (18-64),CLDS Longer Term Support Teams,Social Care - Day Care,11/01/2017,3811197,681,APASENTH
Adults Services,Adult Social Care,Support with Memory and Cognition - adults (18-64),CLDS Longer Term Support Teams,Social Care - Day Care,11/01/2017,3811198,"1,035.88",APASENTH
Adults Services,Adult Social Care,Support with Memory and Cognition - adults (18-64),CLDS Longer Term Support Teams,Social Care - Day Care,11/01/2017,3811200,"2,418.10",APASENTH
Adults Services,Adult Social Care,Support with Memory and Cognition - adults (18-64),CLDS Longer Term Support Teams,Social Care - Day Care,11/01/2017,3811202,"1,248.50",APASENTH
Adults Services,Adult Social Care,Support with Memory and Cognition - adults (18-64),CLDS Longer Term Support Teams,Social Care - Day Care,11/01/2017,3811203,"1,090.40",APASENTH
Adults Services,Adult Social Care,Support with Memory and Cognition - adults (18-64),CLDS Longer Term Support Teams,Social Care - Day Care,11/01/2017,3811204,900.64,APASENTH
Adults Services,Adult Social Care,Support with Memory and Cognition - adults (18-64),CLDS Longer Term Support Teams,Social Care - Day Care,11/01/2017,3811206,545.2,APASENTH
Adults Services,Adult Social Care,Support with Memory and Cognition - adults (18-64),CLDS Longer Term Support Teams,Social Care - Day Care,11/01/2017,3811207,"1,086.58",APASENTH
Adults Services,Adult Social Care,Support with Memory and Cognition - adults (18-64),CLDS Longer Term Support Teams,Social Care - Day Care,11/01/2017,3811209,817.8,APASENTH
Adults Services,Adult Social Care,Support with Memory and Cognition - adults (18-64),CLDS Longer Term Support Teams,Social Care - Day Care,11/01/2017,3811210,"1,316.32",APASENTH
Adults Services,Adult Social Care,Support with Memory and Cognition - adults (18-64),CLDS Longer Term Support Teams,Social Care - Day Care,11/01/2017,3811211,908.16,APASENTH
Adults Services,Adult Social Care,Support with Memory and Cognition - adults (18-64),CLDS Longer Term Support Teams,Social Care - Day Care,11/01/2017,3811212,831.36,APASENTH
Adults Services,Adult Social Care,Support with Memory and Cognition - adults (18-64),CLDS Longer Term Support Teams,Social Care - Day Care,11/01/2017,3811214,"1,090.40",APASENTH
Adults Services,Adult Social Care,Support with Memory and Cognition - adults (18-64),CLDS Longer Term Support Teams,Social Care - Day Care,11/01/2017,3811215,"1,385.60",APASENTH
Adults Services,Adult Social Care,Support with Memory and Cognition - adults (18-64),CLDS Longer Term Support Teams,Social Care - Day Care,11/01/2017,3811216,654.24,APASENTH
Adults Services,Adult Social Care,Support with Memory and Cognition - adults (18-64),CLDS Longer Term Support Teams,Social Care - Day Care,11/01/2017,3811217,"1,316.32",APASENTH
Adults Services,Adult Social Care,Support with Memory and Cognition - adults (18-64),CLDS Longer Term Support Teams,Social Care - Day Care,11/01/2017,3811218,"2,270.00",APASENTH
Adults Services,Adult Social Care,Support with Memory and Cognition - adults (18-64),CLDS Longer Term Support Teams,Social Care - Day Care,11/01/2017,3811219,762.08,APASENTH
Adults Services,Adult Social Care,Support with Memory and Cognition - adults (18-64),CLDS Longer Term Support Teams,Social Care - Day Care,11/01/2017,3811220,599.72,APASENTH
Adults Services,Adult Social Care,Support with Memory and Cognition - adults (18-64),CLDS Longer Term Support Teams,Social Care - Day Care,11/01/2017,3811221,926.84,APASENTH
Adults Services,Adult Social Care,Support with Memory and Cognition - adults (18-64),CLDS Longer Term Support Teams,Social Care - Day Care,11/01/2017,3811223,926.84,APASENTH
Adults Services,Adult Social Care,Support with Memory and Cognition - adults (18-64),CLDS Longer Term Support Teams,Social Care - Day Care,11/01/2017,3811224,873.32,APASENTH
Adults Services,Adult Social Care,Support with Memory and Cognition - adults (18-64),CLDS Longer Term Support Teams,Social Care - Day Care,11/01/2017,3811227,"1,975.40",APASENTH
Adults Services,Adult Social Care,Support with Memory and Cognition - adults (18-64),CLDS Longer Term Support Teams,Social Care - Day Care,11/01/2017,3811228,"1,247.04",APASENTH
Adults Services,Adult Social Care,Support with Memory and Cognition - adults (18-64),CLDS Longer Term Support Teams,Social Care - Day Care,11/01/2017,3811229,"1,702.50",APASENTH
Adults Services,Adult Social Care,Support with Memory and Cognition - adults (18-64),CLDS Longer Term Support Teams,Social Care - Day Care,11/01/2017,3811230,"1,090.40",APASENTH
Adults Services,Adult Social Care,Support with Memory and Cognition - adults (18-64),CLDS Longer Term Support Teams,Social Care - Day Care,11/01/2017,3811232,"2,270.00",APASENTH
Adults Services,Adult Social Care,Support with Memory and Cognition - adults (18-64),CLDS Longer Term Support Teams,Social Care - Day Care,11/01/2017,3811233,"1,739.60",APASENTH
Adults Services,Adult Social Care,Support with Memory and Cognition - adults (18-64),CLDS Longer Term Support Teams,Social Care - Day Care,11/01/2017,3811234,"2,541.80",APASENTH
Adults Services,Adult Social Care,Support with Memory and Cognition - adults (18-64),CLDS Longer Term Support Teams,Social Care - Day Care,11/01/2017,3811235,"2,563.36",APASENTH
Adults Services,Adult Social Care,Support with Memory and Cognition - adults (18-64),"Generic Care Packages NW Team-LD				",Social Care - Day Care,11/01/2017,3811235,"-1,732.00",APASENTH
Adults Services,Adult Social Care,Support with Memory and Cognition - adults (18-64),CLDS Longer Term Support Teams,Social Care - Day Care,11/01/2017,3811236,"1,975.60",APASENTH
Adults Services,Adult Social Care,Support with Memory and Cognition - adults (18-64),CLDS Longer Term Support Teams,Social Care - Day Care,11/01/2017,3811237,"1,090.40",APASENTH
Adults Services,Adult Social Care,Support with Memory and Cognition - adults (18-64),CLDS Longer Term Support Teams,Social Care - Day Care,11/01/2017,3811239,872.32,APASENTH
Adults Services,Adult Social Care,Support with Memory and Cognition - adults (18-64),CLDS Longer Term Support Teams,Social Care - Day Care,11/01/2017,3811240,"1,090.40",APASENTH
Adults Services,Adult Social Care,Support with Memory and Cognition - adults (18-64),CLDS Longer Term Support Teams,Social Care - Day Care,11/01/2017,3811241,599.72,APASENTH
Adults Services,Adult Social Care,Support with Memory and Cognition - adults (18-64),CLDS Longer Term Support Teams,Social Care - Day Care,11/01/2017,3811243,599.72,APASENTH
Adults Services,Adult Social Care,Support with Memory and Cognition - adults (18-64),CLDS Longer Term Support Teams,Social Care - Day Care,11/01/2017,3811244,"1,090.40",APASENTH
Adults Services,Adult Social Care,Support with Memory and Cognition - adults (18-64),CLDS Transition,Social Care - Day Care,11/01/2017,3811245,900.64,APASENTH
Adults Services,Adult Social Care,Support with Memory and Cognition - adults (18-64),CLDS Longer Term Support Teams,Social Care - Day Care,11/01/2017,3811246,"1,385.60",APASENTH
Adults Services,Adult Social Care,Support with Memory and Cognition - adults (18-64),CLDS Longer Term Support Teams,Social Care - Day Care,11/01/2017,3811247,708.76,APASENTH
Adults Services,Adult Social Care,Support with Memory and Cognition - adults (18-64),CLDS Longer Term Support Teams,Social Care - Day Care,11/01/2017,3811248,"1,362.36",APASENTH
Adults Services,Adult Social Care,Support with Memory and Cognition - adults (18-64),CLDS Longer Term Support Teams,Social Care - Day Care,11/01/2017,3811250,"1,090.40",APASENTH
Adults Services,Adult Social Care,Support with Memory and Cognition - adults (18-64),CLDS Longer Term Support Teams,Social Care - Day Care,11/01/2017,3811252,"1,385.60",APASENTH
Adults Services,Adult Social Care,Support with Memory and Cognition - adults (18-64),CLDS Transition,Social Care - Day Care,11/01/2017,3811253,"1,385.60",APASENTH
Adults Services,Adult Social Care,Support with Memory and Cognition - adults (18-64),CLDS Longer Term Support Teams,Social Care - Day Care,11/01/2017,3811255,"1,248.72",APASENTH
Adults Services,Adult Social Care,Support with Memory and Cognition - adults (18-64),CLDS Longer Term Support Teams,Social Care - Day Care,11/01/2017,3811256,747.62,APASENTH
Adults Services,Adult Social Care,Physical Support - adults (18-64),"Failed Care Package Conversion		",Social Care - Others,11/01/2017,3811256,500.88,APASENTH
Adults Services,Adult Social Care,Support with Memory and Cognition - adults (18-64),CLDS Transition,Social Care - Day Care,11/01/2017,3811257,"2,270.00",APASENTH
Adults Services,Adult Social Care,Support with Memory and Cognition - adults (18-64),Generic Care Packages NE Team -PS,Social Care - Homecare,11/01/2017,3811259,576.42,MiHOMECARE LIMITED
Adults Services,Adult Social Care,Support with Memory and Cognition - adults (18-64),Generic Care Packages NE Team -PS,Social Care - Homecare,11/01/2017,3811272,"2,272.98",MiHOMECARE LIMITED
Adults Services,Adult Social Care,Support with Memory and Cognition - adults (18-64),Generic Care Packages NE Team -PS,Social Care - Home Care (Short Term),11/01/2017,3811276,"1,315.98",MiHOMECARE LIMITED
Adults Services,Adult Social Care,Support with Memory and Cognition - adults (18-64),Cmht Bethnal Green,Social Care - Homecare,11/01/2017,3811285,739,MiHOMECARE LIMITED
Adults Services,Adult Social Care,Support with Memory and Cognition - adults (18-64),Generic Care Packages NW Team -PS,Social Care - Homecare,11/01/2017,3811286,"4,561.45",MiHOMECARE LIMITED
Adults Services,Adult Social Care,Support with Memory and Cognition - adults (18-64),CLDS Longer Term Support Teams,Social Care - Homecare,11/01/2017,3811287,"4,971.11",MiHOMECARE LIMITED
Adults Services,Adult Social Care,Support with Memory and Cognition - adults (18-64),Generic Care Packages SW Team - PS,Social Care - Homecare,11/01/2017,3811288,502.52,MiHOMECARE LIMITED
Adults Services,Adult Social Care,Support with Memory and Cognition - adults (18-64),Generic Care Packages NE Team -PS,Social Care - Homecare,11/01/2017,3811292,509.92,MiHOMECARE LIMITED
Adults Services,Adult Social Care,Support with Memory and Cognition - adults (18-64),CLDS Longer Term Support Teams,Social Care - Homecare,11/01/2017,3811299,768.56,MiHOMECARE LIMITED
Adults Services,Adult Social Care,Support with Memory and Cognition - adults (18-64),Generic Care Packages NE Team -PS,Social Care - Homecare,11/01/2017,3811302,509.98,MiHOMECARE LIMITED
Adults Services,Adult Social Care,Support with Memory and Cognition - adults (18-64),Generic Care Packages SE Team -PS,Social Care - Homecare,11/01/2017,3811308,613.45,MiHOMECARE LIMITED
Adults Services,Adult Social Care,Support with Memory and Cognition - adults (18-64),Generic Care Packages NW Team -PS,Social Care - Homecare,11/01/2017,3811310,916.64,MiHOMECARE LIMITED
Adults Services,Adult Social Care,Support with Memory and Cognition - adults (18-64),Generic Care Packages NE Team -PS,Social Care - Homecare,11/01/2017,3811313,576.42,MiHOMECARE LIMITED
Adults Services,Adult Social Care,Support with Memory and Cognition - adults (18-64),Generic Care Packages SW Team - PS,Social Care - Residential Care,11/01/2017,3811325,"3,882.44",ACTION ON HEARING LOSS
Adults Services,Adult Social Care,Support with Memory and Cognition - adults (18-64),Generic Care Packages SE Team -SM,Social Care - Prevention & Support,11/01/2017,3811326,"1,680.00",Plaza London Hotel
Adults Services,Adult Social Care,Support with Memory and Cognition - adults (18-64),Generic Care Packages NW Team -PS,Social Care - Homecare,11/01/2017,3811327,"1,534.40",APASENTH
Adults Services,Adult Social Care,Support with Memory and Cognition - adults (18-64),CLDS Transition,Social Care - Homecare,11/01/2017,3811328,726.1,APASENTH
Adults Services,Adult Social Care,Support with Memory and Cognition - adults (18-64),CLDS Longer Term Support Teams,Social Care - Homecare,11/01/2017,3811329,"1,673.46",APASENTH
Adults Services,Adult Social Care,Support with Memory and Cognition - adults (18-64),Generic Care Packages NW Team -PS,Social Care - Day Care,11/01/2017,3811337,503.02,St Hilda's East Community Centre
Adults Services,Adult Social Care,Support with Memory and Cognition - adults (18-64),Generic Care Packages NE Team -PS,Social Care - Home Care (Short Term),11/01/2017,3811343,"1,057.00",St Hilda's East Community Centre
Adults Services,Adult Social Care,Support with Memory and Cognition - adults (18-64),Generic Care Packages SW Team - PS,Social Care - Homecare,11/01/2017,3811351,558.7,St Hilda's East Community Centre
Adults Services,Adult Social Care,Support with Memory and Cognition - adults (18-64),Generic Care Packages SW Team - PS,Social Care - Homecare,11/01/2017,3811356,951.3,St Hilda's East Community Centre
Adults Services,Adult Social Care,Support with Memory and Cognition - adults (18-64),Generic Care Packages SW Team - PS,Social Care - Homecare,11/01/2017,3811363,528.5,St Hilda's East Community Centre
Adults Services,Adult Social Care,Support with Memory and Cognition - adults (18-64),Generic Care Packages NE Team -PS,Social Care - Homecare,11/01/2017,3811366,"1,691.20",St Hilda's East Community Centre
Adults Services,Adult Social Care,Support with Memory and Cognition - adults (18-64),Generic Care Packages NW Team -PS,Social Care - Homecare,11/01/2017,3811378,"1,283.50",St Hilda's East Community Centre
Adults Services,Adult Social Care,Support with Memory and Cognition - adults (18-64),Generic Care Packages NW Team -PS,Social Care - Homecare,11/01/2017,3811383,951.3,St Hilda's East Community Centre
Adults Services,Adult Social Care,Support with Memory and Cognition - adults (18-64),Generic Care Packages NW Team -PS,Social Care - Homecare,11/01/2017,3811525,609.4,SANCTUARY HOME CARE LIMITED
Adults Services,Adult Social Care,Physical Support - adults (18-64),"Failed Care Package Conversion		",Social Care - Homecare,11/01/2017,3811531,518.82,SANCTUARY HOME CARE LIMITED
Adults Services,Adult Social Care,Support with Memory and Cognition - adults (18-64),Generic Care Packages SW Team - PS,Social Care - Homecare,11/01/2017,3811533,"1,844.64",SANCTUARY HOME CARE LIMITED
Adults Services,Adult Social Care,Support with Memory and Cognition - adults (18-64),Generic Care Packages NW Team -PS,Social Care - Home Care (Short Term),11/01/2017,3811535,560.02,SANCTUARY HOME CARE LIMITED
Adults Services,Adult Social Care,Support with Memory and Cognition - adults (18-64),Generic Care Packages NW Team -PS,Social Care - Homecare,11/01/2017,3811540,"1,614.08",SANCTUARY HOME CARE LIMITED
Adults Services,Adult Social Care,Support with Memory and Cognition - adults (18-64),CLDS Longer Term Support Teams,Social Care - Homecare,11/01/2017,3811541,642.34,SANCTUARY HOME CARE LIMITED
Adults Services,Adult Social Care,Support with Memory and Cognition - adults (18-64),Generic Care Packages NE Team -PS,Social Care - Homecare,11/01/2017,3811545,"1,912.77",Soma Healthcare Ltd
Adults Services,Adult Social Care,Support with Memory and Cognition - adults (18-64),Generic Care Packages SW Team - PS,Social Care - Homecare,11/01/2017,3811546,"1,024.65",Soma Healthcare Ltd
Adults Services,Adult Social Care,Support with Memory and Cognition - adults (18-64),Generic Care Packages SW Team - PS,Social Care - Homecare,11/01/2017,3811547,"1,095.19",Soma Healthcare Ltd
Adults Services,Adult Social Care,Support with Memory and Cognition - adults (18-64),Generic Care Packages NE Team -PS,Social Care - Homecare,11/01/2017,3811548,586.58,Soma Healthcare Ltd
Adults Services,Adult Social Care,Support with Memory and Cognition - adults (18-64),Generic Care Packages NE Team -PS,Social Care - Homecare,11/01/2017,3811550,853.88,Soma Healthcare Ltd
Adults Services,Adult Social Care,Support with Memory and Cognition - adults (18-64),Generic Care Packages NE Team -PS,Social Care - Homecare,11/01/2017,3811551,869.58,Soma Healthcare Ltd
Adults Services,Adult Social Care,Support with Memory and Cognition - adults (18-64),Generic Care Packages NE Team -PS,Social Care - Homecare,11/01/2017,3811552,891,Soma Healthcare Ltd
Adults Services,Adult Social Care,Support with Memory and Cognition - adults (18-64),Generic Care Packages NE Team -PS,Social Care - Homecare,11/01/2017,3811553,868.73,Soma Healthcare Ltd
Adults Services,Adult Social Care,Support with Memory and Cognition - adults (18-64),Generic Care Packages NE Team -PS,Social Care - Homecare,11/01/2017,3811554,"1,871.10",Soma Healthcare Ltd
Adults Services,Adult Social Care,Support with Memory and Cognition - adults (18-64),Generic Care Packages NE Team -PS,Social Care - Homecare,11/01/2017,3811555,891,Soma Healthcare Ltd
Adults Services,Adult Social Care,Support with Memory and Cognition - adults (18-64),Generic Care Packages NE Team -PS,Social Care - Homecare,11/01/2017,3811556,"1,871.10",Soma Healthcare Ltd
Adults Services,Adult Social Care,Support with Memory and Cognition - adults (18-64),Generic Care Packages NE Team -PS,Social Care - Homecare,11/01/2017,3811557,891,Soma Healthcare Ltd
Adults Services,Adult Social Care,Support with Memory and Cognition - adults (18-64),Generic Care Packages NE Team -PS,Social Care - Homecare,11/01/2017,3811558,"1,930.50",Soma Healthcare Ltd
Adults Services,Adult Social Care,Support with Memory and Cognition - adults (18-64),Generic Care Packages NE Team -PS,Social Care - Homecare,11/01/2017,3811559,891,Soma Healthcare Ltd
Adults Services,Adult Social Care,Support with Memory and Cognition - adults (18-64),Generic Care Packages NE Team -PS,Social Care - Homecare,11/01/2017,3811560,"1,930.50",Soma Healthcare Ltd
Adults Services,Adult Social Care,Support with Memory and Cognition - adults (18-64),Generic Care Packages NE Team -PS,Social Care - Homecare,11/01/2017,3811561,843.6,Soma Healthcare Ltd
Adults Services,Adult Social Care,Support with Memory and Cognition - adults (18-64),Generic Care Packages NE Team -PS,Social Care - Homecare,11/01/2017,3811563,"1,915.20",Soma Healthcare Ltd
Adults Services,Adult Social Care,Support with Memory and Cognition - adults (18-64),CLDS Longer Term Support Teams,Social Care - Homecare,11/01/2017,3811565,912,Soma Healthcare Ltd
Adults Services,Adult Social Care,Support with Memory and Cognition - adults (18-64),Generic Care Packages NW Team -PS,Social Care - Homecare,11/01/2017,3811567,638.4,Soma Healthcare Ltd
Adults Services,Adult Social Care,Support with Memory and Cognition - adults (18-64),Generic Care Packages NE Team -PS,Social Care - Homecare,11/01/2017,3811570,638.4,Soma Healthcare Ltd
Adults Services,Adult Social Care,Support with Memory and Cognition - adults (18-64),Generic Care Packages SW Team - PS,Social Care - Homecare,11/01/2017,3811571,"1,702.40",Soma Healthcare Ltd
Adults Services,Adult Social Care,Support with Memory and Cognition - adults (18-64),Generic Care Packages NW Team -PS,Social Care - Homecare,11/01/2017,3811575,790.4,Soma Healthcare Ltd
Adults Services,Adult Social Care,Support with Memory and Cognition - adults (18-64),Generic Care Packages SW Team - PS,Social Care - Homecare,11/01/2017,3811576,"2,173.60",Soma Healthcare Ltd
Adults Services,Adult Social Care,Support with Memory and Cognition - adults (18-64),Generic Care Packages SE Team -PS,Social Care - Home Care (Short Term),11/01/2017,3811577,570,Soma Healthcare Ltd
Adults Services,Adult Social Care,Support with Memory and Cognition - adults (18-64),Cmht Iod / Poplar South,Social Care - Homecare,11/01/2017,3811579,577.6,Soma Healthcare Ltd
Adults Services,Adult Social Care,Support with Memory and Cognition - adults (18-64),Generic Care Packages SE Team -PS,Social Care - Homecare,11/01/2017,3811596,"1,725.20",Soma Healthcare Ltd
Adults Services,Adult Social Care,Support with Memory and Cognition - adults (18-64),Generic Care Packages NE Team -PS,Social Care - Home Care (Short Term),11/01/2017,3811597,532,Soma Healthcare Ltd
Adults Services,Adult Social Care,Support with Memory and Cognition - adults (18-64),Generic Care Packages SE Team -PS,Social Care - Homecare,11/01/2017,3811599,957.6,Soma Healthcare Ltd
Adults Services,Adult Social Care,Support with Memory and Cognition - adults (18-64),Generic Care Packages NE Team -PS,Social Care - Homecare,11/01/2017,3811602,562.4,Soma Healthcare Ltd
Adults Services,Adult Social Care,Support with Memory and Cognition - adults (18-64),Generic Care Packages SW Team - PS,Social Care - Homecare,11/01/2017,3811605,"1,121.00",Soma Healthcare Ltd
Adults Services,Adult Social Care,Support with Memory and Cognition - adults (18-64),Generic Care Packages SW Team - PS,Social Care - Homecare,11/01/2017,3811607,562.4,Soma Healthcare Ltd
Adults Services,Adult Social Care,Support with Memory and Cognition - adults (18-64),Generic Care Packages NE Team -PS,Social Care - Homecare,11/01/2017,3811612,904.4,Soma Healthcare Ltd
Adults Services,Adult Social Care,Support with Memory and Cognition - adults (18-64),Generic Care Packages NW Team -PS,Social Care - Homecare,11/01/2017,3811613,"1,732.80",Soma Healthcare Ltd
Adults Services,Adult Social Care,Support with Memory and Cognition - adults (18-64),Generic Care Packages NE Team -PS,Social Care - Homecare,11/01/2017,3811616,"1,474.40",Soma Healthcare Ltd
Adults Services,Adult Social Care,Support with Memory and Cognition - adults (18-64),Generic Care Packages SW Team - PS,Social Care - Homecare,11/01/2017,3811618,630.8,Soma Healthcare Ltd
Adults Services,Adult Social Care,Support with Memory and Cognition - adults (18-64),Generic Care Packages SE Team -PS,Social Care - Homecare,11/01/2017,3811623,"1,459.20",Soma Healthcare Ltd
Adults Services,Adult Social Care,Support with Memory and Cognition - adults (18-64),Generic Care Packages SE Team -PS,Social Care - Homecare,11/01/2017,3811633,"1,064.00",Soma Healthcare Ltd
Adults Services,Adult Social Care,Support with Memory and Cognition - adults (18-64),Generic Care Packages NW Team -PS,Social Care - Homecare,11/01/2017,3811638,"1,930.40",Soma Healthcare Ltd
Adults Services,Adult Social Care,Support with Memory and Cognition - adults (18-64),Generic Care Packages SW Team - PS,Social Care - Home Care (Short Term),11/01/2017,3811641,547.2,Soma Healthcare Ltd
Adults Services,Adult Social Care,Support with Memory and Cognition - adults (18-64),Generic Care Packages SE Team -PS,Social Care - Homecare,11/01/2017,3811642,524.4,Soma Healthcare Ltd
Adults Services,Adult Social Care,Support with Memory and Cognition - adults (18-64),Generic Care Packages NE Team -PS,Social Care - Homecare,11/01/2017,3811644,828.4,Soma Healthcare Ltd
Adults Services,Adult Social Care,Support with Memory and Cognition - adults (18-64),Generic Care Packages SE Team -PS,Social Care - Homecare,11/01/2017,3811645,"1,778.80",Soma Healthcare Ltd
Adults Services,Adult Social Care,Support with Memory and Cognition - adults (18-64),CLDS Longer Term Support Teams,Social Care - Homecare,11/01/2017,3811646,623.2,Soma Healthcare Ltd
Adults Services,Adult Social Care,Support with Memory and Cognition - adults (18-64),Generic Care Packages SE Team -SI,Social Care - Homecare,11/01/2017,3811647,600.4,Soma Healthcare Ltd
Adults Services,Adult Social Care,Support with Memory and Cognition - adults (18-64),Generic Care Packages NE Team -PS,Social Care - Homecare,11/01/2017,3811648,638.4,Soma Healthcare Ltd
Adults Services,Adult Social Care,Support with Memory and Cognition - adults (18-64),Generic Care Packages SW Team - PS,Social Care - Home Care (Short Term),11/01/2017,3811655,532,Soma Healthcare Ltd
Adults Services,Adult Social Care,Support with Memory and Cognition - adults (18-64),Generic Care Packages NE Team -PS,Social Care - Homecare,11/01/2017,3811664,931,Soma Healthcare Ltd
Adults Services,Adult Social Care,Support with Memory and Cognition - adults (18-64),Generic Care Packages SW Team - PS,Social Care - Homecare,11/01/2017,3811665,"1,140.00",Soma Healthcare Ltd
Adults Services,Adult Social Care,Support with Memory and Cognition - adults (18-64),Generic Care Packages SE Team -PS,Social Care - Homecare,11/01/2017,3811670,687.8,Soma Healthcare Ltd
Adults Services,Adult Social Care,Support with Memory and Cognition - adults (18-64),Generic Care Packages SW Team - PS,Social Care - Homecare,11/01/2017,3811672,615.6,Soma Healthcare Ltd
Adults Services,Adult Social Care,Support with Memory and Cognition - adults (18-64),Generic Care Packages NE Team -PS,Social Care - Homecare,11/01/2017,3811682,"1,976.00",Soma Healthcare Ltd
Adults Services,Adult Social Care,Support with Memory and Cognition - adults (18-64),Generic Care Packages SE Team -PS,Social Care - Homecare,11/01/2017,3811693,539.6,Soma Healthcare Ltd
Adults Services,Adult Social Care,Support with Memory and Cognition - adults (18-64),Generic Care Packages NE Team -PS,Social Care - Homecare,11/01/2017,3811696,"2,025.81",Soma Healthcare Ltd
Adults Services,Adult Social Care,Support with Memory and Cognition - adults (18-64),Generic Care Packages NE Team -PS,Client Contributions for Social Care - Residential Care,11/01/2017,3811979,"1,316.26",LBTH CLIENT FINANCIAL AFFAIRS
Adults Services,Adult Social Care,Support with Memory and Cognition - adults (18-64),CLDS Longer Term Support Teams,Social Care - Residential Care,13/01/2017,3795924,"7,285.71",Mig House Residential Care Home Ltd
Adults Services,Adult Social Care,Support with Memory and Cognition - adults (18-64),CLDS Longer Term Support Teams,Social Care - Residential Care,13/01/2017,3795925,"7,528.57",Mig House Residential Care Home Ltd
Adults Services,Adult Social Care,Support with Memory and Cognition - adults (18-64),CLDS Longer Term Support Teams,Social Care - Residential Care,13/01/2017,3795926,"7,285.71",Mig House Residential Care Home Ltd
Adults Services,Adult Social Care,Physical Support - adults (18-64),Public Health � Healthy Middle Age & Older People.,Third Party Payments - Voluntary Associations,13/01/2017,3798939,"20,327.87",Magic Me
Adults Services,Adult Social Care,Physical Support - adults (18-64),Public Health � Healthy Children & Adolescents,Third Party Payments - Other Establishments,13/01/2017,3799656,"45,946.00",The Whitechapel Dental Centre
Adults Services,No Service Specified,No Division Specified,Community Equipment Store,Community Equipment  Supplies - Aids and Appliances,13/01/2017,3800806,"192,000.00",London Borough Of Croydon
Adults Services,Adult Social Care,Support with Memory and Cognition - adults (18-64),Generic Care Packages NW Team -PS,Social Care - Residential Care,13/01/2017,3802277,"3,542.86",Dalton Court Care Home
Adults Services,Adult Social Care,Support with Memory and Cognition - adults (18-64),Generic Care Packages SW Team - PS,Social Care - Nursing Care,13/01/2017,3802284,"1,979.66",H-C ONE LTD - TOWER BRIDGE
Adults Services,Adult Social Care,Physical Support - adults (18-64),Public Health � Healthy Middle Age & Older People.,Third Party Payments - Other Establishments,13/01/2017,3802703,"50,785.00",Queen Mary University of London
Adults Services,Adult Social Care,Support with Memory and Cognition - adults (18-64),CLDS Longer Term Support Teams,Social Care - Day Care,13/01/2017,3809603,"1,255.51",ROSELOCK LTD
Adults Services,Adult Social Care,Support with Memory and Cognition - adults (18-64),CLDS Longer Term Support Teams,Social Care - Residential Care,13/01/2017,3809612,"5,490.76",ROSELOCK LTD
Adults Services,Adult Social Care,Support with Memory and Cognition - adults (18-64),CLDS Longer Term Support Teams,Social Care - Residential Care,13/01/2017,3809613,"2,452.07",ROSELOCK LTD
Adults Services,Adult Social Care,Support with Memory and Cognition - adults (18-64),CLDS Longer Term Support Teams,Social Care - Day Care,13/01/2017,3809613,"2,311.52",ROSELOCK LTD
Adults Services,Adult Social Care,Physical Support - adults (18-64),Public Health � Healthy Young Adults,Third Party Payments - Other Establishments,13/01/2017,3812897,"45,000.00",London Borough Of Newham
Adults Services,Adult Social Care,Physical Support - adults (18-64),"Failed Care Package Conversion		",Social Care - Learning Disabilities,13/01/2017,3813188,"42,762.70",The Camden Society
Adults Services,Adult Social Care,Physical Support - adults (18-64),"Failed Care Package Conversion		",Social Care - Learning Disabilities,13/01/2017,3813189,"53,453.38",The Camden Society
Adults Services,Adult Social Care,Support with Memory and Cognition - adults (18-64),Generic Care Packages NW Team -PS,Social Care - Respite Care,13/01/2017,3813190,997,BARCHESTER HEALTHCARE
Adults Services,Adult Social Care,Support with Memory and Cognition - adults (18-64),Generic Care Packages SE Team -PS,Social Care - Nursing Care,13/01/2017,3813191,"11,547.14",BARCHESTER HEALTHCARE
Adults Services,Adult Social Care,Support with Memory and Cognition - adults (18-64),CLDS Longer Term Support Teams,Social Care - Homecare,13/01/2017,3813232,"2,095.95",MEARS CARE LTD
Adults Services,Adult Social Care,Support with Memory and Cognition - adults (18-64),CLDS Longer Term Support Teams,Social Care - Homecare,13/01/2017,3813234,"2,867.10",MEARS CARE LTD
Adults Services,Adult Social Care,Support with Memory and Cognition - adults (18-64),Generic Care Packages NW Team -PS,Social Care - Nursing Care,13/01/2017,3813235,"5,299.67",LIFE STYLE CARE (2011) PLC
Adults Services,Adult Social Care,Support with Memory and Cognition - adults (18-64),Generic Care Packages NE Team -PS,Social Care - Nursing Care,13/01/2017,3813236,"3,981.77",LIFE STYLE CARE (2011) PLC
Adults Services,Adult Social Care,Physical Support - adults (18-64),"Failed Care Package Conversion		",Social Care - Others,13/01/2017,3813247,571.77,FOCUS CARE LINK LTD
Adults Services,Adult Social Care,Physical Support - adults (18-64),"Failed Care Package Conversion		",Social Care - Prevention & Support - Block,13/01/2017,3813249,"2,920.07",AGE UK EAST LONDON
Adults Services,Adult Social Care,Physical Support - adults (18-64),"Failed Care Package Conversion		",Social Care - Others,13/01/2017,3813251,523.37,FOCUS CARE LINK LTD
Adults Services,Adult Social Care,Physical Support - adults (18-64),"Failed Care Package Conversion		",Social Care - Others,13/01/2017,3813254,551.49,FOCUS CARE LINK LTD
Adults Services,Adult Social Care,Physical Support - adults (18-64),"Failed Care Package Conversion		",Social Care - Others,13/01/2017,3813256,"1,150.54",FOCUS CARE LINK LTD
Adults Services,Adult Social Care,Physical Support - adults (18-64),"Failed Care Package Conversion		",Social Care - Others,13/01/2017,3813257,531.9,FOCUS CARE LINK LTD
Adults Services,Adult Social Care,Physical Support - adults (18-64),"Failed Care Package Conversion		",Social Care - Others,13/01/2017,3813258,553.3,FOCUS CARE LINK LTD
Adults Services,Adult Social Care,Physical Support - adults (18-64),"Failed Care Package Conversion		",Social Care - Others,13/01/2017,3813261,538.62,FOCUS CARE LINK LTD
Adults Services,Adult Social Care,Physical Support - adults (18-64),"Failed Care Package Conversion		",Social Care - Others,13/01/2017,3813262,538.62,FOCUS CARE LINK LTD
Adults Services,Adult Social Care,Physical Support - adults (18-64),"Failed Care Package Conversion		",Social Care - Others,13/01/2017,3813263,538.61,FOCUS CARE LINK LTD
Adults Services,Adult Social Care,Physical Support - adults (18-64),"Failed Care Package Conversion		",Social Care - Others,13/01/2017,3813264,500.14,FOCUS CARE LINK LTD
Adults Services,Adult Social Care,Support with Memory and Cognition - adults (18-64),Generic Care Packages NE Team -PS,Social Care - Homecare,13/01/2017,3813267,894.2,REDSPOT HOMECARE (CONTRACTS) LTD
Adults Services,Adult Social Care,Support with Memory and Cognition - adults (18-64),Generic Care Packages NW Team -PS,Social Care - Residential Care,13/01/2017,3813272,"2,200.00",Barleycroft Care Home
Adults Services,Adult Social Care,Support with Memory and Cognition - adults (18-64),Generic Care Packages NW Team -PS,Social Care - Homecare,13/01/2017,3813274,553.02,MiHOMECARE LIMITED
Adults Services,Adult Social Care,Physical Support - adults (18-64),"Failed Care Package Conversion		",Social Care - Others,13/01/2017,3813278,787.06,MiHOMECARE LIMITED
Adults Services,Adult Social Care,Physical Support - adults (18-64),"Failed Care Package Conversion		",Social Care - Others,13/01/2017,3813279,"1,042.30",MiHOMECARE LIMITED
Adults Services,Adult Social Care,Support with Memory and Cognition - adults (18-64),Generic Care Packages SE Team -PS,Social Care - Homecare,13/01/2017,3813281,524.74,MiHOMECARE LIMITED
Adults Services,Adult Social Care,Physical Support - adults (18-64),"Failed Care Package Conversion		",Social Care - Others,13/01/2017,3813284,737.36,MiHOMECARE LIMITED
Adults Services,Adult Social Care,Support with Memory and Cognition - adults (18-64),Generic Care Packages SE Team -PS,Social Care - Homecare,13/01/2017,3813287,531.83,MiHOMECARE LIMITED
Adults Services,Adult Social Care,Support with Memory and Cognition - adults (18-64),Generic Care Packages SW Team - PS,Social Care - Homecare,13/01/2017,3813293,524.74,MiHOMECARE LIMITED
Adults Services,Adult Social Care,Support with Memory and Cognition - adults (18-64),Generic Care Packages NW Team -PS,Social Care - Homecare,13/01/2017,3813294,"4,705.44",MiHOMECARE LIMITED
Adults Services,Adult Social Care,Support with Memory and Cognition - adults (18-64),Generic Care Packages SW Team - PS,Social Care - Homecare,13/01/2017,3813297,598.59,MiHOMECARE LIMITED
Adults Services,Adult Social Care,Support with Memory and Cognition - adults (18-64),Generic Care Packages NE Team -PS,Social Care - Homecare,13/01/2017,3813304,"2,332.10",MiHOMECARE LIMITED
Adults Services,Adult Social Care,Support with Memory and Cognition - adults (18-64),CLDS Longer Term Support Teams,Social Care - Supported Living,13/01/2017,3813307,"1,828.12",ADVANCE HOUSING & SUPPORT LTD
Adults Services,Adult Social Care,Support with Memory and Cognition - adults (18-64),CLDS Longer Term Support Teams,Social Care - Supported Living,13/01/2017,3813308,"1,828.12",ADVANCE HOUSING & SUPPORT LTD
Adults Services,Adult Social Care,Support with Memory and Cognition - adults (18-64),CLDS Longer Term Support Teams,Social Care - Respite Care,13/01/2017,3813310,"1,485.00",APASENTH
Adults Services,Adult Social Care,Support with Memory and Cognition - adults (18-64),Generic Care Packages SE Team -PS,Social Care - Residential Care,13/01/2017,3813311,"7,167.60",Alandale Residential Home
Adults Services,Adult Social Care,Support with Memory and Cognition - adults (18-64),Generic Care Packages NW Team -PS,Social Care - Homecare,13/01/2017,3813312,"1,600.16",APASENTH
Adults Services,Adult Social Care,Support with Memory and Cognition - adults (18-64),CLDS Longer Term Support Teams,Social Care - Homecare,13/01/2017,3813313,"1,489.88",APASENTH
Adults Services,Adult Social Care,Support with Memory and Cognition - adults (18-64),CLDS Longer Term Support Teams,Social Care - Homecare,13/01/2017,3813314,"1,435.76",APASENTH
Adults Services,Adult Social Care,Support with Memory and Cognition - adults (18-64),Generic Care Packages NE Team -PS,Social Care - Homecare,13/01/2017,3813315,"1,273.42",APASENTH
Adults Services,Adult Social Care,Support with Memory and Cognition - adults (18-64),Generic Care Packages NW Team -PS,Social Care - Homecare,13/01/2017,3813316,617.73,APASENTH
Adults Services,Adult Social Care,Support with Memory and Cognition - adults (18-64),Generic Care Packages NW Team -PS,Social Care - Homecare,13/01/2017,3813317,993.25,APASENTH
Adults Services,Adult Social Care,Support with Memory and Cognition - adults (18-64),CLDS Longer Term Support Teams,Social Care - Homecare,13/01/2017,3813318,946.67,APASENTH
Adults Services,Adult Social Care,Support with Memory and Cognition - adults (18-64),Generic Care Packages NW Team-SMC,Social Care - Homecare,13/01/2017,3813319,909.68,APASENTH
Adults Services,Adult Social Care,Support with Memory and Cognition - adults (18-64),Generic Care Packages SE Team -PS,Social Care - Homecare,13/01/2017,3813320,800.08,APASENTH
Adults Services,Adult Social Care,Support with Memory and Cognition - adults (18-64),CLDS Longer Term Support Teams,Social Care - Homecare,13/01/2017,3813321,772,APASENTH
Adults Services,Adult Social Care,Support with Memory and Cognition - adults (18-64),CLDS Longer Term Support Teams,Social Care - Homecare,13/01/2017,3813322,731.58,APASENTH
Adults Services,Adult Social Care,Support with Memory and Cognition - adults (18-64),CLDS Longer Term Support Teams,Social Care - Homecare,13/01/2017,3813323,686.37,APASENTH
Adults Services,Adult Social Care,Support with Memory and Cognition - adults (18-64),Generic Care Packages SW Team - PS,Social Care - Homecare,13/01/2017,3813324,685.69,APASENTH
Adults Services,Adult Social Care,Support with Memory and Cognition - adults (18-64),CLDS Longer Term Support Teams,Social Care - Homecare,13/01/2017,3813325,630.2,APASENTH
Adults Services,Adult Social Care,Support with Memory and Cognition - adults (18-64),CLDS Longer Term Support Teams,Social Care - Homecare,13/01/2017,3813326,586.36,APASENTH
Adults Services,Adult Social Care,Support with Memory and Cognition - adults (18-64),CLDS Longer Term Support Teams,Social Care - Homecare,13/01/2017,3813327,582.25,APASENTH
Adults Services,Adult Social Care,Support with Memory and Cognition - adults (18-64),CLDS Longer Term Support Teams,Social Care - Homecare,13/01/2017,3813328,570.61,APASENTH
Adults Services,Adult Social Care,Support with Memory and Cognition - adults (18-64),CLDS Longer Term Support Teams,Social Care - Homecare,13/01/2017,3813329,568.55,APASENTH
Adults Services,Adult Social Care,Support with Memory and Cognition - adults (18-64),Generic Care Packages NE Team -PS,Social Care - Homecare,13/01/2017,3813330,550.06,APASENTH
Adults Services,Adult Social Care,Support with Memory and Cognition - adults (18-64),Generic Care Packages NE Team -PS,Social Care - Homecare,13/01/2017,3813331,500.05,APASENTH
Adults Services,Adult Social Care,Support with Memory and Cognition - adults (18-64),CLDS Longer Term Support Teams,Social Care - Homecare,13/01/2017,3813449,826.19,East Thames Group Ltd
Adults Services,Adult Social Care,Support with Memory and Cognition - adults (18-64),CLDS Longer Term Support Teams,Social Care - Supported Living,13/01/2017,3813450,"1,828.12",ADVANCE HOUSING & SUPPORT LTD
Adults Services,Adult Social Care,Support with Memory and Cognition - adults (18-64),Generic Care Packages NW Team -PS,Social Care - Homecare,13/01/2017,3813461,634.14,SANCTUARY HOME CARE LIMITED
Adults Services,Adult Social Care,Support with Memory and Cognition - adults (18-64),Generic Care Packages NE Team -PS,Social Care - Homecare,13/01/2017,3813464,617.63,SANCTUARY HOME CARE LIMITED
Adults Services,Adult Social Care,Support with Memory and Cognition - adults (18-64),Generic Care Packages NE Team -PS,Social Care - Homecare,13/01/2017,3813467,568.24,SANCTUARY HOME CARE LIMITED
Adults Services,Adult Social Care,Physical Support - adults (18-64),Public Health � Healthy 0-5 year olds,Third Party Payments - Voluntary Associations,16/01/2017,3799672,"7,461.25",Toyhouse
Adults Services,Adult Social Care,Physical Support - adults (18-64),Public Health � Healthy 0-5 year olds,Third Party Payments - Voluntary Associations,16/01/2017,3799673,"13,612.75",Toyhouse
Adults Services,Adult Social Care,Support with Memory and Cognition - adults (18-64),CLDS Longer Term Support Teams,Social Care - Residential Care,16/01/2017,3806552,"5,087.25",SAFFRON CARE HOMES LTD
Adults Services,Adult Social Care,Support with Memory and Cognition - adults (18-64),CLDS Longer Term Support Teams,Social Care - Prevention & Support,16/01/2017,3806787,"1,327.42",Outward Housing
Adults Services,Adult Social Care,Support with Memory and Cognition - adults (18-64),CLDS Longer Term Support Teams,Social Care - Homecare,16/01/2017,3806788,"1,123.13",Outward Housing
Adults Services,Adult Social Care,Support with Memory and Cognition - adults (18-64),CLDS Longer Term Support Teams,Social Care - Homecare,16/01/2017,3806789,697.81,Outward Housing
Adults Services,Adult Social Care,Support with Memory and Cognition - adults (18-64),CLDS Longer Term Support Teams,Social Care - Homecare,16/01/2017,3806790,"2,450.24",Outward Housing
Adults Services,Adult Social Care,Support with Memory and Cognition - adults (18-64),CLDS Longer Term Support Teams,Social Care - Homecare,16/01/2017,3806791,714.86,Outward Housing
Adults Services,Adult Social Care,Support with Memory and Cognition - adults (18-64),CLDS Longer Term Support Teams,Social Care - Prevention & Support,16/01/2017,3806974,"3,403.22",Outward Housing
Adults Services,Adult Social Care,Support with Memory and Cognition - adults (18-64),"Generic Care Packages SW Team-MH									",Social Care - Prevention & Support,16/01/2017,3806975,"4,709.06",Outward Housing
Adults Services,Adult Social Care,Support with Memory and Cognition - adults (18-64),CLDS Longer Term Support Teams,Social Care - Supported Living,16/01/2017,3806976,"3,573.68",Outward Housing
Adults Services,Adult Social Care,Support with Memory and Cognition - adults (18-64),CLDS Longer Term Support Teams,Social Care - Supported Living,16/01/2017,3806977,952.94,Outward Housing
Adults Services,Adult Social Care,Support with Memory and Cognition - adults (18-64),CLDS Longer Term Support Teams,Social Care - Homecare,16/01/2017,3806978,816.85,Outward Housing
Adults Services,Adult Social Care,Support with Memory and Cognition - adults (18-64),CLDS Longer Term Support Teams,Social Care - Homecare,16/01/2017,3806979,"1,531.40",Outward Housing
Adults Services,Adult Social Care,Support with Memory and Cognition - adults (18-64),CLDS Longer Term Support Teams,Social Care - Residential Care,16/01/2017,3811324,"5,087.25",SAFFRON CARE HOMES LTD
Adults Services,Adult Social Care,Support with Memory and Cognition - adults (18-64),Cmht For Older People,Social Care - Nursing Care,18/01/2017,3733503,"3,864.59",Havelock Court (Bupa)
Adults Services,Adult Social Care,Physical Support - adults (18-64),Public Health � Healthy Young Adults,Third Party Payments - Other Establishments,18/01/2017,3785559,"1,792.08",Lewisham & Greenwich NHS Trust
Adults Services,No Service Specified,No Division Specified,Capital Works-Social Services,Building Works - Main Works,18/01/2017,3797312,"6,980.00",JC Coster (Metalworks) Ltd
Adults Services,Adult Social Care,Support with Memory and Cognition - adults (18-64),Generic Care Packages NE Team-SMC,Social Care - Respite Care,18/01/2017,3800282,"3,885.14",ANCHOR TRUST HOMES ACCOUNT
Adults Services,Adult Social Care,Support with Memory and Cognition - adults (18-64),Generic Care Packages NE Team -PS,Social Care - Direct Payments,18/01/2017,3802146,752,D D PAYROLL SERVICES
Adults Services,Adult Social Care,Physical Support - adults (18-64),"Failed Care Package Conversion		",Social Care - Others,18/01/2017,3802152,"-3,139.77",D D PAYROLL SERVICES
Adults Services,Adult Social Care,Support with Memory and Cognition - adults (18-64),Generic Care Packages NE Team -PS,Social Care - Direct Payments,18/01/2017,3802164,"-2,256.49",D D PAYROLL SERVICES
Adults Services,Adult Social Care,Support with Memory and Cognition - adults (18-64),CLDS Transition,Social Care - Residential Care,18/01/2017,3806221,"7,317.11",APPLEWOOD CARE HOME
Adults Services,Adult Social Care,Support with Memory and Cognition - adults (18-64),CLDS Longer Term Support Teams,Non Staff Transport Costs - Client Transport Costs,18/01/2017,3806244,-631.78,Tower Project
Adults Services,Adult Social Care,Support with Memory and Cognition - adults (18-64),CLDS Longer Term Support Teams,Social Care - Day Care,18/01/2017,3806244,"-4,602.45",Tower Project
Adults Services,Adult Social Care,Support with Memory and Cognition - adults (18-64),Generic Care Packages NW Team -PS,Social Care - Residential Care,18/01/2017,3806553,"4,339.30",HOLLY HOUSE CARE HOME
Adults Services,Adult Social Care,Support with Memory and Cognition - adults (18-64),CLDS Longer Term Support Teams,Social Care - Residential Care,18/01/2017,3809319,"12,532.06",Kisimul Group Ltd
Adults Services,Adult Social Care,Physical Support - adults (18-64),Public Health � Healthy Middle Age & Older People.,Payments to Private Contractors - Other Contractors,18/01/2017,3810226,813.66, MAYORS CHEMIST
Adults Services,Adult Social Care,Physical Support - adults (18-64),Public Health � Healthy Middle Age & Older People.,Payments to Private Contractors - Other Contractors,18/01/2017,3810234,537.55,FLORIDA PHARMACY
Adults Services,Adult Social Care,Support with Memory and Cognition - adults (18-64),Generic Care Packages NW Team -PS,Social Care - Direct Payments,18/01/2017,3810882,"1,838.21",D D PAYROLL SERVICES
Adults Services,Adult Social Care,Support with Memory and Cognition - adults (18-64),CLDS Longer Term Support Teams,Social Care - Residential Care,18/01/2017,3811331,"3,912.51",OUTLOOK HOUSE
Adults Services,Adult Social Care,Physical Support - adults (18-64),Public Health � Healthy Young Adults,Third Party Payments - Other Establishments,18/01/2017,3812815,"1,753.00",Royal Free London NHS Foundation Trust
Adults Services,Adult Social Care,Support with Memory and Cognition - adults (18-64),CLDS Longer Term Support Teams,Social Care - Direct Payments,18/01/2017,3813240,"-1,100.85",D D PAYROLL SERVICES
Adults Services,Adult Social Care,Support with Memory and Cognition - adults (18-64),CLDS Longer Term Support Teams,Social Care - Direct Payments,18/01/2017,3813243,"1,320.84",D D PAYROLL SERVICES
Adults Services,Adult Social Care,Physical Support - adults (18-64),Public Health � Healthy 0-5 year olds,Third Party Payments - Voluntary Associations,18/01/2017,3813669,"15,000.00",Island House Community Centre
Adults Services,Adult Social Care,Physical Support - adults (18-64),Adult Protection Team,Services - Professional Fees - Consultants Fees,18/01/2017,3813696,"3,355.90",Kabe Ltd
Adults Services,Adult Social Care,Support with Memory and Cognition - adults (18-64),Generic Care Packages NW Team -PS,Social Care - Home Care (Short Term),18/01/2017,3814753,602,Carewatch Newham Ltd
Adults Services,Adult Social Care,Support with Memory and Cognition - adults (18-64),Generic Care Packages NE Team -PS,Social Care - Home Care (Short Term),18/01/2017,3814758,659.32,Carewatch Newham Ltd
Adults Services,Adult Social Care,Support with Memory and Cognition - adults (18-64),Generic Care Packages NE Team -PS,Social Care - Home Care (Short Term),18/01/2017,3814759,781.16,Carewatch Newham Ltd
Adults Services,Adult Social Care,Support with Memory and Cognition - adults (18-64),CLDS Longer Term Support Teams,Social Care - Homecare,18/01/2017,3814772,837,Excelcare (Home Care Division) LTD
Adults Services,Adult Social Care,Support with Memory and Cognition - adults (18-64),CLDS Longer Term Support Teams,Social Care - Homecare,18/01/2017,3814773,"5,070.36",Tower Project
Adults Services,Adult Social Care,Support with Memory and Cognition - adults (18-64),CLDS Longer Term Support Teams,Social Care - Homecare,18/01/2017,3814774,"5,192.37",Tower Project
Adults Services,Adult Social Care,Support with Memory and Cognition - adults (18-64),CLDS Longer Term Support Teams,Social Care - Supported Living,18/01/2017,3814775,"6,846.04",Tower Project
Adults Services,General Fund/Council Fund,Homelessness,Supporting People Services,SP - Block Subsidy - Old People-Supp Needs,18/01/2017,3814779,"-1,284.78",EAST THAMES LIVING
Adults Services,General Fund/Council Fund,Homelessness,Supporting People Services,SP - Block Subsidy - Old People-Supp Needs,18/01/2017,3814781,"1,059.38",EAST THAMES LIVING
Adults Services,General Fund/Council Fund,Homelessness,Supporting People Services,SP - Block Subsidy - Old People-Supp Needs,18/01/2017,3814782,946.68,EAST THAMES LIVING
Adults Services,General Fund/Council Fund,Homelessness,Supporting People Services,SP - Block Subsidy - Old People-Supp Needs,18/01/2017,3814783,901.6,EAST THAMES LIVING
Adults Services,Adult Social Care,Support with Memory and Cognition - adults (18-64),Generic Care Packages NW Team -PS,Social Care - Direct Payments,18/01/2017,3814791,930.92,DAVID HOWARD LTD CLIENT ACCOUNT
Adults Services,Adult Social Care,Support with Memory and Cognition - adults (18-64),Generic Care Packages SW Team - PS,Social Care - Direct Payments,18/01/2017,3814795,978.88,DAVID HOWARD LTD CLIENT ACCOUNT
Adults Services,Adult Social Care,Support with Memory and Cognition - adults (18-64),Generic Care Packages NE Team -SI,Social Care - Direct Payments,18/01/2017,3814805,"1,058.36",DAVID HOWARD LTD CLIENT ACCOUNT
Adults Services,Adult Social Care,Support with Memory and Cognition - adults (18-64),Generic Care Packages SW Team - PS,Social Care - Direct Payments,18/01/2017,3814806,"2,280.00",D D PAYROLL SERVICES
Adults Services,Adult Social Care,Support with Memory and Cognition - adults (18-64),Generic Care Packages NE Team -PS,Social Care - Direct Payments,18/01/2017,3814807,"1,028.60",DAVID HOWARD LTD CLIENT ACCOUNT
Adults Services,Adult Social Care,Support with Memory and Cognition - adults (18-64),Generic Care Packages NE Team -PS,Social Care - Direct Payments,18/01/2017,3814809,"2,250.64",D D PAYROLL SERVICES
Adults Services,Adult Social Care,Support with Memory and Cognition - adults (18-64),Generic Care Packages SE Team -PS,Social Care - Direct Payments,18/01/2017,3814812,989.56,DAVID HOWARD LTD CLIENT ACCOUNT
Adults Services,Adult Social Care,Support with Memory and Cognition - adults (18-64),Generic Care Packages SE Team -PS,Social Care - Direct Payments,18/01/2017,3814813,925.52,DAVID HOWARD LTD CLIENT ACCOUNT
Adults Services,Adult Social Care,Support with Memory and Cognition - adults (18-64),Generic Care Packages SW Team - PS,Social Care - Direct Payments,18/01/2017,3814814,"-1,551.16",DAVID HOWARD LTD CLIENT ACCOUNT
Adults Services,Adult Social Care,Support with Memory and Cognition - adults (18-64),Generic Care Packages NE Team -PS,Social Care - Direct Payments,18/01/2017,3814815,816.64,DAVID HOWARD LTD CLIENT ACCOUNT
Adults Services,Adult Social Care,Support with Memory and Cognition - adults (18-64),Generic Care Packages SW Team - PS,Social Care - Direct Payments,18/01/2017,3814818,"1,039.52",D D PAYROLL SERVICES
Adults Services,Adult Social Care,Support with Memory and Cognition - adults (18-64),CLDS Longer Term Support Teams,Social Care - Direct Payments,18/01/2017,3814819,"1,703.12",DAVID HOWARD LTD CLIENT ACCOUNT
Adults Services,Adult Social Care,Support with Memory and Cognition - adults (18-64),Generic Care Packages NW Team -PS,Social Care - Direct Payments,18/01/2017,3814820,625.76,D D PAYROLL SERVICES
Adults Services,Adult Social Care,Support with Memory and Cognition - adults (18-64),Generic Care Packages SE Team -PS,Social Care - Direct Payments,18/01/2017,3814822,"1,202.16",D D PAYROLL SERVICES
Adults Services,Adult Social Care,Support with Memory and Cognition - adults (18-64),CLDS Longer Term Support Teams,Social Care - Direct Payments,18/01/2017,3814827,"1,398.20",D D PAYROLL SERVICES
Adults Services,Adult Social Care,Support with Memory and Cognition - adults (18-64),Generic Care Packages SE Team -PS,Social Care - Direct Payments,18/01/2017,3814829,802.4,D D PAYROLL SERVICES
Adults Services,Adult Social Care,Support with Memory and Cognition - adults (18-64),Generic Care Packages NE Team -PS,Social Care - Direct Payments,18/01/2017,3814833,676.2,DAVID HOWARD LTD CLIENT ACCOUNT
Adults Services,Adult Social Care,Support with Memory and Cognition - adults (18-64),CLDS Longer Term Support Teams,Social Care - Direct Payments,18/01/2017,3814834,720,D D PAYROLL SERVICES
Adults Services,Adult Social Care,Support with Memory and Cognition - adults (18-64),CLDS Longer Term Support Teams,Social Care - Direct Payments,18/01/2017,3814837,"3,476.52",D D PAYROLL SERVICES
Adults Services,Adult Social Care,Support with Memory and Cognition - adults (18-64),Generic Care Packages SE Team -PS,Social Care - Direct Payments,18/01/2017,3814838,701.08,DAVID HOWARD LTD CLIENT ACCOUNT
Adults Services,Adult Social Care,Support with Memory and Cognition - adults (18-64),Generic Care Packages NW Team -PS,Social Care - Direct Payments,18/01/2017,3814839,769.72,DAVID HOWARD LTD CLIENT ACCOUNT
Adults Services,Adult Social Care,Support with Memory and Cognition - adults (18-64),Cmht Bethnal Green,Social Care - Direct Payments,18/01/2017,3814840,642.44,DAVID HOWARD LTD CLIENT ACCOUNT
Adults Services,Adult Social Care,Support with Memory and Cognition - adults (18-64),Generic Care Packages NE Team -SI,Social Care - Direct Payments,18/01/2017,3814844,"1,963.04",DAVID HOWARD LTD CLIENT ACCOUNT
Adults Services,Adult Social Care,Support with Memory and Cognition - adults (18-64),Generic Care Packages NE Team -PS,Social Care - Direct Payments,18/01/2017,3814845,"3,279.32",DAVID HOWARD LTD CLIENT ACCOUNT
Adults Services,Adult Social Care,Support with Memory and Cognition - adults (18-64),CLDS Longer Term Support Teams,Social Care - Direct Payments,18/01/2017,3814846,"2,646.80",DAVID HOWARD LTD CLIENT ACCOUNT
Adults Services,Adult Social Care,Support with Memory and Cognition - adults (18-64),CLDS Longer Term Support Teams,Social Care - Direct Payments,18/01/2017,3814847,"3,063.96",DAVID HOWARD LTD CLIENT ACCOUNT
Adults Services,Adult Social Care,Support with Memory and Cognition - adults (18-64),Generic Care Packages SW Team - PS,Social Care - Direct Payments,18/01/2017,3814849,"1,168.20",DAVID HOWARD LTD CLIENT ACCOUNT
Adults Services,Adult Social Care,Support with Memory and Cognition - adults (18-64),CLDS Longer Term Support Teams,Social Care - Direct Payments,18/01/2017,3814850,584.04,D D PAYROLL SERVICES
Adults Services,Adult Social Care,Support with Memory and Cognition - adults (18-64),Generic Care Packages SE Team -PS,Social Care - Direct Payments,18/01/2017,3814851,937.56,D D PAYROLL SERVICES
Adults Services,Adult Social Care,Support with Memory and Cognition - adults (18-64),CLDS Longer Term Support Teams,Social Care - Direct Payments,18/01/2017,3814854,610.44,DAVID HOWARD LTD CLIENT ACCOUNT
Adults Services,Adult Social Care,Support with Memory and Cognition - adults (18-64),Generic Care Packages NW Team -PS,Social Care - Direct Payments,18/01/2017,3814855,"1,348.44",D D PAYROLL SERVICES
Adults Services,Adult Social Care,Support with Memory and Cognition - adults (18-64),Generic Care Packages NW Team -PS,Social Care - Direct Payments,18/01/2017,3814857,673.92,DAVID HOWARD LTD CLIENT ACCOUNT
Adults Services,Adult Social Care,Support with Memory and Cognition - adults (18-64),CLDS Longer Term Support Teams,Social Care - Direct Payments,18/01/2017,3814860,"1,043.80",D D PAYROLL SERVICES
Adults Services,Adult Social Care,Support with Memory and Cognition - adults (18-64),Generic Care Packages NW Team -PS,Social Care - Direct Payments,18/01/2017,3814861,951.6,DAVID HOWARD LTD CLIENT ACCOUNT
Adults Services,Adult Social Care,Support with Memory and Cognition - adults (18-64),Generic Care Packages SW Team - PS,Social Care - Direct Payments,18/01/2017,3814862,"3,384.76",DAVID HOWARD LTD CLIENT ACCOUNT
Adults Services,Adult Social Care,Support with Memory and Cognition - adults (18-64),CLDS Longer Term Support Teams,Social Care - Direct Payments,18/01/2017,3814864,"3,002.68",D D PAYROLL SERVICES
Adults Services,Adult Social Care,Support with Memory and Cognition - adults (18-64),Generic Care Packages SE Team -PS,Social Care - Direct Payments,18/01/2017,3814866,996.96,DAVID HOWARD LTD CLIENT ACCOUNT
Adults Services,Adult Social Care,Support with Memory and Cognition - adults (18-64),Generic Care Packages SW Team -SC,Social Care - Direct Payments,18/01/2017,3814869,583.56,DAVID HOWARD LTD CLIENT ACCOUNT
Adults Services,Adult Social Care,Support with Memory and Cognition - adults (18-64),Generic Care Packages SW Team - PS,Social Care - Direct Payments,18/01/2017,3814870,693.08,DAVID HOWARD LTD CLIENT ACCOUNT
Adults Services,Adult Social Care,Support with Memory and Cognition - adults (18-64),CLDS Longer Term Support Teams,Social Care - Direct Payments,18/01/2017,3814871,"1,252.80",D D PAYROLL SERVICES
Adults Services,Adult Social Care,Support with Memory and Cognition - adults (18-64),CLDS Longer Term Support Teams,Social Care - Direct Payments,18/01/2017,3814873,"2,123.36",D D PAYROLL SERVICES
Adults Services,Adult Social Care,Support with Memory and Cognition - adults (18-64),Generic Care Packages SW Team - PS,Social Care - Direct Payments,18/01/2017,3814875,584.8,D D PAYROLL SERVICES
Adults Services,Adult Social Care,Support with Memory and Cognition - adults (18-64),CLDS Longer Term Support Teams,Social Care - Direct Payments,18/01/2017,3814880,"1,244.72",D D PAYROLL SERVICES
Adults Services,Adult Social Care,Support with Memory and Cognition - adults (18-64),Generic Care Packages NW Team -PS,Social Care - Direct Payments,18/01/2017,3814882,"3,836.56",DAVID HOWARD LTD CLIENT ACCOUNT
Adults Services,Adult Social Care,Support with Memory and Cognition - adults (18-64),CLDS Longer Term Support Teams,Social Care - Direct Payments,18/01/2017,3814883,"3,900.00",D D PAYROLL SERVICES
Adults Services,Adult Social Care,Support with Memory and Cognition - adults (18-64),Generic Care Packages SW Team - PS,Social Care - Direct Payments,18/01/2017,3814884,651.84,DAVID HOWARD LTD CLIENT ACCOUNT
Adults Services,Adult Social Care,Support with Memory and Cognition - adults (18-64),Generic Care Packages SE Team -PS,Social Care - Direct Payments,18/01/2017,3814890,502.8,D D PAYROLL SERVICES
Adults Services,Adult Social Care,Support with Memory and Cognition - adults (18-64),Generic Care Packages SW Team - PS,Social Care - Direct Payments,18/01/2017,3814892,"1,956.20",DAVID HOWARD LTD CLIENT ACCOUNT
Adults Services,Adult Social Care,Support with Memory and Cognition - adults (18-64),CLDS Longer Term Support Teams,Social Care - Direct Payments,18/01/2017,3814894,"1,919.60",DAVID HOWARD LTD CLIENT ACCOUNT
Adults Services,Adult Social Care,Support with Memory and Cognition - adults (18-64),CLDS Longer Term Support Teams,Social Care - Direct Payments,18/01/2017,3814896,"1,744.24",D D PAYROLL SERVICES
Adults Services,Adult Social Care,Support with Memory and Cognition - adults (18-64),Generic Care Packages SW Team - PS,Social Care - Direct Payments,18/01/2017,3814897,"1,141.00",DAVID HOWARD LTD CLIENT ACCOUNT
Adults Services,Adult Social Care,Support with Memory and Cognition - adults (18-64),Generic Care Packages SW Team - PS,Social Care - Direct Payments,18/01/2017,3814901,"1,121.12",DAVID HOWARD LTD CLIENT ACCOUNT
Adults Services,Adult Social Care,Support with Memory and Cognition - adults (18-64),Generic Care Packages SE Team -PS,Social Care - Direct Payments,18/01/2017,3814902,"1,143.76",DAVID HOWARD LTD CLIENT ACCOUNT
Adults Services,Adult Social Care,Support with Memory and Cognition - adults (18-64),CLDS Longer Term Support Teams,Social Care - Direct Payments,18/01/2017,3814903,904.16,D D PAYROLL SERVICES
Adults Services,Adult Social Care,Support with Memory and Cognition - adults (18-64),CLDS Longer Term Support Teams,Social Care - Direct Payments,18/01/2017,3814904,"2,764.48",D D PAYROLL SERVICES
Adults Services,Adult Social Care,Support with Memory and Cognition - adults (18-64),CLDS Longer Term Support Teams,Social Care - Direct Payments,18/01/2017,3814906,"2,600.00",DAVID HOWARD LTD CLIENT ACCOUNT
Adults Services,Adult Social Care,Support with Memory and Cognition - adults (18-64),CLDS Longer Term Support Teams,Social Care - Direct Payments,18/01/2017,3814911,"1,176.88",DAVID HOWARD LTD CLIENT ACCOUNT
Adults Services,Adult Social Care,Support with Memory and Cognition - adults (18-64),CLDS Longer Term Support Teams,Social Care - Direct Payments,18/01/2017,3814912,813.8,D D PAYROLL SERVICES
Adults Services,Adult Social Care,Support with Memory and Cognition - adults (18-64),CLDS Longer Term Support Teams,Social Care - Direct Payments,18/01/2017,3814913,813.8,D D PAYROLL SERVICES
Adults Services,Adult Social Care,Support with Memory and Cognition - adults (18-64),Generic Care Packages SW Team - PS,Social Care - Direct Payments,18/01/2017,3814914,699,DAVID HOWARD LTD CLIENT ACCOUNT
Adults Services,Adult Social Care,Support with Memory and Cognition - adults (18-64),CLDS Longer Term Support Teams,Social Care - Direct Payments,18/01/2017,3814915,"1,790.24",DAVID HOWARD LTD CLIENT ACCOUNT
Adults Services,Adult Social Care,Support with Memory and Cognition - adults (18-64),CLDS Longer Term Support Teams,Social Care - Direct Payments,18/01/2017,3814916,"1,012.44",DAVID HOWARD LTD CLIENT ACCOUNT
Adults Services,Adult Social Care,Support with Memory and Cognition - adults (18-64),Generic Care Packages NE Team -PS,Social Care - Direct Payments,18/01/2017,3814917,"1,694.32",DAVID HOWARD LTD CLIENT ACCOUNT
Adults Services,Adult Social Care,Support with Memory and Cognition - adults (18-64),Generic Care Packages SW Team-SMC,Social Care - Direct Payments,18/01/2017,3814921,580.72,DAVID HOWARD LTD CLIENT ACCOUNT
Adults Services,Adult Social Care,Support with Memory and Cognition - adults (18-64),Generic Care Packages NW Team -PS,Social Care - Direct Payments,18/01/2017,3814923,788.6,DAVID HOWARD LTD CLIENT ACCOUNT
Adults Services,Adult Social Care,Support with Memory and Cognition - adults (18-64),Generic Care Packages SW Team - PS,Social Care - Direct Payments,18/01/2017,3814927,633.64,DAVID HOWARD LTD CLIENT ACCOUNT
Adults Services,Adult Social Care,Support with Memory and Cognition - adults (18-64),Generic Care Packages NE Team -PS,Social Care - Direct Payments,18/01/2017,3814929,"1,228.60",D D PAYROLL SERVICES
Adults Services,Adult Social Care,Support with Memory and Cognition - adults (18-64),CLDS Longer Term Support Teams,Social Care - Direct Payments,18/01/2017,3814930,587.36,D D PAYROLL SERVICES
Adults Services,Adult Social Care,Support with Memory and Cognition - adults (18-64),Generic Care Packages SE Team -PS,Social Care - Direct Payments,18/01/2017,3814931,945.92,DAVID HOWARD LTD CLIENT ACCOUNT
Adults Services,Adult Social Care,Support with Memory and Cognition - adults (18-64),Generic Care Packages NW Team -PS,Social Care - Direct Payments,18/01/2017,3814932,"1,276.60",DAVID HOWARD LTD CLIENT ACCOUNT
Adults Services,Adult Social Care,Support with Memory and Cognition - adults (18-64),Generic Care Packages SE Team -PS,Social Care - Direct Payments,18/01/2017,3814933,710.44,D D PAYROLL SERVICES
Adults Services,Adult Social Care,Support with Memory and Cognition - adults (18-64),Generic Care Packages SE Team -PS,Social Care - Direct Payments,18/01/2017,3814934,836.24,DAVID HOWARD LTD CLIENT ACCOUNT
Adults Services,Adult Social Care,Support with Memory and Cognition - adults (18-64),Generic Care Packages SE Team -PS,Social Care - Direct Payments,18/01/2017,3814936,548.84,DAVID HOWARD LTD CLIENT ACCOUNT
Adults Services,Adult Social Care,Support with Memory and Cognition - adults (18-64),Generic Care Packages NW Team -PS,Social Care - Direct Payments,18/01/2017,3814937,"3,714.40",D D PAYROLL SERVICES
Adults Services,Adult Social Care,Support with Memory and Cognition - adults (18-64),Generic Care Packages SE Team-SMC,Social Care - Direct Payments,18/01/2017,3814939,"12,493.68",D D PAYROLL SERVICES
Adults Services,Adult Social Care,Support with Memory and Cognition - adults (18-64),Generic Care Packages SW Team - PS,Social Care - Direct Payments,18/01/2017,3814942,619.88,D D PAYROLL SERVICES
Adults Services,Adult Social Care,Support with Memory and Cognition - adults (18-64),Generic Care Packages SW Team - PS,Social Care - Direct Payments,18/01/2017,3814943,641.4,D D PAYROLL SERVICES
Adults Services,Adult Social Care,Support with Memory and Cognition - adults (18-64),CLDS Longer Term Support Teams,Social Care - Direct Payments,18/01/2017,3814950,893.6,D D PAYROLL SERVICES
Adults Services,Adult Social Care,Support with Memory and Cognition - adults (18-64),Generic Care Packages SE Team -PS,Social Care - Direct Payments,18/01/2017,3814954,"2,538.00",REDACTED SECTION 40 FOI ACT
Adults Services,Adult Social Care,Support with Memory and Cognition - adults (18-64),Generic Care Packages NE Team -PS,Social Care - Direct Payments,18/01/2017,3814964,750.8,DAVID HOWARD LTD CLIENT ACCOUNT
Adults Services,Adult Social Care,Support with Memory and Cognition - adults (18-64),Generic Care Packages SW Team - PS,Social Care - Direct Payments,18/01/2017,3814966,506.12,DAVID HOWARD LTD CLIENT ACCOUNT
Adults Services,Adult Social Care,Support with Memory and Cognition - adults (18-64),CLDS Longer Term Support Teams,Social Care - Direct Payments,18/01/2017,3814968,"2,444.20",DAVID HOWARD LTD CLIENT ACCOUNT
Adults Services,Adult Social Care,Support with Memory and Cognition - adults (18-64),CLDS Longer Term Support Teams,Social Care - Direct Payments,18/01/2017,3814969,"2,009.36",DAVID HOWARD LTD CLIENT ACCOUNT
Adults Services,Adult Social Care,Support with Memory and Cognition - adults (18-64),CLDS Longer Term Support Teams,Social Care - Direct Payments,18/01/2017,3814970,"3,124.72",DAVID HOWARD LTD CLIENT ACCOUNT
Adults Services,Adult Social Care,Support with Memory and Cognition - adults (18-64),Generic Care Packages NW Team -PS,Social Care - Direct Payments,18/01/2017,3814976,"2,614.92",D D PAYROLL SERVICES
Adults Services,Adult Social Care,Support with Memory and Cognition - adults (18-64),Generic Care Packages SE Team -PS,Social Care - Direct Payments,18/01/2017,3814979,"2,719.80",DAVID HOWARD LTD CLIENT ACCOUNT
Adults Services,Adult Social Care,Support with Memory and Cognition - adults (18-64),Generic Care Packages NW Team -PS,Social Care - Direct Payments,18/01/2017,3814986,818.24,DAVID HOWARD LTD CLIENT ACCOUNT
Adults Services,Adult Social Care,Support with Memory and Cognition - adults (18-64),Cmht For Older People,Social Care - Direct Payments,18/01/2017,3814989,"9,052.28",DAVID HOWARD LTD CLIENT ACCOUNT
Adults Services,Adult Social Care,Support with Memory and Cognition - adults (18-64),Generic Care Packages SW Team - PS,Social Care - Direct Payments,18/01/2017,3814991,"2,775.84",D D PAYROLL SERVICES
Adults Services,Adult Social Care,Support with Memory and Cognition - adults (18-64),Cmht For Older People,Social Care - Direct Payments,18/01/2017,3814992,"1,576.96",D D PAYROLL SERVICES
Adults Services,Adult Social Care,Support with Memory and Cognition - adults (18-64),CLDS Longer Term Support Teams,Social Care - Direct Payments,18/01/2017,3814994,"7,578.96",D D PAYROLL SERVICES
Adults Services,Adult Social Care,Support with Memory and Cognition - adults (18-64),CLDS Longer Term Support Teams,Social Care - Direct Payments,18/01/2017,3814995,"3,981.04",D D PAYROLL SERVICES
Adults Services,Adult Social Care,Support with Memory and Cognition - adults (18-64),Generic Care Packages SE Team -PS,Social Care - Direct Payments,18/01/2017,3815000,737.32,DAVID HOWARD LTD CLIENT ACCOUNT
Adults Services,Adult Social Care,Support with Memory and Cognition - adults (18-64),Generic Care Packages NW Team -PS,Social Care - Direct Payments,18/01/2017,3815001,586.6,D D PAYROLL SERVICES
Adults Services,Adult Social Care,Support with Memory and Cognition - adults (18-64),CLDS Longer Term Support Teams,Social Care - Direct Payments,18/01/2017,3815003,"2,790.64",DAVID HOWARD LTD CLIENT ACCOUNT
Adults Services,Adult Social Care,Support with Memory and Cognition - adults (18-64),CLDS Longer Term Support Teams,Social Care - Direct Payments,18/01/2017,3815004,720,DAVID HOWARD LTD CLIENT ACCOUNT
Adults Services,Adult Social Care,Support with Memory and Cognition - adults (18-64),Generic Care Packages SW Team - PS,Social Care - Direct Payments,18/01/2017,3815005,"1,391.08",DAVID HOWARD LTD CLIENT ACCOUNT
Adults Services,Adult Social Care,Support with Memory and Cognition - adults (18-64),Generic Care Packages SE Team -PS,Social Care - Direct Payments,18/01/2017,3815008,587.32,DAVID HOWARD LTD CLIENT ACCOUNT
Adults Services,Adult Social Care,Support with Memory and Cognition - adults (18-64),Cmht Stepney / Wapping,Social Care - Direct Payments,18/01/2017,3815009,584.04,DAVID HOWARD LTD CLIENT ACCOUNT
Adults Services,Adult Social Care,Support with Memory and Cognition - adults (18-64),CLDS Longer Term Support Teams,Social Care - Direct Payments,18/01/2017,3815010,665.72,DAVID HOWARD LTD CLIENT ACCOUNT
Adults Services,Adult Social Care,Support with Memory and Cognition - adults (18-64),Generic Care Packages NE Team -PS,Social Care - Direct Payments,18/01/2017,3815019,"1,030.24",DAVID HOWARD LTD CLIENT ACCOUNT
Adults Services,Adult Social Care,Support with Memory and Cognition - adults (18-64),Generic Care Packages NE Team -PS,Social Care - Direct Payments,18/01/2017,3815020,905.32,DAVID HOWARD LTD CLIENT ACCOUNT
Adults Services,Adult Social Care,Support with Memory and Cognition - adults (18-64),CLDS Longer Term Support Teams,Social Care - Direct Payments,18/01/2017,3815021,"10,937.16",D D PAYROLL SERVICES
Adults Services,Adult Social Care,Support with Memory and Cognition - adults (18-64),Generic Care Packages NE Team -PS,Social Care - Direct Payments,18/01/2017,3815023,"1,074.40",DAVID HOWARD LTD CLIENT ACCOUNT
Adults Services,Adult Social Care,Support with Memory and Cognition - adults (18-64),Cmht For Older People,Social Care - Direct Payments,18/01/2017,3815024,"2,243.92",DAVID HOWARD LTD CLIENT ACCOUNT
Adults Services,Adult Social Care,Support with Memory and Cognition - adults (18-64),Generic Care Packages SW Team - PS,Social Care - Direct Payments,18/01/2017,3815025,881.84,DAVID HOWARD LTD CLIENT ACCOUNT
Adults Services,Adult Social Care,Support with Memory and Cognition - adults (18-64),Generic Care Packages NW Team -PS,Social Care - Direct Payments,18/01/2017,3815027,"1,055.80",DAVID HOWARD LTD CLIENT ACCOUNT
Adults Services,Adult Social Care,Support with Memory and Cognition - adults (18-64),CLDS Longer Term Support Teams,Social Care - Direct Payments,18/01/2017,3815029,"1,645.04",D D PAYROLL SERVICES
Adults Services,Adult Social Care,Support with Memory and Cognition - adults (18-64),Generic Care Packages SW Team - PS,Social Care - Direct Payments,18/01/2017,3815032,855.4,DAVID HOWARD LTD CLIENT ACCOUNT
Adults Services,Adult Social Care,Support with Memory and Cognition - adults (18-64),Generic Care Packages SW Team - PS,Social Care - Direct Payments,18/01/2017,3815033,561.76,D D PAYROLL SERVICES
Adults Services,Adult Social Care,Support with Memory and Cognition - adults (18-64),Generic Care Packages SW Team - PS,Social Care - Direct Payments,18/01/2017,3815036,717.8,D D PAYROLL SERVICES
Adults Services,Adult Social Care,Support with Memory and Cognition - adults (18-64),Generic Care Packages SW Team - PS,Social Care - Direct Payments,18/01/2017,3815037,657.68,D D PAYROLL SERVICES
Adults Services,Adult Social Care,Support with Memory and Cognition - adults (18-64),CLDS Longer Term Support Teams,Social Care - Direct Payments,18/01/2017,3815038,549.8,DAVID HOWARD LTD CLIENT ACCOUNT
Adults Services,Adult Social Care,Support with Memory and Cognition - adults (18-64),CLDS Longer Term Support Teams,Social Care - Direct Payments,18/01/2017,3815039,580.56,DAVID HOWARD LTD CLIENT ACCOUNT
Adults Services,Adult Social Care,Support with Memory and Cognition - adults (18-64),"Generic Care Packages NW Team-MH						",Social Care - Direct Payments,18/01/2017,3815041,"1,269.56",D D PAYROLL SERVICES
Adults Services,Adult Social Care,Support with Memory and Cognition - adults (18-64),Generic Care Packages NE Team -PS,Social Care - Direct Payments,18/01/2017,3815043,"1,288.04",D D PAYROLL SERVICES
Adults Services,Adult Social Care,Support with Memory and Cognition - adults (18-64),Cmht For Older People,Social Care - Direct Payments,18/01/2017,3815044,"2,662.04",DAVID HOWARD LTD CLIENT ACCOUNT
Adults Services,Adult Social Care,Support with Memory and Cognition - adults (18-64),Generic Care Packages NW Team -PS,Social Care - Direct Payments,18/01/2017,3815046,979.2,DAVID HOWARD LTD CLIENT ACCOUNT
Adults Services,Adult Social Care,Support with Memory and Cognition - adults (18-64),Generic Care Packages SW Team - PS,Social Care - Direct Payments,18/01/2017,3815051,"1,250.28",DAVID HOWARD LTD CLIENT ACCOUNT
Adults Services,Adult Social Care,Support with Memory and Cognition - adults (18-64),Generic Care Packages SW Team - PS,Social Care - Direct Payments,18/01/2017,3815053,"6,317.52",DAVID HOWARD LTD CLIENT ACCOUNT
Adults Services,Adult Social Care,Support with Memory and Cognition - adults (18-64),Generic Care Packages SE Team -PS,Social Care - Direct Payments,18/01/2017,3815055,"1,654.00",DAVID HOWARD LTD CLIENT ACCOUNT
Adults Services,Adult Social Care,Support with Memory and Cognition - adults (18-64),Generic Care Packages SW Team - PS,Social Care - Direct Payments,18/01/2017,3815056,831.96,DAVID HOWARD LTD CLIENT ACCOUNT
Adults Services,Adult Social Care,Support with Memory and Cognition - adults (18-64),CLDS Longer Term Support Teams,Social Care - Direct Payments,18/01/2017,3815057,"9,262.12",DAVID HOWARD LTD CLIENT ACCOUNT
Adults Services,Adult Social Care,Support with Memory and Cognition - adults (18-64),CLDS Longer Term Support Teams,Social Care - Direct Payments,18/01/2017,3815058,925.52,D D PAYROLL SERVICES
Adults Services,Adult Social Care,Support with Memory and Cognition - adults (18-64),Generic Care Packages SE Team -PS,Social Care - Direct Payments,18/01/2017,3815062,"10,001.44",DAVID HOWARD LTD CLIENT ACCOUNT
Adults Services,Adult Social Care,Support with Memory and Cognition - adults (18-64),Generic Care Packages SE Team -PS,Social Care - Direct Payments,18/01/2017,3815063,775.44,DAVID HOWARD LTD CLIENT ACCOUNT
Adults Services,Adult Social Care,Support with Memory and Cognition - adults (18-64),Generic Care Packages SW Team - PS,Social Care - Direct Payments,18/01/2017,3815064,545.64,D D PAYROLL SERVICES
Adults Services,Adult Social Care,Support with Memory and Cognition - adults (18-64),Generic Care Packages NE Team -PS,Social Care - Direct Payments,18/01/2017,3815067,596.04,DAVID HOWARD LTD CLIENT ACCOUNT
Adults Services,Adult Social Care,Support with Memory and Cognition - adults (18-64),Generic Care Packages SW Team - PS,Social Care - Direct Payments,18/01/2017,3815069,"1,187.88",D D PAYROLL SERVICES
Adults Services,Adult Social Care,Support with Memory and Cognition - adults (18-64),Generic Care Packages NW Team -PS,Social Care - Direct Payments,18/01/2017,3815072,567.24,DAVID HOWARD LTD CLIENT ACCOUNT
Adults Services,Adult Social Care,Support with Memory and Cognition - adults (18-64),Generic Care Packages SE Team -PS,Social Care - Direct Payments,18/01/2017,3815073,908.6,DAVID HOWARD LTD CLIENT ACCOUNT
Adults Services,Adult Social Care,Support with Memory and Cognition - adults (18-64),Generic Care Packages SW Team - PS,Social Care - Direct Payments,18/01/2017,3815076,914.8,DAVID HOWARD LTD CLIENT ACCOUNT
Adults Services,Adult Social Care,Support with Memory and Cognition - adults (18-64),CLDS Longer Term Support Teams,Social Care - Direct Payments,18/01/2017,3815077,521.04,D D PAYROLL SERVICES
Adults Services,Adult Social Care,Support with Memory and Cognition - adults (18-64),Generic Care Packages NW Team -PS,Social Care - Direct Payments,18/01/2017,3815080,837.92,DAVID HOWARD LTD CLIENT ACCOUNT
Adults Services,Adult Social Care,Support with Memory and Cognition - adults (18-64),Generic Care Packages NW Team -PS,Social Care - Direct Payments,18/01/2017,3815083,767.08,DAVID HOWARD LTD CLIENT ACCOUNT
Adults Services,Adult Social Care,Support with Memory and Cognition - adults (18-64),Generic Care Packages SE Team -PS,Social Care - Direct Payments,18/01/2017,3815086,"2,601.52",D D PAYROLL SERVICES
Adults Services,Adult Social Care,Support with Memory and Cognition - adults (18-64),Generic Care Packages NE Team -PS,Social Care - Direct Payments,18/01/2017,3815087,736.04,D D PAYROLL SERVICES
Adults Services,Adult Social Care,Support with Memory and Cognition - adults (18-64),CLDS Longer Term Support Teams,Social Care - Direct Payments,18/01/2017,3815088,926.12,D D PAYROLL SERVICES
Adults Services,Adult Social Care,Support with Memory and Cognition - adults (18-64),Generic Care Packages NE Team -PS,Social Care - Direct Payments,18/01/2017,3815089,607.72,DAVID HOWARD LTD CLIENT ACCOUNT
Adults Services,Adult Social Care,Support with Memory and Cognition - adults (18-64),Generic Care Packages NW Team -PS,Social Care - Direct Payments,18/01/2017,3815092,924,DAVID HOWARD LTD CLIENT ACCOUNT
Adults Services,Adult Social Care,Support with Memory and Cognition - adults (18-64),Generic Care Packages SE Team -PS,Social Care - Direct Payments,18/01/2017,3815094,834.04,D D PAYROLL SERVICES
Adults Services,Adult Social Care,Support with Memory and Cognition - adults (18-64),Generic Care Packages SW Team - PS,Social Care - Direct Payments,18/01/2017,3815095,"1,269.12",D D PAYROLL SERVICES
Adults Services,Adult Social Care,Support with Memory and Cognition - adults (18-64),CLDS Longer Term Support Teams,Social Care - Direct Payments,18/01/2017,3815096,"3,221.20",D D PAYROLL SERVICES
Adults Services,Adult Social Care,Support with Memory and Cognition - adults (18-64),Generic Care Packages NW Team -PS,Social Care - Direct Payments,18/01/2017,3815097,"1,070.12",D D PAYROLL SERVICES
Adults Services,Adult Social Care,Support with Memory and Cognition - adults (18-64),Generic Care Packages SE Team -PS,Social Care - Direct Payments,18/01/2017,3815098,574.08,DAVID HOWARD LTD CLIENT ACCOUNT
Adults Services,Adult Social Care,Support with Memory and Cognition - adults (18-64),Generic Care Packages NW Team -PS,Social Care - Direct Payments,18/01/2017,3815101,944.04,D D PAYROLL SERVICES
Adults Services,Adult Social Care,Support with Memory and Cognition - adults (18-64),Generic Care Packages SW Team - PS,Social Care - Direct Payments,18/01/2017,3815103,"2,115.20",D D PAYROLL SERVICES
Adults Services,Adult Social Care,Support with Memory and Cognition - adults (18-64),Cmht Iod / Poplar South,Social Care - Direct Payments,18/01/2017,3815105,"1,233.00",D D PAYROLL SERVICES
Adults Services,Adult Social Care,Support with Memory and Cognition - adults (18-64),CLDS Longer Term Support Teams,Social Care - Direct Payments,18/01/2017,3815107,"1,866.96",DAVID HOWARD LTD CLIENT ACCOUNT
Adults Services,Adult Social Care,Support with Memory and Cognition - adults (18-64),Generic Care Packages NW Team -PS,Social Care - Direct Payments,18/01/2017,3815108,783,DAVID HOWARD LTD CLIENT ACCOUNT
Adults Services,Adult Social Care,Support with Memory and Cognition - adults (18-64),Generic Care Packages SE Team -PS,Social Care - Direct Payments,18/01/2017,3815109,"11,884.28",DAVID HOWARD LTD CLIENT ACCOUNT
Adults Services,Adult Social Care,Support with Memory and Cognition - adults (18-64),Generic Care Packages NE Team -PS,Social Care - Direct Payments,18/01/2017,3815115,"1,145.56",D D PAYROLL SERVICES
Adults Services,Adult Social Care,Support with Memory and Cognition - adults (18-64),CLDS Longer Term Support Teams,Social Care - Direct Payments,18/01/2017,3815116,"8,617.84",DAVID HOWARD LTD CLIENT ACCOUNT
Adults Services,Adult Social Care,Support with Memory and Cognition - adults (18-64),Cmht Iod / Poplar South,Social Care - Direct Payments,18/01/2017,3815117,853.08,DAVID HOWARD LTD CLIENT ACCOUNT
Adults Services,Adult Social Care,Support with Memory and Cognition - adults (18-64),Generic Care Packages NE Team -PS,Social Care - Direct Payments,18/01/2017,3815118,908,DAVID HOWARD LTD CLIENT ACCOUNT
Adults Services,Adult Social Care,Support with Memory and Cognition - adults (18-64),Generic Care Packages NW Team -PS,Social Care - Direct Payments,18/01/2017,3815123,591.32,DAVID HOWARD LTD CLIENT ACCOUNT
Adults Services,Adult Social Care,Support with Memory and Cognition - adults (18-64),Generic Care Packages NE Team -PS,Social Care - Direct Payments,18/01/2017,3815130,987.12,D D PAYROLL SERVICES
Adults Services,Adult Social Care,Support with Memory and Cognition - adults (18-64),Generic Care Packages SE Team -SI,Social Care - Direct Payments,18/01/2017,3815133,770.12,D D PAYROLL SERVICES
Adults Services,Adult Social Care,Support with Memory and Cognition - adults (18-64),Generic Care Packages SE Team -PS,Social Care - Direct Payments,18/01/2017,3815134,589.96,DAVID HOWARD LTD CLIENT ACCOUNT
Adults Services,Adult Social Care,Support with Memory and Cognition - adults (18-64),Generic Care Packages SE Team -PS,Social Care - Direct Payments,18/01/2017,3815137,"1,433.12",DAVID HOWARD LTD CLIENT ACCOUNT
Adults Services,Adult Social Care,Support with Memory and Cognition - adults (18-64),Generic Care Packages NE Team -PS,Social Care - Direct Payments,18/01/2017,3815138,"1,273.00",D D PAYROLL SERVICES
Adults Services,Adult Social Care,Support with Memory and Cognition - adults (18-64),"Generic Care Packages NW Team-MH						",Social Care - Direct Payments,18/01/2017,3815139,799,DAVID HOWARD LTD CLIENT ACCOUNT
Adults Services,Adult Social Care,Support with Memory and Cognition - adults (18-64),CLDS Longer Term Support Teams,Social Care - Direct Payments,18/01/2017,3815143,"3,965.12",D D PAYROLL SERVICES
Adults Services,Adult Social Care,Support with Memory and Cognition - adults (18-64),Generic Care Packages SW Team - PS,Social Care - Direct Payments,18/01/2017,3815144,"7,069.80",DAVID HOWARD LTD CLIENT ACCOUNT
Adults Services,Adult Social Care,Support with Memory and Cognition - adults (18-64),Generic Care Packages SW Team - PS,Social Care - Direct Payments,18/01/2017,3815147,665.96,DAVID HOWARD LTD CLIENT ACCOUNT
Adults Services,Adult Social Care,Support with Memory and Cognition - adults (18-64),CLDS Longer Term Support Teams,Social Care - Direct Payments,18/01/2017,3815149,"6,440.12",DAVID HOWARD LTD CLIENT ACCOUNT
Adults Services,Adult Social Care,Support with Memory and Cognition - adults (18-64),CLDS Transition,Social Care - Direct Payments,18/01/2017,3815150,"1,369.68",D D PAYROLL SERVICES
Adults Services,Adult Social Care,Support with Memory and Cognition - adults (18-64),Generic Care Packages NW Team -PS,Social Care - Direct Payments,18/01/2017,3815151,840.84,DAVID HOWARD LTD CLIENT ACCOUNT
Adults Services,Adult Social Care,Support with Memory and Cognition - adults (18-64),Generic Care Packages SW Team - PS,Social Care - Direct Payments,18/01/2017,3815153,"1,312.96",D D PAYROLL SERVICES
Adults Services,Adult Social Care,Support with Memory and Cognition - adults (18-64),Generic Care Packages NE Team -PS,Social Care - Direct Payments,18/01/2017,3815154,579.52,DAVID HOWARD LTD CLIENT ACCOUNT
Adults Services,Adult Social Care,Support with Memory and Cognition - adults (18-64),Generic Care Packages NW Team -PS,Social Care - Direct Payments,18/01/2017,3815155,920.36,DAVID HOWARD LTD CLIENT ACCOUNT
Adults Services,Adult Social Care,Support with Memory and Cognition - adults (18-64),Generic Care Packages SE Team -PS,Social Care - Direct Payments,18/01/2017,3815156,760.72,DAVID HOWARD LTD CLIENT ACCOUNT
Adults Services,Adult Social Care,Support with Memory and Cognition - adults (18-64),Generic Care Packages SW Team - PS,Social Care - Direct Payments,18/01/2017,3815160,"1,290.88",DAVID HOWARD LTD CLIENT ACCOUNT
Adults Services,Adult Social Care,Support with Memory and Cognition - adults (18-64),Generic Care Packages SW Team - PS,Social Care - Direct Payments,18/01/2017,3815162,656.6,DAVID HOWARD LTD CLIENT ACCOUNT
Adults Services,Adult Social Care,Support with Memory and Cognition - adults (18-64),CLDS Longer Term Support Teams,Social Care - Direct Payments,18/01/2017,3815163,776.4,DAVID HOWARD LTD CLIENT ACCOUNT
Adults Services,Adult Social Care,Support with Memory and Cognition - adults (18-64),CLDS Transition,Social Care - Direct Payments,18/01/2017,3815164,"1,364.64",DAVID HOWARD LTD CLIENT ACCOUNT
Adults Services,Adult Social Care,Support with Memory and Cognition - adults (18-64),Generic Care Packages SE Team -PS,Social Care - Direct Payments,18/01/2017,3815165,"4,645.48",DAVID HOWARD LTD CLIENT ACCOUNT
Adults Services,Adult Social Care,Support with Memory and Cognition - adults (18-64),Generic Care Packages NW Team -PS,Social Care - Direct Payments,18/01/2017,3815166,"2,674.44",DAVID HOWARD LTD CLIENT ACCOUNT
Adults Services,Adult Social Care,Support with Memory and Cognition - adults (18-64),Generic Care Packages SW Team - PS,Social Care - Direct Payments,18/01/2017,3815168,799.44,DAVID HOWARD LTD CLIENT ACCOUNT
Adults Services,Adult Social Care,Support with Memory and Cognition - adults (18-64),Generic Care Packages NE Team -PS,Social Care - Direct Payments,18/01/2017,3815169,"1,978.92",DAVID HOWARD LTD CLIENT ACCOUNT
Adults Services,Adult Social Care,Support with Memory and Cognition - adults (18-64),Generic Care Packages NE Team -PS,Social Care - Direct Payments,18/01/2017,3815171,856.96,DAVID HOWARD LTD CLIENT ACCOUNT
Adults Services,Adult Social Care,Support with Memory and Cognition - adults (18-64),Generic Care Packages NE Team-SMC,Social Care - Direct Payments,18/01/2017,3815174,660.64,DAVID HOWARD LTD CLIENT ACCOUNT
Adults Services,Adult Social Care,Support with Memory and Cognition - adults (18-64),Generic Care Packages SE Team -PS,Social Care - Direct Payments,18/01/2017,3815175,725.76,DAVID HOWARD LTD CLIENT ACCOUNT
Adults Services,Adult Social Care,Support with Memory and Cognition - adults (18-64),Generic Care Packages NW Team -PS,Social Care - Direct Payments,18/01/2017,3815176,830.16,D D PAYROLL SERVICES
Adults Services,Adult Social Care,Support with Memory and Cognition - adults (18-64),CLDS Longer Term Support Teams,Social Care - Direct Payments,18/01/2017,3815178,902.04,D D PAYROLL SERVICES
Adults Services,Adult Social Care,Support with Memory and Cognition - adults (18-64),Generic Care Packages SW Team - PS,Social Care - Direct Payments,18/01/2017,3815180,"3,628.93",DAVID HOWARD LTD CLIENT ACCOUNT
Adults Services,Adult Social Care,Support with Memory and Cognition - adults (18-64),CLDS Transition,Social Care - Direct Payments,18/01/2017,3815181,"8,040.02",D D PAYROLL SERVICES
Adults Services,Adult Social Care,Support with Memory and Cognition - adults (18-64),Generic Care Packages NW Team -PS,Social Care - Direct Payments,18/01/2017,3815202,626.84,Soma Healthcare Ltd
Adults Services,Adult Social Care,Support with Memory and Cognition - adults (18-64),Generic Care Packages NE Team -PS,Social Care - Direct Payments,18/01/2017,3815203,"1,162.68",DAVID HOWARD LTD CLIENT ACCOUNT
Adults Services,Adult Social Care,Support with Memory and Cognition - adults (18-64),Generic Care Packages NW Team -PS,Social Care - Direct Payments,18/01/2017,3815217,"5,964.00",D D PAYROLL SERVICES
Adults Services,Adult Social Care,Support with Memory and Cognition - adults (18-64),Generic Care Packages SW Team - PS,Social Care - Direct Payments,18/01/2017,3815223,"1,018.80",DAVID HOWARD LTD CLIENT ACCOUNT
Adults Services,Adult Social Care,Support with Memory and Cognition - adults (18-64),Generic Care Packages NW Team -PS,Social Care - Direct Payments,18/01/2017,3815228,"1,568.00",DAVID HOWARD LTD CLIENT ACCOUNT
Adults Services,Adult Social Care,Support with Memory and Cognition - adults (18-64),Generic Care Packages SE Team -PS,Social Care - Direct Payments,18/01/2017,3815229,"1,285.48",DAVID HOWARD LTD CLIENT ACCOUNT
Adults Services,Adult Social Care,Support with Memory and Cognition - adults (18-64),Generic Care Packages SW Team -SI,Social Care - Direct Payments,18/01/2017,3815233,"1,941.48",DAVID HOWARD LTD CLIENT ACCOUNT
Adults Services,Adult Social Care,Support with Memory and Cognition - adults (18-64),Generic Care Packages SE Team -PS,Social Care - Direct Payments,18/01/2017,3815244,916.72,DAVID HOWARD LTD CLIENT ACCOUNT
Adults Services,Adult Social Care,Support with Memory and Cognition - adults (18-64),Generic Care Packages SE Team -SP,Social Care - Direct Payments,18/01/2017,3815245,640.96,DAVID HOWARD LTD CLIENT ACCOUNT
Adults Services,Adult Social Care,Support with Memory and Cognition - adults (18-64),Generic Care Packages NE Team -SP,Social Care - Direct Payments,18/01/2017,3815247,786.8,DAVID HOWARD LTD CLIENT ACCOUNT
Adults Services,Adult Social Care,Support with Memory and Cognition - adults (18-64),Generic Care Packages SE Team -PS,Social Care - Direct Payments,18/01/2017,3815250,527.64,DAVID HOWARD LTD CLIENT ACCOUNT
Adults Services,Adult Social Care,Support with Memory and Cognition - adults (18-64),Generic Care Packages NW Team -PS,Social Care - Direct Payments,18/01/2017,3815256,"2,535.20",D D PAYROLL SERVICES
Adults Services,Adult Social Care,Support with Memory and Cognition - adults (18-64),"Generic Care Packages SW Team-MH									",Social Care - Direct Payments,18/01/2017,3815260,677.96,DAVID HOWARD LTD CLIENT ACCOUNT
Adults Services,Adult Social Care,Support with Memory and Cognition - adults (18-64),Generic Care Packages SE Team-SMC,Social Care - Direct Payments,18/01/2017,3815267,"1,094.24",DAVID HOWARD LTD CLIENT ACCOUNT
Adults Services,Adult Social Care,Support with Memory and Cognition - adults (18-64),Generic Care Packages SE Team -PS,Social Care - Direct Payments,18/01/2017,3815268,730.16,DAVID HOWARD LTD CLIENT ACCOUNT
Adults Services,Adult Social Care,Support with Memory and Cognition - adults (18-64),Cmht Iod / Poplar South,Social Care - Direct Payments,18/01/2017,3815269,599.36,D D PAYROLL SERVICES
Adults Services,Adult Social Care,Support with Memory and Cognition - adults (18-64),Generic Care Packages SE Team -PS,Social Care - Direct Payments,18/01/2017,3815272,768.76,DAVID HOWARD LTD CLIENT ACCOUNT
Adults Services,Adult Social Care,Support with Memory and Cognition - adults (18-64),Generic Care Packages SE Team -PS,Social Care - Direct Payments,18/01/2017,3815282,580.2,DAVID HOWARD LTD CLIENT ACCOUNT
Adults Services,Adult Social Care,Support with Memory and Cognition - adults (18-64),Generic Care Packages SE Team -PS,Social Care - Direct Payments,18/01/2017,3815283,"1,068.76",DAVID HOWARD LTD CLIENT ACCOUNT
Adults Services,Adult Social Care,Support with Memory and Cognition - adults (18-64),Generic Care Packages SE Team -PS,Social Care - Direct Payments,18/01/2017,3815285,682.08,D D PAYROLL SERVICES
Adults Services,Adult Social Care,Support with Memory and Cognition - adults (18-64),Generic Care Packages NW Team -PS,Social Care - Direct Payments,18/01/2017,3815286,524.64,DAVID HOWARD LTD CLIENT ACCOUNT
Adults Services,Adult Social Care,Support with Memory and Cognition - adults (18-64),Generic Care Packages NE Team -PS,Social Care - Direct Payments,18/01/2017,3815287,"1,152.20",D D PAYROLL SERVICES
